Workbook

Sheet Lotto2_R7425-1
B1: TOTALE PRODOTTI CONVENZIONE | C1: =SUM(G13:G156)*$C$10 -> 0 | F1: =IF(I1+I2=0,(C1+C2),"ERRORE VERIFICARE LA CONFIGURAZIONE") -> 0 | I1: =IF(A37="",0,1) -> 0
B2: TOTALE ARTICOLI 20% | C2: =SUM(H13:H156)*$C$10 -> 0 | I2: =IF(A77="",0,1) -> 0
B3: Indicare qui la quantità Server -----> | C3: 0 | F3: =Riepilogo!T6 -> ver. 3.0
A5: POWEREDGE R7425
B10: Quantità: | C10: =C3 -> 0
B12: Modello Server
B13: PowerEdge R7425 Server | C13: 1 | D13: [210-APFK] | F13: TS2L2-SRV | G13: 1849
B15: Configurazione dello chassis
B16: Chassis with up to 24 x 2.5" SAS/SATA Hard Drives for 1&2CPU Configuration, Risers 1, 3, 5, 7 | C16: 1 | D16: [321-BDGE]
B18: Trusted Platform Module
B19: No Trusted Platform Module | C19: 1 | D19: [461-AADZ]
B21: Processore
B22: AMD EPYC 7281 2.1GHz/2.7GHz, 16C/32T, 32M Cache (155W/170W) DDR4-2400/2666 | C22: 1 | D22: [338-BNBZ]
B24: Processore aggiuntivo
B25: No Additional Processor | C25: =VLOOKUP($B$25,TS2L2CPU,2,FALSE) -> 0 | D25: =VLOOKUP($B$25,TS2L2CPU,3,FALSE) -> [374-BBBX] | E25: =VLOOKUP($B$25,TS2L2CPU,4,FALSE) ->  | F25: =VLOOKUP($B$25,TS2L2CPU,5,FALSE) ->  | G25: =VLOOKUP($B$25,TS2L2CPU,6,FALSE) -> 0 | H25: =VLOOKUP($B$25,TS2L2CPU,7,FALSE) -> 
B28: Memoria Totale in GB | C28: 64 (DIMM 32GB)
B30: Capacità di memoria
B31: =IF($C$25=0,VLOOKUP($C$28,TS2L2MEM1CPU,2,FALSE),VLOOKUP($C$28,TS2L2MEM2CPU,2,FALSE)) -> 32GB RDIMM, 2666MT/s, Dual Rank | C31: =IF($C$25=0,VLOOKUP($C$28,TS2L2MEM1CPU,3,FALSE),VLOOKUP($C$28,TS2L2MEM2CPU,3,FALSE)) -> 2 | D31: =IF($C$25=0,VLOOKUP($C$28,TS2L2MEM1CPU,4,FALSE),VLOOKUP($C$28,TS2L2MEM2CPU,4,FALSE)) -> [370-ADNF] | E31: =IF($C$25=0,VLOOKUP($C$28,TS2L2MEM1CPU,5,FALSE),VLOOKUP($C$28,TS2L2MEM2CPU,5,FALSE)) -> A9781929 | F31: =IF($C$25=0,VLOOKUP($C$28,TS2L2MEM1CPU,6,FALSE),VLOOKUP($C$28,TS2L2MEM2CPU,6,FALSE)) ->  | G31: =IF($C$25=0,VLOOKUP($C$28,TS2L2MEM1CPU,7,FALSE),VLOOKUP($C$28,TS2L2MEM2CPU,7,FALSE)) -> 0
B33: Sistema operativo preinstallato
B34: None | C34: =VLOOKUP($B$34,TS2L2OS,2,FALSE) ->  | D34: =VLOOKUP($B$34,TS2L2OS,3,FALSE) -> [619-ABVR] | E34: =VLOOKUP($B$34,TS2L2OS,4,FALSE) -> 0 | F34: =VLOOKUP($B$34,TS2L2OS,5,FALSE) ->  | G34: =VLOOKUP($B$34,TS2L2OS,6,FALSE) -> 0 | H34: =VLOOKUP($B$34,TS2L2OS,7,FALSE) -> 0 | I34: =IF(E34=0,1,0) -> 1
B35: =IF($C$25=1,(VLOOKUP($B$34,TS2L2OS,8,FALSE)),"") ->  | C35: =IF($C$25=1,(VLOOKUP($B$34,TS2L2OS,9,FALSE)),"") ->  | D35: =IF($C$25=1,(VLOOKUP($B$34,TS2L2OS,10,FALSE)),"") ->  | E35: =IF($C$25=1,(VLOOKUP($B$34,TS2L2OS,11,FALSE)),"") ->  | F35: =IF($C$25=1,(VLOOKUP($B$34,TS2L2OS,12,FALSE)),"") ->  | G35: =IF($C$25=1,(VLOOKUP($B$34,TS2L2OS,13,FALSE)),"") ->  | H35: =IF($C$25=1,(VLOOKUP($B$34,TS2L2OS,14,FALSE)),0) -> 0
A37: =IF((I34*I38)=0,"","ERRORE: La selezione di licenze CAL senza il Sistema Operativo Microsoft Windows non è consentita.") ->  | B37: Client Access Licenses
B38: =IF($E$34>0,'Regole di configurazione'!A83,"") ->  | C38: 0 | D38: =IF($E$34>0,'Regole di configurazione'!C83,"") ->  | E38: =IF($E$34>0,'Regole di configurazione'!D83,"") ->  | F38: =IF($E$34>0,'Regole di configurazione'!E83,"") ->  | G38: =IF($E$34>0,'Regole di configurazione'!F83,0)*C38 -> 0 | H38: =IF($E$34>0,'Regole di configurazione'!G83,"") ->  | I38: =C38+C40 -> 0
B40: =IF($E$34>0,'Regole di configurazione'!A84,"") ->  | C40: 0 | D40: =IF($E$34>0,'Regole di configurazione'!C84,"") ->  | E40: =IF($E$34>0,'Regole di configurazione'!D84,"") ->  | F40: =IF($E$34>0,'Regole di configurazione'!E84,"") ->  | G40: =IF($E$34>0,'Regole di configurazione'!F84,0)*C40 -> 0 | H40: =IF($E$34>0,'Regole di configurazione'!G84,"") -> 
B42: Sistema operativo VMware
B43: Vmware vSphere Essentials Plus Kit
B44: None | C44: =VLOOKUP($B$44,TS2L2VMWARE1,2,FALSE) -> 1 | D44: =VLOOKUP($B$44,TS2L2VMWARE1,3,FALSE) ->  | E44: =VLOOKUP($B$44,TS2L2VMWARE1,4,FALSE) ->  | F44: =VLOOKUP($B$44,TS2L2VMWARE1,5,FALSE) ->  | G44: =VLOOKUP($B$44,TS2L2VMWARE1,6,FALSE) -> 0 | H44: =VLOOKUP($B$44,TS2L2VMWARE1,7,FALSE)*C44 -> 0
B45: VMware vCenter Server Standard
B46: None | C46: =VLOOKUP($B$46,TS2L2VMWARE2,2,FALSE) -> 1 | D46: =VLOOKUP($B$46,TS2L2VMWARE2,3,FALSE) ->  | E46: =VLOOKUP($B$46,TS2L2VMWARE2,4,FALSE) ->  | F46: =VLOOKUP($B$46,TS2L2VMWARE2,5,FALSE) ->  | G46: =VLOOKUP($B$46,TS2L2VMWARE2,6,FALSE) -> 0 | H46: =VLOOKUP($B$46,TS2L2VMWARE2,7,FALSE)*C46 -> 0
B47: Vmware vSphere Standard/Enterprise
B48: None | C48: =(VLOOKUP($B$48,TS2L2VMWARE3,2,FALSE))+C25 -> 0 | D48: =VLOOKUP($B$48,TS2L2VMWARE3,3,FALSE) ->  | E48: =VLOOKUP($B$48,TS2L2VMWARE3,4,FALSE) ->  | F48: =VLOOKUP($B$48,TS2L2VMWARE3,5,FALSE) ->  | G48: =VLOOKUP($B$48,TS2L2VMWARE3,6,FALSE) -> 0 | H48: =VLOOKUP($B$48,TS2L2VMWARE3,7,FALSE)*C48 -> 0
B49: VMware vSAN
B50: None | C50: =(VLOOKUP($B$50,TS2L2VMWARE4,2,FALSE))+C25 -> 0 | D50: =VLOOKUP($B$50,TS2L2VMWARE4,3,FALSE) ->  | E50: =VLOOKUP($B$50,TS2L2VMWARE4,4,FALSE) ->  | F50: =VLOOKUP($B$50,TS2L2VMWARE4,5,FALSE) ->  | G50: =VLOOKUP($B$50,TS2L2VMWARE4,6,FALSE) -> 0 | H50: =VLOOKUP($B$50,TS2L2VMWARE4,7,FALSE)*C50 -> 0
B52: Controller Dischi
B53: =B110 -> PERC H730P RAID Controller, 2Gb NV Cache, Adapter, Full Height | C53: =C110 -> 1 | D53: =D110 -> [405-AAMR] | E53: =E110 -> 405-AAMY
B55: Dischi rigidi (numero massimo totale 24)
A56: SAS 10K | B56: 600GB 10K RPM SAS 12Gbps 512n 2.5in Hot-plug Hard Drive | C56: 2 | D56: [400-ASGS] | E56: 400-AUNQ | F56: =IF(C56<=2,"","TS2L2-10K600") ->  | G56: =IF(C56<=2,0,(C56-2)*'Regole di configurazione'!F13) -> 0
B58: 1.2TB 10K RPM SAS 12Gbps 512n 2.5in Hot-plug Hard Drive | C58: 0 | D58: [400-ASHI] | E58: 400-ATJL | F58: =IF(C58=0,"","TS2L2-10K1200") ->  | G58: =C58*'Regole di configurazione'!F14 -> 0
B60: 1.8TB 10K RPM SAS 12Gbps 512e 2.5in Hot-plug Hard Drive | C60: 0 | D60: [400-ARXC] | E60: 400-ATJR | F60: =IF(C60=0,"","TS2L2-10K1800") ->  | H60: =C60*162 -> 0
B62: 2.4TB 10K RPM SAS 12Gbps 512e 2.5in Hot-plug Hard Drive NO VMWARE A20 | C62: 0 | E62: 400-AVBX | F62: =IF(C62=0,"","TS2L2-10K2400") ->  | H62: =C62*389 -> 0
A64: SSD SAS RI | B64: 480GB SSD SAS Mixed Use 12Gbps 2.5in Hot-Plug A20 | C64: 0 | E64: 400-BCOD | F64: =IF(C64=0,"","TS2L2-SSDM480") ->  | G64: =C64*'Regole di configurazione'!F15 -> 0
B66: SSD 400GB SAS WI 12Gbps 2.5in Hot-plug Drive, 10 DWPD A20 | C66: 0 | E66: 400-ATGH | F66: =IF(C66=0,"","TS2L2-SSDW400") ->  | H66: =C66*1155 -> 0
B68: SSD 1600GB SAS WI 12Gb 2.5in Hot-plug Drive, 10 DWPD A20 | C68: 0 | F68: =IF(C68=0,"","TS2L2-SSDW1600") ->  | H68: =C68*1475 -> 0
B70: 960GB SSD SAS Read Intensive 12Gbps 512e 2.5in Hot-plug Drive, PM5-R, 1 DWPD, 1752 TBW | C70: 0 | D70: [400-BBPL] | E70: 400-ATLL | F70: =IF(C70=0,"","TS2L2-SSDR960") ->  | G70: =C70*'Regole di configurazione'!F16 -> 0
B72: 1.92TB SSD SAS Read Intensive 12Gbps 512e 2.5in Hot-plug Drive, PM1633a | C72: 0 | D72: [400-ASFX] | E72: 400-ATND | F72: =IF(C72=0,"","TS2L2-SSDR1920") ->  | H72: =C72*'Regole di configurazione'!F17 -> 0
B74: DISCHI TOTALI | C74: =SUM(C56:C73) -> 2
B76: NOTE sulla configurazione (CAMPO OBBLIGATORIO)
A77: =IF(C74<=24,"","ERRORE: Totale n° di dischi superiore al consentito") ->  | B77: Specificare la configurazione RAID per l'installazione del Sistema Operativo, se richiesto. e/o inserire eventuali note. | E77: Specificare la configurazione RAID per l'installazione del Sistema Operativo, se richiesto. e/o inserire eventuali note. | F77: =IF(B77=E77,"ERRORE: Compilare il campo NOTE","") -> ERRORE: Compilare il campo NOTE
B79: Ventole
B80: 6 Standard Fans | C80: 1 | D80: [384-BBSU]
B82: Alimentatore
B83: Dual, Hot-plug, Redundant Power Supply (1+1), 1100W | C83: 1 | D83: [450-ADWM]
B85: Cavi di alimentazione
B86: Rack Power Cord 2M (C13/C14 10A) | C86: 2 | D86: [450-AADY]
B88: PCIe Riser
B89: Riser Config 1, 2 x8, 1 x16 slots | C89: =VLOOKUP($B$89,TS2L2RISER,2,FALSE) -> 0 | D89: =VLOOKUP($B$89,TS2L2RISER,3,FALSE) -> [330-BBIY] | E89: =VLOOKUP($B$89,TS2L2RISER,4,FALSE) ->  | F89: =VLOOKUP($B$89,TS2L2RISER,5,FALSE) ->  | G89: =VLOOKUP($B$89,TS2L2RISER,6,FALSE) -> 0 | H89: =VLOOKUP($B$89,TS2L2RISER,7,FALSE) -> 0 | I89: =VLOOKUP($B$89,TS2L2RISER,8,FALSE) -> _NORISER
B91: Modulo Doppia SD - Internal Dual SD Module (IDSDM)
B92: None | C92: =VLOOKUP(B92,TS2L2IDSDM,2,FALSE) -> 0 | D92: =VLOOKUP(B92,TS2L2IDSDM,3,FALSE) -> 0 | E92: =VLOOKUP(B92,TS2L2IDSDM,4,FALSE) -> 0 | F92: =VLOOKUP(B92,TS2L2IDSDM,5,FALSE) ->  | G92: =VLOOKUP(B92,TS2L2IDSDM,6,FALSE) -> 0 | H92: =VLOOKUP(B92,TS2L2IDSDM,7,FALSE) -> 0
B94: Embedded Systems Management
B95: iDRAC9,Enterprise | C95: 1 | D95: [385-BBKT]
B100: Network Daughter Card
B101: Broadcom 5720 QP 1Gb Network Daughter Card | C101: 1 | D101: [540-BBBW]
B103: Additional Card for PCIe Slot 1 (Full height) (CPU 1)
B104: None | C104: =VLOOKUP(B104,TS2L2PCI1,2,FALSE) ->  | D104: =VLOOKUP(B104,TS2L2PCI1,3,FALSE) ->  | E104: =VLOOKUP(B104,TS2L2PCI1,4,FALSE) ->  | F104: =VLOOKUP(B104,TS2L2PCI1,5,FALSE) ->  | G104: =VLOOKUP(B104,TS2L2PCI1,6,FALSE) -> 0 | H104: =VLOOKUP(B104,TS2L2PCI1,7,FALSE) -> 0
B106: Additional Card for PCIe Slot 2 (Full height) (CPU 1)
B107: None | C107: =VLOOKUP(B107,TS2L2PCI2,2,FALSE) ->  | D107: =VLOOKUP(B107,TS2L2PCI2,3,FALSE) ->  | E107: =VLOOKUP(B107,TS2L2PCI2,4,FALSE) ->  | F107: =VLOOKUP(B107,TS2L2PCI2,5,FALSE) ->  | G107: =VLOOKUP(B107,TS2L2PCI2,6,FALSE) -> 0 | H107: =VLOOKUP(B107,TS2L2PCI2,7,FALSE) -> 0
B109: Additional Card for PCIe Slot 3 (Full height) (CPU 1)
B110: PERC H730P RAID Controller, 2Gb NV Cache, Adapter, Full Height | C110: =VLOOKUP(B110,TS2L2PCI3,2,FALSE) -> 1 | D110: =VLOOKUP(B110,TS2L2PCI3,3,FALSE) -> [405-AAMR] | E110: =VLOOKUP(B110,TS2L2PCI3,4,FALSE) -> 405-AAMY | F110: =VLOOKUP(B110,TS2L2PCI3,5,FALSE) ->  | G110: =VLOOKUP(B110,TS2L2PCI3,6,FALSE) -> 0 | H110: =VLOOKUP(B110,TS2L2PCI3,7,FALSE) -> 0
B112: Additional Card for PCIe Slot 4 (Full height) (CPU 2)
B113: None | C113: =IF(B113=TS2L2ASP,"",VLOOKUP(B113,TS2L2PCI4,2,FALSE)) ->  | D113: =IF(B113=TS2L2ASP,"",VLOOKUP(B113,TS2L2PCI4,3,FALSE)) ->  | E113: =IF(B113=TS2L2ASP,"",VLOOKUP(B113,TS2L2PCI4,4,FALSE)) ->  | F113: =IF(B113=TS2L2ASP,"",VLOOKUP(B113,TS2L2PCI4,5,FALSE)) ->  | G113: =IF(B113=TS2L2ASP,0,VLOOKUP(B113,TS2L2PCI4,6,FALSE)) -> 0 | H113: =IF(B113=TS2L2ASP,0,VLOOKUP(B113,TS2L2PCI4,7,FALSE)) -> 0
B115: Additional Card for PCIe Slot 5 (Full height) (CPU 2)
B116: None
B118: Additional Card for PCIe Slot 6 (Low height) (CPU 2)
B119: None | C119: =IF(B119=TS2L2ASP,"",VLOOKUP(B119,TS2L2PCI6,2,FALSE)) ->  | D119: =IF(B119=TS2L2ASP,"",VLOOKUP(B119,TS2L2PCI6,3,FALSE)) ->  | E119: =IF(B119=TS2L2ASP,"",VLOOKUP(B119,TS2L2PCI6,4,FALSE)) ->  | F119: =IF(B119=TS2L2ASP,"",VLOOKUP(B119,TS2L2PCI6,5,FALSE)) ->  | G119: =IF(B119=TS2L2ASP,0,VLOOKUP(B119,TS2L2PCI6,6,FALSE)) -> 0 | H119: =IF(B119=TS2L2ASP,0,VLOOKUP(B119,TS2L2PCI6,7,FALSE)) -> 0
B121: Additional Card for PCIe Slot 7 (Full height) (CPU 2) (BOSS controller card Slot)
B122: None | C122: =IF(B122=TS2L2ASP,"",VLOOKUP(B122,TS2L2PCI7,2,FALSE)) ->  | D122: =IF(B122=TS2L2ASP,"",VLOOKUP(B122,TS2L2PCI7,3,FALSE)) ->  | E122: =IF(B122=TS2L2ASP,"",VLOOKUP(B122,TS2L2PCI7,4,FALSE)) ->  | F122: =IF(B122=TS2L2ASP,"",VLOOKUP(B122,TS2L2PCI7,5,FALSE)) ->  | G122: =IF(B122=TS2L2ASP,0,VLOOKUP(B122,TS2L2PCI7,6,FALSE)) -> 0 | H122: =IF(B122=TS2L2ASP,0,VLOOKUP(B122,TS2L2PCI7,7,FALSE)) -> 0
B124: Additional Card for PCIe Slot 8 (Full height) (CPU 2)
B125: None | C125: =IF(B125=TS2L2ASP,"",VLOOKUP(B125,TS2L2PCI8,2,FALSE)) ->  | D125: =IF(B125=TS2L2ASP,"",VLOOKUP(B125,TS2L2PCI8,3,FALSE)) ->  | E125: =IF(B125=TS2L2ASP,"",VLOOKUP(B125,TS2L2PCI8,4,FALSE)) ->  | F125: =IF(B125=TS2L2ASP,"",VLOOKUP(B125,TS2L2PCI8,5,FALSE)) ->  | G125: =IF(B125=TS2L2ASP,0,VLOOKUP(B125,TS2L2PCI8,6,FALSE)) -> 0 | H125: =IF(B125=TS2L2ASP,0,VLOOKUP(B125,TS2L2PCI8,7,FALSE)) -> 0
B127: Bezel
B128: No Bezel | C128: =VLOOKUP($B$128,TS2L2BEZEL,2,FALSE) -> 0 | D128: =VLOOKUP($B$128,TS2L2BEZEL,3,FALSE) -> [350-BBBW] | E128: =VLOOKUP($B$128,TS2L2BEZEL,4,FALSE) -> 0 | F128: =VLOOKUP($B$128,TS2L2BEZEL,5,FALSE) ->  | G128: =VLOOKUP($B$128,TS2L2BEZEL,6,FALSE) -> 0 | H128: =VLOOKUP($B$128,TS2L2BEZEL,7,FALSE) -> 0
B130: Rack Rails
B131: =VLOOKUP($B$128,TS2L2BEZEL,8,FALSE) -> ReadyRails™ Sliding Rails Without Cable Management Arm | C131: =VLOOKUP($B$128,TS2L2BEZEL,9,FALSE) -> 1 | D131: =VLOOKUP($B$128,TS2L2BEZEL,10,FALSE) -> [770-BBBQ] | E131: =VLOOKUP($B$128,TS2L2BEZEL,11,FALSE) -> 0
B133: Internal Optical Drive
B134: No Internal Optical Drive for 12/24 HD Chassis | C134: 1 | D134: [429-AAIQ]
B136: Direct Attach Cable
B137: 5 x Dell Networking, Cable, SFP+ to SFP+, 10GbE, Copper Twinax DAC, 3 Meter A20 | C137: 0 | E137: 470-AAVJ | F137: =IF(C137=0,"","TS2L2-5XDAC10M3") ->  | H137: =125*C137 -> 0
B139: 5 x Dell Networking Cable, 100GbE QSFP28 to QSFP28,Passive Copper DAC, 2 Meter A20 | C139: 0 | E139: 470-ABQG | F139: =IF(C139=0,"","TS2L2-5XDAC100M2") ->  | H139: =940*C139 -> 0
B141: 5 x Dell Networking Cable,100GbE QSFP28 to QSFP28, Passive Copper DAC, 3 Meter A20 | C141: 0 | E141: 470-ABQE | F141: =IF(C141=0,"","TS2L2-5XDAC100M3") ->  | H141: =1125*C141 -> 0
B143: Cavi rj45
B144: Cavo Rete UTP cat. 5e 3 metri | C144: 5 | E144: ROS1403/G | F144: =IF(C144=0,"","TS2L2-3MRJ45") -> TS2L2-3MRJ45 | H144: =2*C144 -> 10
B146: Estenzione di Garanzia
B147: None | C147: =VLOOKUP(B147,TS2L2WARRANTY,2,FALSE) ->  | D147: =VLOOKUP(B147,TS2L2WARRANTY,3,FALSE) ->  | E147: =VLOOKUP(B147,TS2L2WARRANTY,4,FALSE) ->  | F147: =VLOOKUP(B147,TS2L2WARRANTY,5,FALSE) ->  | G147: =VLOOKUP(B147,TS2L2WARRANTY,6,FALSE) -> 0

Sheet Lotto2_R7425-2
B1: TOTALE PRODOTTI CONVENZIONE | C1: =SUM(G13:G153)*$C$10 -> 0 | F1: =IF(I1+I2=0,(C1+C2),"ERRORE VERIFICARE LA CONFIGURAZIONE") -> 0 | I1: =IF(A37="",0,1) -> 0
B2: TOTALE ARTICOLI 20% | C2: =SUM(H13:H153)*$C$10 -> 0 | I2: =IF(A77="",0,1) -> 0
B3: Indicare qui la quantità Server -----> | C3: 0 | F3: =Riepilogo!T6 -> ver. 3.0
A5: POWEREDGE R7425
B10: Quantità: | C10: =C3 -> 0
B12: Modello Server
B13: PowerEdge R7425 Server | C13: 1 | D13: [210-APFK] | F13: TS2L2-SRV | G13: 1849
B15: Configurazione dello chassis
B16: Chassis with up to 24 x 2.5" SAS/SATA Hard Drives for 1&2CPU Configuration, Risers 1, 3, 5, 7 | C16: 1 | D16: [321-BDGE]
B18: Trusted Platform Module
B19: No Trusted Platform Module | C19: 1 | D19: [461-AADZ]
B21: Processore
B22: AMD EPYC 7281 2.1GHz/2.7GHz, 16C/32T, 32M Cache (155W/170W) DDR4-2400/2666 | C22: 1 | D22: [338-BNBZ]
B24: Processore aggiuntivo
B25: No Additional Processor | C25: =VLOOKUP($B$25,TS2L2CPU,2,FALSE) -> 0 | D25: =VLOOKUP($B$25,TS2L2CPU,3,FALSE) -> [374-BBBX] | E25: =VLOOKUP($B$25,TS2L2CPU,4,FALSE) ->  | F25: =VLOOKUP($B$25,TS2L2CPU,5,FALSE) ->  | G25: =VLOOKUP($B$25,TS2L2CPU,6,FALSE) -> 0 | H25: =VLOOKUP($B$25,TS2L2CPU,7,FALSE) -> 
B28: Memoria Totale in GB | C28: 64 (DIMM 32GB)
B30: Capacità di memoria
B31: =IF($C$25=0,VLOOKUP($C$28,TS2L2MEM1CPU,2,FALSE),VLOOKUP($C$28,TS2L2MEM2CPU,2,FALSE)) -> 32GB RDIMM, 2666MT/s, Dual Rank | C31: =IF($C$25=0,VLOOKUP($C$28,TS2L2MEM1CPU,3,FALSE),VLOOKUP($C$28,TS2L2MEM2CPU,3,FALSE)) -> 2 | D31: =IF($C$25=0,VLOOKUP($C$28,TS2L2MEM1CPU,4,FALSE),VLOOKUP($C$28,TS2L2MEM2CPU,4,FALSE)) -> [370-ADNF] | E31: =IF($C$25=0,VLOOKUP($C$28,TS2L2MEM1CPU,5,FALSE),VLOOKUP($C$28,TS2L2MEM2CPU,5,FALSE)) -> A9781929 | F31: =IF($C$25=0,VLOOKUP($C$28,TS2L2MEM1CPU,6,FALSE),VLOOKUP($C$28,TS2L2MEM2CPU,6,FALSE)) ->  | G31: =IF($C$25=0,VLOOKUP($C$28,TS2L2MEM1CPU,7,FALSE),VLOOKUP($C$28,TS2L2MEM2CPU,7,FALSE)) -> 0
B33: Sistema operativo preinstallato
B34: None | C34: =VLOOKUP($B$34,TS2L2OS,2,FALSE) ->  | D34: =VLOOKUP($B$34,TS2L2OS,3,FALSE) -> [619-ABVR] | E34: =VLOOKUP($B$34,TS2L2OS,4,FALSE) -> 0 | F34: =VLOOKUP($B$34,TS2L2OS,5,FALSE) ->  | G34: =VLOOKUP($B$34,TS2L2OS,6,FALSE) -> 0 | H34: =VLOOKUP($B$34,TS2L2OS,7,FALSE) -> 0 | I34: =IF(E34=0,1,0) -> 1
B35: =IF($C$25=1,(VLOOKUP($B$34,TS2L2OS,8,FALSE)),"") ->  | C35: =IF($C$25=1,(VLOOKUP($B$34,TS2L2OS,9,FALSE)),"") ->  | D35: =IF($C$25=1,(VLOOKUP($B$34,TS2L2OS,10,FALSE)),"") ->  | E35: =IF($C$25=1,(VLOOKUP($B$34,TS2L2OS,11,FALSE)),"") ->  | F35: =IF($C$25=1,(VLOOKUP($B$34,TS2L2OS,12,FALSE)),"") ->  | G35: =IF($C$25=1,(VLOOKUP($B$34,TS2L2OS,13,FALSE)),"") ->  | H35: =IF($C$25=1,(VLOOKUP($B$34,TS2L2OS,14,FALSE)),0) -> 0
A37: =IF((I34*I38)=0,"","ERRORE: La selezione di licenze CAL senza il Sistema Operativo Microsoft Windows non è consentita.") ->  | B37: Client Access Licenses
B38: =IF($E$34>0,'Regole di configurazione'!A83,"") ->  | C38: 0 | D38: =IF($E$34>0,'Regole di configurazione'!C83,"") ->  | E38: =IF($E$34>0,'Regole di configurazione'!D83,"") ->  | F38: =IF($E$34>0,'Regole di configurazione'!E83,"") ->  | G38: =IF($E$34>0,'Regole di configurazione'!F83,0)*C38 -> 0 | H38: =IF($E$34>0,'Regole di configurazione'!G83,"") ->  | I38: =C38+C40 -> 0
B40: =IF($E$34>0,'Regole di configurazione'!A84,"") ->  | C40: 0 | D40: =IF($E$34>0,'Regole di configurazione'!C84,"") ->  | E40: =IF($E$34>0,'Regole di configurazione'!D84,"") ->  | F40: =IF($E$34>0,'Regole di configurazione'!E84,"") ->  | G40: =IF($E$34>0,'Regole di configurazione'!F84,0)*C40 -> 0 | H40: =IF($E$34>0,'Regole di configurazione'!G84,"") -> 
B42: Sistema operativo VMware
B43: Vmware vSphere Essentials Plus Kit
B44: None | C44: =VLOOKUP($B$44,TS2L2VMWARE1,2,FALSE) -> 1 | D44: =VLOOKUP($B$44,TS2L2VMWARE1,3,FALSE) ->  | E44: =VLOOKUP($B$44,TS2L2VMWARE1,4,FALSE) ->  | F44: =VLOOKUP($B$44,TS2L2VMWARE1,5,FALSE) ->  | G44: =VLOOKUP($B$44,TS2L2VMWARE1,6,FALSE) -> 0 | H44: =VLOOKUP($B$44,TS2L2VMWARE1,7,FALSE)*C44 -> 0
B45: VMware vCenter Server Standard
B46: None | C46: =VLOOKUP($B$46,TS2L2VMWARE2,2,FALSE) -> 1 | D46: =VLOOKUP($B$46,TS2L2VMWARE2,3,FALSE) ->  | E46: =VLOOKUP($B$46,TS2L2VMWARE2,4,FALSE) ->  | F46: =VLOOKUP($B$46,TS2L2VMWARE2,5,FALSE) ->  | G46: =VLOOKUP($B$46,TS2L2VMWARE2,6,FALSE) -> 0 | H46: =VLOOKUP($B$46,TS2L2VMWARE2,7,FALSE)*C46 -> 0
B47: Vmware vSphere Standard/Enterprise
B48: None | C48: =(VLOOKUP($B$48,TS2L2VMWARE3,2,FALSE))+C25 -> 0 | D48: =VLOOKUP($B$48,TS2L2VMWARE3,3,FALSE) ->  | E48: =VLOOKUP($B$48,TS2L2VMWARE3,4,FALSE) ->  | F48: =VLOOKUP($B$48,TS2L2VMWARE3,5,FALSE) ->  | G48: =VLOOKUP($B$48,TS2L2VMWARE3,6,FALSE) -> 0 | H48: =VLOOKUP($B$48,TS2L2VMWARE3,7,FALSE)*C48 -> 0
B49: VMware vSAN
B50: None | C50: =(VLOOKUP($B$50,TS2L2VMWARE4,2,FALSE))+C25 -> 0 | D50: =VLOOKUP($B$50,TS2L2VMWARE4,3,FALSE) ->  | E50: =VLOOKUP($B$50,TS2L2VMWARE4,4,FALSE) ->  | F50: =VLOOKUP($B$50,TS2L2VMWARE4,5,FALSE) ->  | G50: =VLOOKUP($B$50,TS2L2VMWARE4,6,FALSE) -> 0 | H50: =VLOOKUP($B$50,TS2L2VMWARE4,7,FALSE)*C50 -> 0
B52: Controller Dischi
B53: =B110 -> PERC H730P RAID Controller, 2Gb NV Cache, Adapter, Full Height | C53: =C110 -> 1 | D53: =D110 -> [405-AAMR] | E53: =E110 -> 405-AAMY
B55: Dischi rigidi (numero massimo totale 24)
A56: SAS 10K | B56: 600GB 10K RPM SAS 12Gbps 512n 2.5in Hot-plug Hard Drive | C56: 2 | D56: [400-ASGS] | E56: 400-AUNQ | F56: =IF(C56<=2,"","TS2L2-10K600") ->  | G56: =IF(C56<=2,0,(C56-2)*'Regole di configurazione'!F13) -> 0
B58: 1.2TB 10K RPM SAS 12Gbps 512n 2.5in Hot-plug Hard Drive | C58: 0 | D58: [400-ASHI] | E58: 400-ATJL | F58: =IF(C58=0,"","TS2L2-10K1200") ->  | G58: =C58*'Regole di configurazione'!F14 -> 0
B60: 1.8TB 10K RPM SAS 12Gbps 512e 2.5in Hot-plug Hard Drive | C60: 0 | D60: [400-ARXC] | E60: 400-ATJR | F60: =IF(C60=0,"","TS2L2-10K1800") ->  | H60: =C60*162 -> 0
B62: 2.4TB 10K RPM SAS 12Gbps 512e 2.5in Hot-plug Hard Drive NO VMWARE A20 | C62: 0 | E62: 400-AVBX | F62: =IF(C62=0,"","TS2L2-10K2400") ->  | H62: =C62*389 -> 0
A64: SSD SAS RI | B64: 480GB SSD SAS Mixed Use 12Gbps 2.5in Hot-Plug A20 | C64: 0 | E64: 400-BCOD | F64: =IF(C64=0,"","TS2L2-SSDM480") ->  | G64: =C64*'Regole di configurazione'!F15 -> 0
B66: SSD 400GB SAS WI 12Gbps 2.5in Hot-plug Drive, 10 DWPD A20 | C66: 0 | E66: 400-ATGH | F66: =IF(C66=0,"","TS2L2-SSDW400") ->  | H66: =C66*1155 -> 0
B68: SSD 1600GB SAS WI 12Gb 2.5in Hot-plug Drive, 10 DWPD A20 | C68: 0 | F68: =IF(C68=0,"","TS2L2-SSDW1600") ->  | H68: =C68*1475 -> 0
B70: 960GB SSD SAS Read Intensive 12Gbps 512e 2.5in Hot-plug Drive, PM5-R, 1 DWPD, 1752 TBW | C70: 0 | D70: [400-BBPL] | E70: 400-ATLL | F70: =IF(C70=0,"","TS2L2-SSDR960") ->  | G70: =C70*'Regole di configurazione'!F16 -> 0
B72: 1.92TB SSD SAS Read Intensive 12Gbps 512e 2.5in Hot-plug Drive, PM1633a | C72: 0 | D72: [400-ASFX] | E72: 400-ATND | F72: =IF(C72=0,"","TS2L2-SSDR1920") ->  | H72: =C72*'Regole di configurazione'!F17 -> 0
B74: DISCHI TOTALI | C74: =SUM(C56:C73) -> 2
B76: NOTE sulla configurazione (CAMPO OBBLIGATORIO)
A77: =IF(C74<=24,"","ERRORE: Totale n° di dischi superiore al consentito") ->  | B77: Specificare la configurazione RAID per l'installazione del Sistema Operativo, se richiesto. e/o inserire eventuali note. | E77: Specificare la configurazione RAID per l'installazione del Sistema Operativo, se richiesto. e/o inserire eventuali note. | F77: =IF(B77=E77,"ERRORE: Compilare il campo NOTE","") -> ERRORE: Compilare il campo NOTE
B79: Ventole
B80: 6 Standard Fans | C80: 1 | D80: [384-BBSU]
B82: Alimentatore
B83: Dual, Hot-plug, Redundant Power Supply (1+1), 1100W | C83: 1 | D83: [450-ADWM]
B85: Cavi di alimentazione
B86: Rack Power Cord 2M (C13/C14 10A) | C86: 2 | D86: [450-AADY]
B88: PCIe Riser
B89: Riser Config 1, 2 x8, 1 x16 slots | C89: =VLOOKUP($B$89,TS2L2RISER,2,FALSE) -> 0 | D89: =VLOOKUP($B$89,TS2L2RISER,3,FALSE) -> [330-BBIY] | E89: =VLOOKUP($B$89,TS2L2RISER,4,FALSE) ->  | F89: =VLOOKUP($B$89,TS2L2RISER,5,FALSE) ->  | G89: =VLOOKUP($B$89,TS2L2RISER,6,FALSE) -> 0 | H89: =VLOOKUP($B$89,TS2L2RISER,7,FALSE) -> 0 | I89: =VLOOKUP($B$89,TS2L2RISER,8,FALSE) -> _NORISER
B91: Modulo Doppia SD - Internal Dual SD Module (IDSDM)
B92: None | C92: =VLOOKUP(B92,TS2L2IDSDM,2,FALSE) -> 0 | D92: =VLOOKUP(B92,TS2L2IDSDM,3,FALSE) -> 0 | E92: =VLOOKUP(B92,TS2L2IDSDM,4,FALSE) -> 0 | F92: =VLOOKUP(B92,TS2L2IDSDM,5,FALSE) ->  | G92: =VLOOKUP(B92,TS2L2IDSDM,6,FALSE) -> 0 | H92: =VLOOKUP(B92,TS2L2IDSDM,7,FALSE) -> 0
B94: Embedded Systems Management
B95: iDRAC9,Enterprise | C95: 1 | D95: [385-BBKT]
B100: Network Daughter Card
B101: Broadcom 5720 QP 1Gb Network Daughter Card | C101: 1 | D101: [540-BBBW]
B103: Additional Card for PCIe Slot 1 (Full height) (CPU 1)
B104: None | C104: =VLOOKUP(B104,TS2L2PCI1,2,FALSE) ->  | D104: =VLOOKUP(B104,TS2L2PCI1,3,FALSE) ->  | E104: =VLOOKUP(B104,TS2L2PCI1,4,FALSE) ->  | F104: =VLOOKUP(B104,TS2L2PCI1,5,FALSE) ->  | G104: =VLOOKUP(B104,TS2L2PCI1,6,FALSE) -> 0 | H104: =VLOOKUP(B104,TS2L2PCI1,7,FALSE) -> 0
B106: Additional Card for PCIe Slot 2 (Full height) (CPU 1)
B107: None | C107: =VLOOKUP(B107,TS2L2PCI2,2,FALSE) ->  | D107: =VLOOKUP(B107,TS2L2PCI2,3,FALSE) ->  | E107: =VLOOKUP(B107,TS2L2PCI2,4,FALSE) ->  | F107: =VLOOKUP(B107,TS2L2PCI2,5,FALSE) ->  | G107: =VLOOKUP(B107,TS2L2PCI2,6,FALSE) -> 0 | H107: =VLOOKUP(B107,TS2L2PCI2,7,FALSE) -> 0
B109: Additional Card for PCIe Slot 3 (Full height) (CPU 1)
B110: PERC H730P RAID Controller, 2Gb NV Cache, Adapter, Full Height | C110: =VLOOKUP(B110,TS2L2PCI3,2,FALSE) -> 1 | D110: =VLOOKUP(B110,TS2L2PCI3,3,FALSE) -> [405-AAMR] | E110: =VLOOKUP(B110,TS2L2PCI3,4,FALSE) -> 405-AAMY | F110: =VLOOKUP(B110,TS2L2PCI3,5,FALSE) ->  | G110: =VLOOKUP(B110,TS2L2PCI3,6,FALSE) -> 0 | H110: =VLOOKUP(B110,TS2L2PCI3,7,FALSE) -> 0
B112: Additional Card for PCIe Slot 4 (Full height) (CPU 2)
B113: None | C113: =IF(B113=TS2L2ASP,"",VLOOKUP(B113,TS2L2PCI4,2,FALSE)) ->  | D113: =IF(B113=TS2L2ASP,"",VLOOKUP(B113,TS2L2PCI4,3,FALSE)) ->  | E113: =IF(B113=TS2L2ASP,"",VLOOKUP(B113,TS2L2PCI4,4,FALSE)) ->  | F113: =IF(B113=TS2L2ASP,"",VLOOKUP(B113,TS2L2PCI4,5,FALSE)) ->  | G113: =IF(B113=TS2L2ASP,0,VLOOKUP(B113,TS2L2PCI4,6,FALSE)) -> 0 | H113: =IF(B113=TS2L2ASP,0,VLOOKUP(B113,TS2L2PCI4,7,FALSE)) -> 0
B115: Additional Card for PCIe Slot 5 (Full height) (CPU 2)
B116: None
B118: Additional Card for PCIe Slot 6 (Low height) (CPU 2)
B119: None | C119: =IF(B119=TS2L2ASP,"",VLOOKUP(B119,TS2L2PCI6,2,FALSE)) ->  | D119: =IF(B119=TS2L2ASP,"",VLOOKUP(B119,TS2L2PCI6,3,FALSE)) ->  | E119: =IF(B119=TS2L2ASP,"",VLOOKUP(B119,TS2L2PCI6,4,FALSE)) ->  | F119: =IF(B119=TS2L2ASP,"",VLOOKUP(B119,TS2L2PCI6,5,FALSE)) ->  | G119: =IF(B119=TS2L2ASP,0,VLOOKUP(B119,TS2L2PCI6,6,FALSE)) -> 0 | H119: =IF(B119=TS2L2ASP,0,VLOOKUP(B119,TS2L2PCI6,7,FALSE)) -> 0
B121: Additional Card for PCIe Slot 7 (Full height) (CPU 2) (BOSS controller card Slot)
B122: None | C122: =IF(B122=TS2L2ASP,"",VLOOKUP(B122,TS2L2PCI7,2,FALSE)) ->  | D122: =IF(B122=TS2L2ASP,"",VLOOKUP(B122,TS2L2PCI7,3,FALSE)) ->  | E122: =IF(B122=TS2L2ASP,"",VLOOKUP(B122,TS2L2PCI7,4,FALSE)) ->  | F122: =IF(B122=TS2L2ASP,"",VLOOKUP(B122,TS2L2PCI7,5,FALSE)) ->  | G122: =IF(B122=TS2L2ASP,0,VLOOKUP(B122,TS2L2PCI7,6,FALSE)) -> 0 | H122: =IF(B122=TS2L2ASP,0,VLOOKUP(B122,TS2L2PCI7,7,FALSE)) -> 0
B124: Additional Card for PCIe Slot 8 (Full height) (CPU 2)
B125: None | C125: =IF(B125=TS2L2ASP,"",VLOOKUP(B125,TS2L2PCI8,2,FALSE)) ->  | D125: =IF(B125=TS2L2ASP,"",VLOOKUP(B125,TS2L2PCI8,3,FALSE)) ->  | E125: =IF(B125=TS2L2ASP,"",VLOOKUP(B125,TS2L2PCI8,4,FALSE)) ->  | F125: =IF(B125=TS2L2ASP,"",VLOOKUP(B125,TS2L2PCI8,5,FALSE)) ->  | G125: =IF(B125=TS2L2ASP,0,VLOOKUP(B125,TS2L2PCI8,6,FALSE)) -> 0 | H125: =IF(B125=TS2L2ASP,0,VLOOKUP(B125,TS2L2PCI8,7,FALSE)) -> 0
B127: Bezel
B128: No Bezel | C128: =VLOOKUP($B$128,TS2L2BEZEL,2,FALSE) -> 0 | D128: =VLOOKUP($B$128,TS2L2BEZEL,3,FALSE) -> [350-BBBW] | E128: =VLOOKUP($B$128,TS2L2BEZEL,4,FALSE) -> 0 | F128: =VLOOKUP($B$128,TS2L2BEZEL,5,FALSE) ->  | G128: =VLOOKUP($B$128,TS2L2BEZEL,6,FALSE) -> 0 | H128: =VLOOKUP($B$128,TS2L2BEZEL,7,FALSE) -> 0
B130: Rack Rails
B131: =VLOOKUP($B$128,TS2L2BEZEL,8,FALSE) -> ReadyRails™ Sliding Rails Without Cable Management Arm | C131: =VLOOKUP($B$128,TS2L2BEZEL,9,FALSE) -> 1 | D131: =VLOOKUP($B$128,TS2L2BEZEL,10,FALSE) -> [770-BBBQ] | E131: =VLOOKUP($B$128,TS2L2BEZEL,11,FALSE) -> 0
B133: Internal Optical Drive
B134: No Internal Optical Drive for 12/24 HD Chassis | C134: 1 | D134: [429-AAIQ]
B136: Direct Attach Cable
B137: 5 x Dell Networking, Cable, SFP+ to SFP+, 10GbE, Copper Twinax DAC, 3 Meter A20 | C137: 0 | E137: 470-AAVJ | F137: =IF(C137=0,"","TS2L2-5XDAC10M3") ->  | H137: =125*C137 -> 0
B139: 5 x Dell Networking Cable, 100GbE QSFP28 to QSFP28,Passive Copper DAC, 2 Meter A20 | C139: 0 | E139: 470-ABQG | F139: =IF(C139=0,"","TS2L2-5XDAC100M2") ->  | H139: =940*C139 -> 0
B141: 5 x Dell Networking Cable,100GbE QSFP28 to QSFP28, Passive Copper DAC, 3 Meter A20 | C141: 0 | E141: 470-ABQE | F141: =IF(C141=0,"","TS2L2-5XDAC100M3") ->  | H141: =1125*C141 -> 0
B143: Cavi rj45
B144: Cavo Rete UTP cat. 5e 3 metri | C144: 5 | E144: ROS1403/G | F144: =IF(C144=0,"","TS2L2-3MRJ45") -> TS2L2-3MRJ45 | H144: =2*C144 -> 10
B146: Estenzione di Garanzia
B147: None | C147: =VLOOKUP(B147,TS2L2WARRANTY,2,FALSE) ->  | D147: =VLOOKUP(B147,TS2L2WARRANTY,3,FALSE) ->  | E147: =VLOOKUP(B147,TS2L2WARRANTY,4,FALSE) ->  | F147: =VLOOKUP(B147,TS2L2WARRANTY,5,FALSE) ->  | G147: =VLOOKUP(B147,TS2L2WARRANTY,6,FALSE) -> 0

Sheet Lotto2_R7425-3
B1: TOTALE PRODOTTI CONVENZIONE | C1: =SUM(G13:G148)*$C$10 -> 0 | F1: =IF(I1+I2=0,(C1+C2),"ERRORE VERIFICARE LA CONFIGURAZIONE") -> 0 | I1: =IF(A37="",0,1) -> 0
B2: TOTALE ARTICOLI 20% | C2: =SUM(H13:H148)*$C$10 -> 0 | I2: =IF(A77="",0,1) -> 0
B3: Indicare qui la quantità Server -----> | C3: 0 | F3: =Riepilogo!T6 -> ver. 3.0
A5: POWEREDGE R7425
B10: Quantità: | C10: =C3 -> 0
B12: Modello Server
B13: PowerEdge R7425 Server | C13: 1 | D13: [210-APFK] | F13: TS2L2-SRV | G13: 1849
B15: Configurazione dello chassis
B16: Chassis with up to 24 x 2.5" SAS/SATA Hard Drives for 1&2CPU Configuration, Risers 1, 3, 5, 7 | C16: 1 | D16: [321-BDGE]
B18: Trusted Platform Module
B19: No Trusted Platform Module | C19: 1 | D19: [461-AADZ]
B21: Processore
B22: AMD EPYC 7281 2.1GHz/2.7GHz, 16C/32T, 32M Cache (155W/170W) DDR4-2400/2666 | C22: 1 | D22: [338-BNBZ]
B24: Processore aggiuntivo
B25: No Additional Processor | C25: =VLOOKUP($B$25,TS2L2CPU,2,FALSE) -> 0 | D25: =VLOOKUP($B$25,TS2L2CPU,3,FALSE) -> [374-BBBX] | E25: =VLOOKUP($B$25,TS2L2CPU,4,FALSE) ->  | F25: =VLOOKUP($B$25,TS2L2CPU,5,FALSE) ->  | G25: =VLOOKUP($B$25,TS2L2CPU,6,FALSE) -> 0 | H25: =VLOOKUP($B$25,TS2L2CPU,7,FALSE) -> 
B28: Memoria Totale in GB | C28: 64 (DIMM 32GB)
B30: Capacità di memoria
B31: =IF($C$25=0,VLOOKUP($C$28,TS2L2MEM1CPU,2,FALSE),VLOOKUP($C$28,TS2L2MEM2CPU,2,FALSE)) -> 32GB RDIMM, 2666MT/s, Dual Rank | C31: =IF($C$25=0,VLOOKUP($C$28,TS2L2MEM1CPU,3,FALSE),VLOOKUP($C$28,TS2L2MEM2CPU,3,FALSE)) -> 2 | D31: =IF($C$25=0,VLOOKUP($C$28,TS2L2MEM1CPU,4,FALSE),VLOOKUP($C$28,TS2L2MEM2CPU,4,FALSE)) -> [370-ADNF] | E31: =IF($C$25=0,VLOOKUP($C$28,TS2L2MEM1CPU,5,FALSE),VLOOKUP($C$28,TS2L2MEM2CPU,5,FALSE)) -> A9781929 | F31: =IF($C$25=0,VLOOKUP($C$28,TS2L2MEM1CPU,6,FALSE),VLOOKUP($C$28,TS2L2MEM2CPU,6,FALSE)) ->  | G31: =IF($C$25=0,VLOOKUP($C$28,TS2L2MEM1CPU,7,FALSE),VLOOKUP($C$28,TS2L2MEM2CPU,7,FALSE)) -> 0
B33: Sistema operativo preinstallato
B34: None | C34: =VLOOKUP($B$34,TS2L2OS,2,FALSE) ->  | D34: =VLOOKUP($B$34,TS2L2OS,3,FALSE) -> [619-ABVR] | E34: =VLOOKUP($B$34,TS2L2OS,4,FALSE) -> 0 | F34: =VLOOKUP($B$34,TS2L2OS,5,FALSE) ->  | G34: =VLOOKUP($B$34,TS2L2OS,6,FALSE) -> 0 | H34: =VLOOKUP($B$34,TS2L2OS,7,FALSE) -> 0 | I34: =IF(E34=0,1,0) -> 1
B35: =IF($C$25=1,(VLOOKUP($B$34,TS2L2OS,8,FALSE)),"") ->  | C35: =IF($C$25=1,(VLOOKUP($B$34,TS2L2OS,9,FALSE)),"") ->  | D35: =IF($C$25=1,(VLOOKUP($B$34,TS2L2OS,10,FALSE)),"") ->  | E35: =IF($C$25=1,(VLOOKUP($B$34,TS2L2OS,11,FALSE)),"") ->  | F35: =IF($C$25=1,(VLOOKUP($B$34,TS2L2OS,12,FALSE)),"") ->  | G35: =IF($C$25=1,(VLOOKUP($B$34,TS2L2OS,13,FALSE)),"") ->  | H35: =IF($C$25=1,(VLOOKUP($B$34,TS2L2OS,14,FALSE)),0) -> 0
A37: =IF((I34*I38)=0,"","ERRORE: La selezione di licenze CAL senza il Sistema Operativo Microsoft Windows non è consentita.") ->  | B37: Client Access Licenses
B38: =IF($E$34>0,'Regole di configurazione'!A83,"") ->  | C38: 0 | D38: =IF($E$34>0,'Regole di configurazione'!C83,"") ->  | E38: =IF($E$34>0,'Regole di configurazione'!D83,"") ->  | F38: =IF($E$34>0,'Regole di configurazione'!E83,"") ->  | G38: =IF($E$34>0,'Regole di configurazione'!F83,0)*C38 -> 0 | H38: =IF($E$34>0,'Regole di configurazione'!G83,"") ->  | I38: =C38+C40 -> 0
B40: =IF($E$34>0,'Regole di configurazione'!A84,"") ->  | C40: 0 | D40: =IF($E$34>0,'Regole di configurazione'!C84,"") ->  | E40: =IF($E$34>0,'Regole di configurazione'!D84,"") ->  | F40: =IF($E$34>0,'Regole di configurazione'!E84,"") ->  | G40: =IF($E$34>0,'Regole di configurazione'!F84,0)*C40 -> 0 | H40: =IF($E$34>0,'Regole di configurazione'!G84,"") -> 
B42: Sistema operativo VMware
B43: Vmware vSphere Essentials Plus Kit
B44: None | C44: =VLOOKUP($B$44,TS2L2VMWARE1,2,FALSE) -> 1 | D44: =VLOOKUP($B$44,TS2L2VMWARE1,3,FALSE) ->  | E44: =VLOOKUP($B$44,TS2L2VMWARE1,4,FALSE) ->  | F44: =VLOOKUP($B$44,TS2L2VMWARE1,5,FALSE) ->  | G44: =VLOOKUP($B$44,TS2L2VMWARE1,6,FALSE) -> 0 | H44: =VLOOKUP($B$44,TS2L2VMWARE1,7,FALSE)*C44 -> 0
B45: VMware vCenter Server Standard
B46: None | C46: =VLOOKUP($B$46,TS2L2VMWARE2,2,FALSE) -> 1 | D46: =VLOOKUP($B$46,TS2L2VMWARE2,3,FALSE) ->  | E46: =VLOOKUP($B$46,TS2L2VMWARE2,4,FALSE) ->  | F46: =VLOOKUP($B$46,TS2L2VMWARE2,5,FALSE) ->  | G46: =VLOOKUP($B$46,TS2L2VMWARE2,6,FALSE) -> 0 | H46: =VLOOKUP($B$46,TS2L2VMWARE2,7,FALSE)*C46 -> 0
B47: Vmware vSphere Standard/Enterprise
B48: None | C48: =(VLOOKUP($B$48,TS2L2VMWARE3,2,FALSE))+C25 -> 0 | D48: =VLOOKUP($B$48,TS2L2VMWARE3,3,FALSE) ->  | E48: =VLOOKUP($B$48,TS2L2VMWARE3,4,FALSE) ->  | F48: =VLOOKUP($B$48,TS2L2VMWARE3,5,FALSE) ->  | G48: =VLOOKUP($B$48,TS2L2VMWARE3,6,FALSE) -> 0 | H48: =VLOOKUP($B$48,TS2L2VMWARE3,7,FALSE)*C48 -> 0
B49: VMware vSAN
B50: None | C50: =(VLOOKUP($B$50,TS2L2VMWARE4,2,FALSE))+C25 -> 0 | D50: =VLOOKUP($B$50,TS2L2VMWARE4,3,FALSE) ->  | E50: =VLOOKUP($B$50,TS2L2VMWARE4,4,FALSE) ->  | F50: =VLOOKUP($B$50,TS2L2VMWARE4,5,FALSE) ->  | G50: =VLOOKUP($B$50,TS2L2VMWARE4,6,FALSE) -> 0 | H50: =VLOOKUP($B$50,TS2L2VMWARE4,7,FALSE)*C50 -> 0
B52: Controller Dischi
B53: =B110 -> PERC H730P RAID Controller, 2Gb NV Cache, Adapter, Full Height | C53: =C110 -> 1 | D53: =D110 -> [405-AAMR] | E53: =E110 -> 405-AAMY
B55: Dischi rigidi (numero massimo totale 24)
A56: SAS 10K | B56: 600GB 10K RPM SAS 12Gbps 512n 2.5in Hot-plug Hard Drive | C56: 2 | D56: [400-ASGS] | E56: 400-AUNQ | F56: =IF(C56<=2,"","TS2L2-10K600") ->  | G56: =IF(C56<=2,0,(C56-2)*'Regole di configurazione'!F13) -> 0
B58: 1.2TB 10K RPM SAS 12Gbps 512n 2.5in Hot-plug Hard Drive | C58: 0 | D58: [400-ASHI] | E58: 400-ATJL | F58: =IF(C58=0,"","TS2L2-10K1200") ->  | G58: =C58*'Regole di configurazione'!F14 -> 0
B60: 1.8TB 10K RPM SAS 12Gbps 512e 2.5in Hot-plug Hard Drive | C60: 0 | D60: [400-ARXC] | E60: 400-ATJR | F60: =IF(C60=0,"","TS2L2-10K1800") ->  | H60: =C60*162 -> 0
B62: 2.4TB 10K RPM SAS 12Gbps 512e 2.5in Hot-plug Hard Drive NO VMWARE A20 | C62: 0 | E62: 400-AVBX | F62: =IF(C62=0,"","TS2L2-10K2400") ->  | H62: =C62*389 -> 0
A64: SSD SAS RI | B64: 480GB SSD SAS Mixed Use 12Gbps 2.5in Hot-Plug A20 | C64: 0 | E64: 400-BCOD | F64: =IF(C64=0,"","TS2L2-SSDM480") ->  | G64: =C64*'Regole di configurazione'!F15 -> 0
B66: SSD 400GB SAS WI 12Gbps 2.5in Hot-plug Drive, 10 DWPD A20 | C66: 0 | E66: 400-ATGH | F66: =IF(C66=0,"","TS2L2-SSDW400") ->  | H66: =C66*1155 -> 0
B68: SSD 1600GB SAS WI 12Gb 2.5in Hot-plug Drive, 10 DWPD A20 | C68: 0 | F68: =IF(C68=0,"","TS2L2-SSDW1600") ->  | H68: =C68*1475 -> 0
B70: 960GB SSD SAS Read Intensive 12Gbps 512e 2.5in Hot-plug Drive, PM5-R, 1 DWPD, 1752 TBW | C70: 0 | D70: [400-BBPL] | E70: 400-ATLL | F70: =IF(C70=0,"","TS2L2-SSDR960") ->  | G70: =C70*'Regole di configurazione'!F16 -> 0
B72: 1.92TB SSD SAS Read Intensive 12Gbps 512e 2.5in Hot-plug Drive, PM1633a | C72: 0 | D72: [400-ASFX] | E72: 400-ATND | F72: =IF(C72=0,"","TS2L2-SSDR1920") ->  | H72: =C72*'Regole di configurazione'!F17 -> 0
B74: DISCHI TOTALI | C74: =SUM(C56:C73) -> 2
B76: NOTE sulla configurazione (CAMPO OBBLIGATORIO)
A77: =IF(C74<=24,"","ERRORE: Totale n° di dischi superiore al consentito") ->  | B77: Specificare la configurazione RAID per l'installazione del Sistema Operativo, se richiesto. e/o inserire eventuali note. | E77: Specificare la configurazione RAID per l'installazione del Sistema Operativo, se richiesto. e/o inserire eventuali note. | F77: =IF(B77=E77,"ERRORE: Compilare il campo NOTE","") -> ERRORE: Compilare il campo NOTE
B79: Ventole
B80: 6 Standard Fans | C80: 1 | D80: [384-BBSU]
B82: Alimentatore
B83: Dual, Hot-plug, Redundant Power Supply (1+1), 1100W | C83: 1 | D83: [450-ADWM]
B85: Cavi di alimentazione
B86: Rack Power Cord 2M (C13/C14 10A) | C86: 2 | D86: [450-AADY]
B88: PCIe Riser
B89: Riser Config 1, 2 x8, 1 x16 slots | C89: =VLOOKUP($B$89,TS2L2RISER,2,FALSE) -> 0 | D89: =VLOOKUP($B$89,TS2L2RISER,3,FALSE) -> [330-BBIY] | E89: =VLOOKUP($B$89,TS2L2RISER,4,FALSE) ->  | F89: =VLOOKUP($B$89,TS2L2RISER,5,FALSE) ->  | G89: =VLOOKUP($B$89,TS2L2RISER,6,FALSE) -> 0 | H89: =VLOOKUP($B$89,TS2L2RISER,7,FALSE) -> 0 | I89: =VLOOKUP($B$89,TS2L2RISER,8,FALSE) -> _NORISER
B91: Modulo Doppia SD - Internal Dual SD Module (IDSDM)
B92: None | C92: =VLOOKUP(B92,TS2L2IDSDM,2,FALSE) -> 0 | D92: =VLOOKUP(B92,TS2L2IDSDM,3,FALSE) -> 0 | E92: =VLOOKUP(B92,TS2L2IDSDM,4,FALSE) -> 0 | F92: =VLOOKUP(B92,TS2L2IDSDM,5,FALSE) ->  | G92: =VLOOKUP(B92,TS2L2IDSDM,6,FALSE) -> 0 | H92: =VLOOKUP(B92,TS2L2IDSDM,7,FALSE) -> 0
B94: Embedded Systems Management
B95: iDRAC9,Enterprise | C95: 1 | D95: [385-BBKT]
B100: Network Daughter Card
B101: Broadcom 5720 QP 1Gb Network Daughter Card | C101: 1 | D101: [540-BBBW]
B103: Additional Card for PCIe Slot 1 (Full height) (CPU 1)
B104: None | C104: =VLOOKUP(B104,TS2L2PCI1,2,FALSE) ->  | D104: =VLOOKUP(B104,TS2L2PCI1,3,FALSE) ->  | E104: =VLOOKUP(B104,TS2L2PCI1,4,FALSE) ->  | F104: =VLOOKUP(B104,TS2L2PCI1,5,FALSE) ->  | G104: =VLOOKUP(B104,TS2L2PCI1,6,FALSE) -> 0 | H104: =VLOOKUP(B104,TS2L2PCI1,7,FALSE) -> 0
B106: Additional Card for PCIe Slot 2 (Full height) (CPU 1)
B107: None | C107: =VLOOKUP(B107,TS2L2PCI2,2,FALSE) ->  | D107: =VLOOKUP(B107,TS2L2PCI2,3,FALSE) ->  | E107: =VLOOKUP(B107,TS2L2PCI2,4,FALSE) ->  | F107: =VLOOKUP(B107,TS2L2PCI2,5,FALSE) ->  | G107: =VLOOKUP(B107,TS2L2PCI2,6,FALSE) -> 0 | H107: =VLOOKUP(B107,TS2L2PCI2,7,FALSE) -> 0
B109: Additional Card for PCIe Slot 3 (Full height) (CPU 1)
B110: PERC H730P RAID Controller, 2Gb NV Cache, Adapter, Full Height | C110: =VLOOKUP(B110,TS2L2PCI3,2,FALSE) -> 1 | D110: =VLOOKUP(B110,TS2L2PCI3,3,FALSE) -> [405-AAMR] | E110: =VLOOKUP(B110,TS2L2PCI3,4,FALSE) -> 405-AAMY | F110: =VLOOKUP(B110,TS2L2PCI3,5,FALSE) ->  | G110: =VLOOKUP(B110,TS2L2PCI3,6,FALSE) -> 0 | H110: =VLOOKUP(B110,TS2L2PCI3,7,FALSE) -> 0
B112: Additional Card for PCIe Slot 4 (Full height) (CPU 2)
B113: None | C113: =IF(B113=TS2L2ASP,"",VLOOKUP(B113,TS2L2PCI4,2,FALSE)) ->  | D113: =IF(B113=TS2L2ASP,"",VLOOKUP(B113,TS2L2PCI4,3,FALSE)) ->  | E113: =IF(B113=TS2L2ASP,"",VLOOKUP(B113,TS2L2PCI4,4,FALSE)) ->  | F113: =IF(B113=TS2L2ASP,"",VLOOKUP(B113,TS2L2PCI4,5,FALSE)) ->  | G113: =IF(B113=TS2L2ASP,0,VLOOKUP(B113,TS2L2PCI4,6,FALSE)) -> 0 | H113: =IF(B113=TS2L2ASP,0,VLOOKUP(B113,TS2L2PCI4,7,FALSE)) -> 0
B115: Additional Card for PCIe Slot 5 (Full height) (CPU 2)
B116: None
B118: Additional Card for PCIe Slot 6 (Low height) (CPU 2)
B119: None | C119: =IF(B119=TS2L2ASP,"",VLOOKUP(B119,TS2L2PCI6,2,FALSE)) ->  | D119: =IF(B119=TS2L2ASP,"",VLOOKUP(B119,TS2L2PCI6,3,FALSE)) ->  | E119: =IF(B119=TS2L2ASP,"",VLOOKUP(B119,TS2L2PCI6,4,FALSE)) ->  | F119: =IF(B119=TS2L2ASP,"",VLOOKUP(B119,TS2L2PCI6,5,FALSE)) ->  | G119: =IF(B119=TS2L2ASP,0,VLOOKUP(B119,TS2L2PCI6,6,FALSE)) -> 0 | H119: =IF(B119=TS2L2ASP,0,VLOOKUP(B119,TS2L2PCI6,7,FALSE)) -> 0
B121: Additional Card for PCIe Slot 7 (Full height) (CPU 2) (BOSS controller card Slot)
B122: None | C122: =IF(B122=TS2L2ASP,"",VLOOKUP(B122,TS2L2PCI7,2,FALSE)) ->  | D122: =IF(B122=TS2L2ASP,"",VLOOKUP(B122,TS2L2PCI7,3,FALSE)) ->  | E122: =IF(B122=TS2L2ASP,"",VLOOKUP(B122,TS2L2PCI7,4,FALSE)) ->  | F122: =IF(B122=TS2L2ASP,"",VLOOKUP(B122,TS2L2PCI7,5,FALSE)) ->  | G122: =IF(B122=TS2L2ASP,0,VLOOKUP(B122,TS2L2PCI7,6,FALSE)) -> 0 | H122: =IF(B122=TS2L2ASP,0,VLOOKUP(B122,TS2L2PCI7,7,FALSE)) -> 0
B124: Additional Card for PCIe Slot 8 (Full height) (CPU 2)
B125: None | C125: =IF(B125=TS2L2ASP,"",VLOOKUP(B125,TS2L2PCI8,2,FALSE)) ->  | D125: =IF(B125=TS2L2ASP,"",VLOOKUP(B125,TS2L2PCI8,3,FALSE)) ->  | E125: =IF(B125=TS2L2ASP,"",VLOOKUP(B125,TS2L2PCI8,4,FALSE)) ->  | F125: =IF(B125=TS2L2ASP,"",VLOOKUP(B125,TS2L2PCI8,5,FALSE)) ->  | G125: =IF(B125=TS2L2ASP,0,VLOOKUP(B125,TS2L2PCI8,6,FALSE)) -> 0 | H125: =IF(B125=TS2L2ASP,0,VLOOKUP(B125,TS2L2PCI8,7,FALSE)) -> 0
B127: Bezel
B128: No Bezel | C128: =VLOOKUP($B$128,TS2L2BEZEL,2,FALSE) -> 0 | D128: =VLOOKUP($B$128,TS2L2BEZEL,3,FALSE) -> [350-BBBW] | E128: =VLOOKUP($B$128,TS2L2BEZEL,4,FALSE) -> 0 | F128: =VLOOKUP($B$128,TS2L2BEZEL,5,FALSE) ->  | G128: =VLOOKUP($B$128,TS2L2BEZEL,6,FALSE) -> 0 | H128: =VLOOKUP($B$128,TS2L2BEZEL,7,FALSE) -> 0
B130: Rack Rails
B131: =VLOOKUP($B$128,TS2L2BEZEL,8,FALSE) -> ReadyRails™ Sliding Rails Without Cable Management Arm | C131: =VLOOKUP($B$128,TS2L2BEZEL,9,FALSE) -> 1 | D131: =VLOOKUP($B$128,TS2L2BEZEL,10,FALSE) -> [770-BBBQ] | E131: =VLOOKUP($B$128,TS2L2BEZEL,11,FALSE) -> 0
B133: Internal Optical Drive
B134: No Internal Optical Drive for 12/24 HD Chassis | C134: 1 | D134: [429-AAIQ]
B136: Direct Attach Cable
B137: 5 x Dell Networking, Cable, SFP+ to SFP+, 10GbE, Copper Twinax DAC, 3 Meter A20 | C137: 0 | E137: 470-AAVJ | F137: =IF(C137=0,"","TS2L2-5XDAC10M3") ->  | H137: =125*C137 -> 0
B139: 5 x Dell Networking Cable, 100GbE QSFP28 to QSFP28,Passive Copper DAC, 2 Meter A20 | C139: 0 | E139: 470-ABQG | F139: =IF(C139=0,"","TS2L2-5XDAC100M2") ->  | H139: =940*C139 -> 0
B141: 5 x Dell Networking Cable,100GbE QSFP28 to QSFP28, Passive Copper DAC, 3 Meter A20 | C141: 0 | E141: 470-ABQE | F141: =IF(C141=0,"","TS2L2-5XDAC100M3") ->  | H141: =1125*C141 -> 0
B143: Cavi rj45
B144: Cavo Rete UTP cat. 5e 3 metri | C144: 5 | E144: ROS1403/G | F144: =IF(C144=0,"","TS2L2-3MRJ45") -> TS2L2-3MRJ45 | H144: =2*C144 -> 10
B146: Estenzione di Garanzia
B147: None | C147: =VLOOKUP(B147,TS2L2WARRANTY,2,FALSE) ->  | D147: =VLOOKUP(B147,TS2L2WARRANTY,3,FALSE) ->  | E147: =VLOOKUP(B147,TS2L2WARRANTY,4,FALSE) ->  | F147: =VLOOKUP(B147,TS2L2WARRANTY,5,FALSE) ->  | G147: =VLOOKUP(B147,TS2L2WARRANTY,6,FALSE) -> 0

Sheet Lotto3_R7425(GPU) (hidden)
B1: TOTALE PRODOTTI CONVENZIONE | C1: =SUM(G12:G185)*$C$9 -> 0 | F1: =IF(I1+I2=0,(C1+C2),"ERRORE VERIFICARE LA CONFIGURAZIONE") ->  | I1: =IF(A46="",0,1) -> 0
B2: TOTALE ARTICOLI 20% | C2: =SUM(H12:H185)*$C$9 ->  | I2: =IF(A80="",0,1) -> 0
A4: POWEREDGE R7425 GPU Ready (3GPU max)
B9: Quantità: | C9: 0
B11: Modello Server
B12: PowerEdge R7425 Server | C12: 1 | D12: [210-APFK] | F12: TS2L3-SRV | G12: 2087
B14: Configurazione dello chassis
B15: Chassis w/ up to 24 x 2.5" SAS/SATA Hard Drives for 2CPU Configuration with GPU capable, Risers 4,6 | C15: 1 | D15: [321-BDWP] | F15: TS2L3-KITGPU | H15: ='Codici&PrezzixRiepilogo'!#REF! -> 
B17: Trusted Platform Module
B18: No Trusted Platform Module | C18: 1 | D18: [461-AADZ]
B20: Processore
B21: AMD EPYC 7281 2.1GHz/2.7GHz, 16C/32T, 32M Cache (155W/170W) DDR4-2400/2666 | C21: 1 | D21: [338-BNBZ]
B23: Processore aggiuntivo
B24: AMD EPYC 7281 2.1GHz/2.7GHz, 16C/32T, 32M Cache (155W/170W) DDR4-2400/2666 | C24: =VLOOKUP($B$24,TS2L2CPU,2,FALSE) -> 1 | D24: =VLOOKUP($B$24,TS2L2CPU,3,FALSE) -> 0 | E24: =VLOOKUP($B$24,TS2L2CPU,4,FALSE) -> 338-BNKP | F24: =VLOOKUP($B$24,TS2L2CPU,5,FALSE) -> TS2L2-CPU | G24: =VLOOKUP($B$24,TS2L2CPU,6,FALSE) -> 491 | H24: =VLOOKUP($B$24,TS2L2CPU,7,FALSE) -> 
B26: Configurazione Termica del Processore
B27: =VLOOKUP($B$24,TS2L2CPU,8,FALSE) -> Standard Heatsinks, below 180W CPU | C27: =VLOOKUP($B$24,TS2L2CPU,9,FALSE) -> 2 | D27: =VLOOKUP($B$24,TS2L2CPU,10,FALSE) -> [412-AALN] | E27: =VLOOKUP($B$24,TS2L2CPU,11,FALSE) -> 412-AALJ
B28: =VLOOKUP($B$24,TS2L2CPU,12,FALSE) ->  | C28: =VLOOKUP($B$24,TS2L2CPU,13,FALSE) ->  | D28: =VLOOKUP($B$24,TS2L2CPU,14,FALSE) -> 
B31: Memoria Totale in GB | C31: 64 (DIMM 32GB)
B33: Tipo di configurazione memoria
B34: Performance Optimized | C34: 1 | D34: [370-AAIP]
B36: Tipo e velocità della memoria DIMM
B37: =IF($C$24=0,VLOOKUP($C$31,TS2L2MEM1CPU,9,FALSE),VLOOKUP($C$31,TS2L2MEM2CPU,9,FALSE)) -> 2666MT/s RDIMMs | C37: =IF($C$24=0,VLOOKUP($C$31,TS2L2MEM1CPU,10,FALSE),VLOOKUP($C$31,TS2L2MEM2CPU,10,FALSE)) -> 1 | D37: =IF($C$24=0,VLOOKUP($C$31,TS2L2MEM1CPU,11,FALSE),VLOOKUP($C$31,TS2L2MEM2CPU,11,FALSE)) -> [370-ADNU]
B39: Capacità di memoria
B40: =IF($C$24=0,VLOOKUP($C$31,TS2L2MEM1CPU,2,FALSE),VLOOKUP($C$31,TS2L2MEM2CPU,2,FALSE)) -> 32GB RDIMM, 2666MT/s, Dual Rank | C40: =IF($C$24=0,VLOOKUP($C$31,TS2L2MEM1CPU,3,FALSE),VLOOKUP($C$31,TS2L2MEM2CPU,3,FALSE)) -> 2 | D40: =IF($C$24=0,VLOOKUP($C$31,TS2L2MEM1CPU,4,FALSE),VLOOKUP($C$31,TS2L2MEM2CPU,4,FALSE)) -> [370-ADNF] | E40: =IF($C$24=0,VLOOKUP($C$31,TS2L2MEM1CPU,5,FALSE),VLOOKUP($C$31,TS2L2MEM2CPU,5,FALSE)) -> A9781929 | F40: =IF($C$24=0,VLOOKUP($C$31,TS2L2MEM1CPU,6,FALSE),VLOOKUP($C$31,TS2L2MEM2CPU,6,FALSE)) ->  | G40: =IF($C$24=0,VLOOKUP($C$31,TS2L2MEM1CPU,7,FALSE),VLOOKUP($C$31,TS2L2MEM2CPU,7,FALSE)) -> 0
B42: Sistema operativo preinstallato
B43: None | C43: =VLOOKUP($B$43,TS2L2OS,2,FALSE) ->  | D43: =VLOOKUP($B$43,TS2L2OS,3,FALSE) -> [619-ABVR] | E43: =VLOOKUP($B$43,TS2L2OS,4,FALSE) -> 0 | F43: =VLOOKUP($B$43,TS2L2OS,5,FALSE) ->  | G43: =VLOOKUP($B$43,TS2L2OS,6,FALSE) -> 0 | H43: =VLOOKUP($B$43,TS2L2OS,7,FALSE) -> 0 | I43: =IF(E43=0,1,0) -> 1
B44: =IF(C24=0,"",IF(E43>0,'Regole di configurazione'!A85,"")) ->  | C44: =IF(B44="",0,8) -> 0 | D44: =IF($B$44="","",'Regole di configurazione'!C85) ->  | E44: =IF($B$44="","",'Regole di configurazione'!D85) ->  | F44: =IF($B$44="","",'Regole di configurazione'!E85) ->  | G44: =IF($B$44="",0,'Regole di configurazione'!F85)*C44 -> 0 | H44: =IF($B$44="","",'Regole di configurazione'!G85) -> 
A46: =IF((I43*I47)=0,"","ERRORE: La selezione di licenze CAL senza il Sistema Operativo Microsoft Windows non è consentita.") ->  | B46: Client Access Licenses
B47: =IF($E$43>0,'Regole di configurazione'!A83,"") ->  | C47: 0 | D47: =IF($E$43>0,'Regole di configurazione'!C83,"") ->  | E47: =IF($E$43>0,'Regole di configurazione'!D83,"") ->  | F47: =IF($E$43>0,'Regole di configurazione'!E83,"") ->  | G47: =IF($E$43>0,'Regole di configurazione'!F83,0)*C47 -> 0 | H47: =IF($E$43>0,'Regole di configurazione'!G83,"") ->  | I47: =C47+C49 -> 0
B49: =IF($E$43>0,'Regole di configurazione'!A84,"") ->  | C49: 0 | D49: =IF($E$43>0,'Regole di configurazione'!C84,"") ->  | E49: =IF($E$43>0,'Regole di configurazione'!D84,"") ->  | F49: =IF($E$43>0,'Regole di configurazione'!E84,"") ->  | G49: =IF($E$43>0,'Regole di configurazione'!F84,0)*C49 -> 0 | H49: =IF($E$43>0,'Regole di configurazione'!G84,"") -> 
B51: OS Media Kits
B52: No Media Required | C52: 1 | D52: [605-BBFN]
B54: RAID Configuration
B55: C7, Unconfigured RAID for HDDs or SSDs (Mixed Drive Types Allowed) | C55: 1 | D55: [780-BCDS]
B57: Controller Dischi
B58: PERC H730P RAID Controller, 2Gb NV Cache, Adapter, Low Profile | C58: 1 | D58: [405-AAOE]
B60: Dischi rigidi (numero massimo totale 24)
A61: SAS 10K | B61: 600GB 10K RPM SAS 12Gbps 512n 2.5in Hot-plug Hard Drive | C61: 2 | D61: [400-ASGS] | E61: 400-AUNQ | F61: =IF(C61<=2,"","TS2L3-10K600") ->  | G61: =IF(C61<=2,0,(C61-2)*'Regole di configurazione'!F13) -> 0
B63: 1.2TB 10K RPM SAS 12Gbps 512n 2.5in Hot-plug Hard Drive | C63: 0 | D63: [400-ASHI] | E63: 400-ATJL | F63: =IF(C63=0,"","TS2L3-10K1800") ->  | G63: =C63*'Regole di configurazione'!F14 -> 0
B65: 1.8TB 10K RPM SAS 12Gbps 512e 2.5in Hot-plug Hard Drive | C65: 0 | D65: [400-ARXC] | E65: 400-ATJR | F65: =IF(C65=0,"","TS2L3-10K1200") ->  | G65: =C65*'Regole di configurazione'!G44 -> 0
A67: SSD SAS RI | B67: 960GB SSD SAS Read Intensive 12Gbps 512e 2.5in Hot-plug Drive, PM5-R, 1 DWPD, 1752 TBW | C67: 0 | D67: [400-BBPL] | E67: 400-ATLL | F67: =IF(C67=0,"","TS2L3-SSDR960") ->  | G67: =C67*'Regole di configurazione'!F16 -> 0
B69: 1.92TB SSD SAS Read Intensive 12Gbps 512e 2.5in Hot-plug Drive, PM1633a | C69: 0 | D69: [400-ASFX] | E69: 400-ATND | F69: =IF(C69=0,"","TS2L3-SSDR1920") ->  | G69: =C69*'Regole di configurazione'!F17 -> 0
B71: DISCHI TOTALI | C71: =SUM(C61:C70) -> 2
B73: Impostazioni del BIOS per la gestione dell'alimentazione
B74: Performance BIOS Setting | C74: 1 | D74: [384-BBBL]
B76: Advanced System Configurations
B77: UEFI BIOS Boot Mode with GPT Partition | C77: 1 | D77: [800-BBDM]
B79: NOTE sulla configurazione
A80: =IF(C71<=24,"","ERRORE: Totale n° di dischi superiore al consentito") ->  | B80: Inserire eventuali note sulla configurazione
B82: Ventole
B83: 6 Performance Fans | C83: 1 | D83: [384-BBST]
B85: Alimentatore
B86: Dual, Hot-plug, Power Supply, 2000W, C19/C20 Power Cord Required | C86: 1 | D86: [450-AENU]
B88: Cavi di alimentazione
B89: C19 to C20, PDU Style, 2.5M Power Cord | C89: 2 | D89: [450-AEJI]
B91: PCIe Riser
B92: Riser Config 4, 2 x8, 4 x16 slots | C92: =VLOOKUP($B$24,TS2L2CPU,16,FALSE) -> 1 | D92: [330-BBJC] | E92: 330-BBLX 330-BBMK 330-BBLS
B94: Motherboard
B95: PowerEdge R7425 Motherboard | C95: 1 | D95: [329-BDSW]
B97: Embedded Systems Management
B98: iDRAC9,Enterprise | C98: 1 | D98: [385-BBKT]
B103: Network Daughter Card
B104: Broadcom 5720 QP 1Gb Network Daughter Card | C104: 1 | D104: [540-BBBW]
B106: Additional Card for PCIe Slot 1 (Full height) (CPU 1) GPU
B107: None | C107: =VLOOKUP(B107,TS2L2PCIGPU,2,FALSE) ->  | D107: =VLOOKUP(B107,TS2L2PCIGPU,3,FALSE) ->  | E107: =VLOOKUP(B107,TS2L2PCIGPU,4,FALSE) ->  | F107: =VLOOKUP(B107,TS2L2PCIGPU,5,FALSE) ->  | G107: =VLOOKUP(B107,TS2L2PCIGPU,6,FALSE) -> 0 | H107: =VLOOKUP(B107,TS2L2PCIGPU,7,FALSE) -> 0
B109: Additional Card for PCIe Slot 2 (Full height) (CPU 1)
B110: None | G110: =VLOOKUP(B110,TS2L2PCI2,6,FALSE) -> 0 | H110: =VLOOKUP(B110,TS2L2PCI2,7,FALSE) -> 0
B112: Additional Card for PCIe Slot 3 (Full height) (CPU 1)
B113: None | C113: =VLOOKUP(B113,TS2L2PCI2,2,FALSE) ->  | D113: =VLOOKUP(B113,TS2L2PCI2,3,FALSE) ->  | E113: =VLOOKUP(B113,TS2L2PCI2,4,FALSE) ->  | F113: =VLOOKUP(B113,TS2L2PCI2,5,FALSE) ->  | G113: =VLOOKUP(B113,TS2L2PCI2,6,FALSE) -> 0 | H113: =VLOOKUP(B113,TS2L2PCI2,7,FALSE) -> 0
B115: Additional Card for PCIe Slot 4 (Full height) (CPU 2) GPU
B116: None | C116: =IF(B116=TS2L2ASP,"",VLOOKUP(B116,TS2L2PCIGPU,2,FALSE)) ->  | D116: =IF(B116=TS2L2ASP,"",VLOOKUP(B116,TS2L2PCIGPU,3,FALSE)) ->  | E116: =IF(B116=TS2L2ASP,"",VLOOKUP(B116,TS2L2PCIGPU,4,FALSE)) ->  | F116: =IF(B116=TS2L2ASP,"",VLOOKUP(B116,TS2L2PCIGPU,5,FALSE)) ->  | G116: =IF(B116=TS2L2ASP,0,VLOOKUP(B116,TS2L2PCIGPU,6,FALSE)) -> 0 | H116: =IF(B116=TS2L2ASP,0,VLOOKUP(B116,TS2L2PCIGPU,7,FALSE)) -> 0
B118: Additional Card for PCIe Slot 5 (Full height) (CPU 2)
B119: None
B121: Additional Card for PCIe Slot 6 (Low height) (CPU 2)
B122: PERC H730P RAID Controller, 2Gb NV Cache, Adapter, Low Profile | C122: 1 | D122: [405-AAOE] | G122: 0 | H122: 0
B124: Additional Card for PCIe Slot 7 (Full height) (CPU 2) (BOSS controller card Slot)
B125: None | C125: =IF(B125=TS2L2ASP,"",VLOOKUP(B125,TS2L2PCI7,2,FALSE)) ->  | D125: =IF(B125=TS2L2ASP,"",VLOOKUP(B125,TS2L2PCI7,3,FALSE)) ->  | E125: =IF(B125=TS2L2ASP,"",VLOOKUP(B125,TS2L2PCI7,4,FALSE)) ->  | F125: =IF(B125=TS2L2ASP,"",VLOOKUP(B125,TS2L2PCI7,5,FALSE)) ->  | G125: =IF(B125=TS2L2ASP,0,VLOOKUP(B125,TS2L2PCI7,6,FALSE)) -> 0 | H125: =IF(B125=TS2L2ASP,0,VLOOKUP(B125,TS2L2PCI7,7,FALSE)) -> 0
B127: Additional Card for PCIe Slot 8 (Full height) (CPU 2) GPU
B128: None | C128: =IF(B128=TS2L2ASP,"",VLOOKUP(B128,TS2L2PCIGPU,2,FALSE)) ->  | D128: =IF(B128=TS2L2ASP,"",VLOOKUP(B128,TS2L2PCIGPU,3,FALSE)) ->  | E128: =IF(B128=TS2L2ASP,"",VLOOKUP(B128,TS2L2PCIGPU,4,FALSE)) ->  | F128: =IF(B128=TS2L2ASP,"",VLOOKUP(B128,TS2L2PCIGPU,5,FALSE)) ->  | G128: =IF(B128=TS2L2ASP,0,VLOOKUP(B128,TS2L2PCIGPU,6,FALSE)) -> 0 | H128: =IF(B128=TS2L2ASP,0,VLOOKUP(B128,TS2L2PCIGPU,7,FALSE)) -> 0
B130: Bezel
B131: No Bezel | C131: 1 | D131: [350-BBBW]
B132: MOD,TRAY,LGG,R7425 | C132: 1 | D132: [350-BBMF]
B134: Quick Sync
B135: No Quick Sync | C135: 1 | D135: [350-BBJV]
B137: Rack Rails
B138: ReadyRails™ Sliding Rails Without Cable Management Arm | C138: 1 | D138: [770-BBBQ]
B140: Password
B141: iDRAC,Factory Generated Password | C141: 1 | D141: [379-BCSF]
B143: Group Manager
B144: iDRAC Group Manager, Enabled | C144: 1 | D144: [379-BCQV]
B146: Internal Optical Drive
B147: No Internal Optical Drive for 12/24 HD Chassis | C147: 1 | D147: [429-AAIQ]
B149: Dell Services: Deployment Services
B150: No Installation Service Selected (Contact Sales rep for more details) | C150: 1 | D150: [683-11870]
B152: Channel only - Support Extension
B153: Channel 39M Basic Warranty - Next Business Day | C153: 1 | D153: [723-41450]
B155: System Documentation
B156: No Systems Documentation, No OpenManage DVD Kit | C156: 1 | D156: [631-AACK]
B158: Shipping Material
B159: PowerEdge R7425 Shipping Material | C159: 1 | D159: [343-BBHK]
B161: Shipping
B162: PowerEdge R7425 Shipping EMEA1 (English/French/German/Spanish/Russian/Hebrew) | C162: 1 | D162: [340-CBDD]
B164: Base warranty
B165: Base Warranty | C165: 1 | D165: [709-13131]
B166: 3Yr Basic Warranty - Next Business Day - Minimum Warranty | C166: 1 | D166: [709-15813]
B168: Cavi
B169: Cavo Rete UTP cat. 5e 3 metri | C169: 5 | E169: ROS1403/G | F169: =IF(C169=0,"","TS2L3-ROS1403") -> TS2L3-ROS1403 | H169: =2*C169 -> 10
B171: Estenzione di Garanzia
B172: None | C172: =VLOOKUP(B172,TS2L2WARRANTY,2,FALSE) ->  | D172: =VLOOKUP(B172,TS2L2WARRANTY,3,FALSE) ->  | E172: =VLOOKUP(B172,TS2L2WARRANTY,4,FALSE) ->  | F172: =VLOOKUP(B172,TS2L2WARRANTY,5,FALSE) ->  | G172: =VLOOKUP(B172,TS2L2WARRANTY,6,FALSE) -> 0
B174: Warranty Upgrades - Non-Std/Local POS
B175: CSTM CONSIP - 39M Onsite Labor Support for CRU for Servers with Basic Warranty | C175: 1 | D175: [681-24467]

Sheet Rack e Accessori
G1: TOTALE PRODOTTI CONVENZIONE | H1: =SUM(Riepilogo!T41:U44) -> 0 | J1: =IF(H2="",0,H1+H2) -> 0
G2: TOTALE ARTICOLI 20% | H2: =IF(Riepilogo!$T$103="","",Riepilogo!$T$103) -> 
C5: =IF(Riepilogo!G6="","","Rack (OpzRack)") -> 
C6: =IF(Riepilogo!G6="","","Tecnosteel: armadio Rack 19'' 42U") ->  | K6: =IF(J6>=1,"TS2L2-RACK","") -> 
C8: =IF(Riepilogo!$G$6="","","PDU (OpzPDU32A)") -> 
C9: =IF(Riepilogo!$G$6="","","Coppia di PDU Vertical 1Ph-32A-18xC13-6xC19 - 0U Base + Kit di montaggio") ->  | K9: =IF(J9>=1,"TS2L2-PDU32A","") -> 
C11: =IF(Riepilogo!$G$6="","","PDU (OpzPDU16AMetered)") -> 
C12: =IF(Riepilogo!$G$6="","","Coppia di PDU Vertical 1Ph-16A-36xC13+6xC19 -0U Metered + Kit di montaggio") ->  | K12: =IF(J12>=1,"TS2L3-TM1613606","") -> 
C14: =IF(Riepilogo!$G$6="","","PDU (OpzPDU32AMetered)") -> 
C15: =IF(Riepilogo!$G$6="","","Coppia di PDU Vertical 1Ph-32A-36xC13+6xC19 -0U Metered + Kit di montaggio") ->  | K15: =IF(J15>=1,"TS2L3-TM3213606","") -> 
C17: =IF(Riepilogo!$G$6="","","PDU (OpzPDU32A3PHMetered)") -> 
C18: =IF(Riepilogo!$G$6="","","Coppia di PDU Vertical 3Ph-32A-36xC13+6xC19 -0U Metered + Kit di montaggio") ->  | K18: =IF(J18>=1,"TS2L3-TM3233606","") -> 
C20: =IF(Riepilogo!$G$6="","","PDU (OpzPDU16AControlled)") -> 
C21: =IF(Riepilogo!$G$6="","","Coppia di PDU Vertical 1Ph-16A-24xC13+6xC19 -0U Controlled + Kit di montaggio") ->  | K21: =IF(J21>=1,"TS2L3-TK1612406","") -> 
C23: =IF(Riepilogo!$G$6="","","PDU (OpzPDU32AControlled)") -> 
C24: =IF(Riepilogo!$G$6="","","Coppia di PDU Vertical 1Ph-32A-24xC13+6xC19 -0U Controlled + Kit di montaggio") ->  | K24: =IF(J24>=1,"TS2L3-TK3212406","") -> 
C26: =IF(Riepilogo!$G$6="","","PDU (OpzPDU32A3PHControlled)") -> 
C27: =IF(Riepilogo!$G$6="","","Coppia di PDU Vertical 3Ph-32A-24xC13+6xC19 -0U Controlled + Kit di montaggio") ->  | K27: =IF(J27>=1,"TS2L3-TK3232406","") -> 
C29: =IF(Riepilogo!$G$6="","","PDU (OpzPDU16AFull)") -> 
C30: =IF(Riepilogo!$G$6="","","Coppia di PDU Vertical 1Ph-16A-24xC13+6xC19 -0U Full + Kit di montaggio") ->  | K30: =IF(J30>=1,"TS2L3-TF1612406","") -> 
C32: =IF(Riepilogo!$G$6="","","PDU (OpzPDU32AFull)") -> 
C33: =IF(Riepilogo!$G$6="","","Coppia di PDU Vertical 1Ph-32A-24xC13+6xC19 -0U Full + Kit di montaggio") ->  | K33: =IF(J33>=1,"TS2L3-TF3212406","") -> 
C35: =IF(Riepilogo!$G$6="","","PDU (OpzPDU32A3PHFull)") -> 
C36: =IF(Riepilogo!$G$6="","","Coppia di PDU Vertical 3Ph-32A-24xC13+6xC19 -0U Full + Kit di montaggio") ->  | K36: =IF(J36>=1,"TS2L3-TF3232406","") -> 
C38: =IF(Riepilogo!G6="","","KVM (OpzGUIRack)") -> 
C39: =IF(Riepilogo!G6="","","Tecnosteel: 1U Rackmount Console 17'' with Italian Keyboard") ->  | K39: =IF(J39>=1,"TS2L2-GUI","") -> 
C41: =IF(Riepilogo!G6="","","KVM Option (OpzSWGUIRack)") -> 
C42: =IF(Riepilogo!G6="","","Tecnosteel: 16-port remote KVM switch with one remote user") ->  | K42: =IF(J42>=1,"TS2L2-KVMIP","") -> 
C44: =IF(Riepilogo!G6="","","Uninterrupted Power Supply (OpzUPS 3000VA)") -> 
C45: =IF(Riepilogo!G6="","","Riello - UPS MSR3000EVO 3000VA 2U Rackmount (SNMP+USB+RS232)") ->  | K45: =IF(J45>=1,"TS2L2-UPS","") -> 

Sheet Riepilogo
B1: Amministrazione | R1: CONFIGURATORE ELETTRONICO TECNOLOGIE SERVER 2 LOTTO 2 | V1: 1 | X1: Server1 | Y1: Server2 | Z1: Server3
B2: N° Identificativo Ordine | I2: =IF(AA2>0,"ERRORE DI CONFIGURAZIONE",IF(Y13>0,"ERRORE DI MANCATA COMPILAZIONE DATI NECESSARI PER L'ORDINATIVO","Configurazione OK")) -> ERRORE DI MANCATA COMPILAZIONE DATI NECESSARI PER L'ORDINATIVO | V2: 1 | W2: Errore | X2: =IF('Lotto2_R7425-1'!$F$1="ERRORE VERIFICARE LA CONFIGURAZIONE",1,0) -> 0 | Y2: =IF('Lotto2_R7425-2'!$F$1="ERRORE VERIFICARE LA CONFIGURAZIONE",1,0) -> 0 | Z2: =IF('Lotto2_R7425-3'!$F$1="ERRORE VERIFICARE LA CONFIGURAZIONE",1,0) -> 0 | AA2: =SUM(X2:Z2) -> 0
B3: Data Ordine | V3: 1 | W3: Dati non compilati | X3: Amministrazione | Y3: =IF(G1>0,0,1) -> 1
B4: Tot Ordine Portale CONSIP IVA incl. | G4: =R108 -> 0 | U4: Nel "Tot Ordine Portale CONSIP" deve essere inserito l'importo totale risultante dall'ordinativo del portale CONSIP. Qualora l'importo inserito corrisponde al valore ricalcolato dal configuratore viene attivato il pulsante "Salva in formato PDF" che permette di generare il file pdf da allegare all'ordinativo. | V4: 1 | X4: N° Identificativo Ordine | Y4: =IF(G2>0,0,1) -> 1
B5: LE CELLE IN GIALLO DEVO ESSERE COMPILATE OBBLIGATORIAMENTE | I5: =IF(AA2>0,"",IF(Y13>0,"","Cliccare il pulsante --------------> per generare il PDF da allegare")) ->  | V5: 1 | X5: Data Ordine | Y5: =IF(G3>0,0,1) -> 1
B6: Quantità Server Ordinati | G6: =B15 ->  | T6: ver. 3.0 | V6: 1 | X6: Tot Ordine Portale CONSIP IVA incl. | Y6: =IF(G4>0,0,1) -> 1
V7: 1 | X7: Referente per la Consegna | Y7: =IF(E8>0,0,1) -> 1
B8: Referente per la Consegna | J8: Telefono | P8: email | V8: 1 | X8: Telefono | Y8: =IF(L8>0,0,1) -> 1
V9: 1 | X9: email | Y9: =IF(R8>0,0,1) -> 1
B10: Referente per l'installazione | J10: Telefono | P10: email | V10: 1 | X10: Referente per l'installazione | Y10: =IF(E10>0,0,1) -> 1
V11: 1 | X11: Telefono | Y11: =IF(L10>0,0,1) -> 1
B12: ATTENZIONE: I CODICI PRODOTTO DELL'ORDINE DEVONO ESSERE SPECULARI A QUELLI GENERATI DAL CONFIGURATORE. | V12: 1 | X12: email | Y12: =IF(R10>0,0,1) -> 1
B13: Qtà Ordinata | C13: CODICE ARTICOLO PRODUTTORE | G13: CODICE ARTICOLO CONVENZIONE | J13: Descrizione Sintetica (si faccia riferimento alla guida alla convenzione per la descrizione estesa e per le regole di acquisto delle opzioni) | R13: Costo Unitario | T13: Costo Complessivo | V13: 1 | Y13: =SUM(Y3:Y12) -> 10 | AA13: =Y13+AA2 -> 10 | AB13: =IF(AA13=0,"_SavePDFon","_SavePDFoff") -> _SavePDFoff
B14: DELL EMC POWEREDGE R7425 | V14: =IF(B15>="",0,1) -> 0 | X14: Server1 | Y14: Server2 | Z14: Server3 | AA14: ServerGPU | AK14: Somma Server
B15: =IF(AK15>=1,AK15,"") ->  | C15: =IF(AK15>0,VLOOKUP($G15,'Codici&PrezzixRiepilogo'!B:E,4,FALSE),"") ->  | G15: =IF(AK15>=1,W15,"") ->  | J15: =IF(AK15>0,VLOOKUP($G15,'Codici&PrezzixRiepilogo'!B:C,2,FALSE),"") ->  | R15: =IF(AK15>0,VLOOKUP($G15,'Codici&PrezzixRiepilogo'!B:E,3,FALSE),"") ->  | T15: =IF(B15="","",R15*B15) ->  | V15: =IF(B15>="",0,1) -> 0 | W15: TS2L2-SRV | X15: ='Lotto2_R7425-1'!$C$10 -> 0 | Y15: ='Lotto2_R7425-2'!$C$10 -> 0 | Z15: ='Lotto2_R7425-3'!$C$10 -> 0 | AA15: ='Lotto3_R7425(GPU)'!$C$9 -> 0 | AK15: =SUM(X15:AJ15) -> 0
B16: =IF(AK16>=1,AK16,"") ->  | C16: =IF(AK16>0,VLOOKUP($G16,'Codici&PrezzixRiepilogo'!B:E,4,FALSE),"") ->  | G16: =IF(AK16>=1,W16,"") ->  | J16: =IF(AK16>0,VLOOKUP($G16,'Codici&PrezzixRiepilogo'!B:C,2,FALSE),"") ->  | R16: =IF(AK16>0,VLOOKUP($G16,'Codici&PrezzixRiepilogo'!B:E,3,FALSE),"") ->  | T16: =IF(B16="","",R16*B16) ->  | V16: =IF(B16>="",0,1) -> 0 | W16: TS2L2-CPU | X16: ='Lotto2_R7425-1'!$C$25*$X$15 -> 0 | Y16: ='Lotto2_R7425-2'!$C$25*$Y$15 -> 0 | Z16: ='Lotto2_R7425-3'!$C$25*$Z$15 -> 0 | AA16: ='Lotto3_R7425(GPU)'!$C$24*$AA$15 -> 0 | AK16: =SUM(X16:AJ16) -> 0
B17: =IF(AK17>=1,AK17,"") ->  | C17: =IF(AK17>0,VLOOKUP($G17,'Codici&PrezzixRiepilogo'!B:E,4,FALSE),"") ->  | G17: =IF(AK17>=1,W17,"") ->  | J17: =IF(AK17>0,VLOOKUP($G17,'Codici&PrezzixRiepilogo'!B:C,2,FALSE),"") ->  | R17: =IF(AK17>0,VLOOKUP($G17,'Codici&PrezzixRiepilogo'!B:E,3,FALSE),"") ->  | T17: =IF(B17="","",R17*B17) ->  | V17: 0 | W17: TS2L2-RAM16 | AK17: =SUM(X17:AJ17) -> 0
C18: =IF(AK18>0,VLOOKUP($G18,'Codici&PrezzixRiepilogo'!B:E,4,FALSE),"") ->  | J18: =IF(AK18>0,VLOOKUP($G18,'Codici&PrezzixRiepilogo'!B:C,2,FALSE),"") ->  | R18: =IF(AK18>0,VLOOKUP($G18,'Codici&PrezzixRiepilogo'!B:E,3,FALSE),"") ->  | V18: 0 | W18: TS2L2-RAM32 | X18: =IF('Lotto2_R7425-1'!$F$31=Riepilogo!$W18,('Lotto2_R7425-1'!$C$31-2)*Riepilogo!$X$15,0) -> 0 | Y18: =IF('Lotto2_R7425-2'!$F$31=Riepilogo!$W18,('Lotto2_R7425-2'!$C$31-2)*Riepilogo!$Y$15,0) -> 0 | Z18: =IF('Lotto2_R7425-3'!$F$31=Riepilogo!$W18,('Lotto2_R7425-3'!$C$31-2)*Riepilogo!$Z$15,0) -> 0 | AA18: =IF('Lotto3_R7425(GPU)'!$F$40=Riepilogo!$W18,('Lotto3_R7425(GPU)'!$C$40-2)*Riepilogo!$AA$15,0) -> 0 | AK18: 0
C19: =IF(AK19>0,VLOOKUP($G19,'Codici&PrezzixRiepilogo'!B:E,4,FALSE),"") ->  | J19: =IF(AK19>0,VLOOKUP($G19,'Codici&PrezzixRiepilogo'!B:C,2,FALSE),"") ->  | R19: =IF(AK19>0,VLOOKUP($G19,'Codici&PrezzixRiepilogo'!B:E,3,FALSE),"") ->  | V19: 0 | W19: TS2L2-RAM64 | X19: =IF('Lotto2_R7425-1'!$F$31=Riepilogo!$W19,('Lotto2_R7425-1'!$C$31)*Riepilogo!$X$15,0) -> 0 | Y19: =IF('Lotto2_R7425-2'!$F$31=Riepilogo!$W19,('Lotto2_R7425-2'!$C$31)*Riepilogo!$Y$15,0) -> 0 | Z19: =IF('Lotto2_R7425-3'!$F$31=Riepilogo!$W19,('Lotto2_R7425-3'!$C$31)*Riepilogo!$Z$15,0) -> 0 | AA19: =IF('Lotto3_R7425(GPU)'!$F$40=Riepilogo!$W19,('Lotto3_R7425(GPU)'!$C$40)*Riepilogo!$AA$15,0) -> 0 | AK19: 0
C20: =IF(AK20>0,VLOOKUP($G20,'Codici&PrezzixRiepilogo'!B:E,4,FALSE),"") ->  | J20: =IF(AK20>0,VLOOKUP($G20,'Codici&PrezzixRiepilogo'!B:C,2,FALSE),"") ->  | R20: =IF(AK20>0,VLOOKUP($G20,'Codici&PrezzixRiepilogo'!B:E,3,FALSE),"") ->  | V20: 0 | W20: TS2L2-10K600 | X20: =IF('Lotto2_R7425-1'!$F$56=Riepilogo!$W20,('Lotto2_R7425-1'!$C$56-2)*X15,0) -> 0 | Y20: =IF('Lotto2_R7425-2'!$F$56=Riepilogo!$W20,('Lotto2_R7425-2'!$C$56-2)*Y15,0) -> 0 | Z20: =IF('Lotto2_R7425-3'!$F$56=Riepilogo!$W20,('Lotto2_R7425-3'!$C$56-2)*Z15,0) -> 0 | AA20: =IF('Lotto3_R7425(GPU)'!$F$61=Riepilogo!$W20,('Lotto3_R7425(GPU)'!$C$61-2)*AA15,0) -> 0 | AK20: 0
C21: =IF(AK21>0,VLOOKUP($G21,'Codici&PrezzixRiepilogo'!B:E,4,FALSE),"") ->  | J21: =IF(AK21>0,VLOOKUP($G21,'Codici&PrezzixRiepilogo'!B:C,2,FALSE),"") ->  | R21: =IF(AK21>0,VLOOKUP($G21,'Codici&PrezzixRiepilogo'!B:E,3,FALSE),"") ->  | V21: 0 | W21: TS2L2-10K1200 | X21: =('Lotto2_R7425-1'!$C$58)*$X$15 -> 0 | Y21: =('Lotto2_R7425-2'!$C$58)*$Y$15 -> 0 | Z21: =('Lotto2_R7425-3'!$C$58)*$Z$15 -> 0 | AA21: =('Lotto3_R7425(GPU)'!$C$63)*$AA$15 -> 0 | AK21: 0
C22: =IF(AK22>0,VLOOKUP($G22,'Codici&PrezzixRiepilogo'!B:E,4,FALSE),"") ->  | J22: =IF(AK22>0,VLOOKUP($G22,'Codici&PrezzixRiepilogo'!B:C,2,FALSE),"") ->  | R22: =IF(AK22>0,VLOOKUP($G22,'Codici&PrezzixRiepilogo'!B:E,3,FALSE),"") ->  | V22: 0 | W22: TS2L2-SSDM480 | X22: =('Lotto2_R7425-1'!$C$64)*$X$15 -> 0 | Y22: =('Lotto2_R7425-2'!$C$64)*$Y$15 -> 0 | Z22: =('Lotto2_R7425-3'!$C$64)*$Z$15 -> 0 | AA22: =('Lotto3_R7425(GPU)'!$C$65)*$AA$15 -> 0 | AK22: =SUM(X22:AJ22) -> 0
C23: =IF(AK23>0,VLOOKUP($G23,'Codici&PrezzixRiepilogo'!B:E,4,FALSE),"") ->  | J23: =IF(AK23>0,VLOOKUP($G23,'Codici&PrezzixRiepilogo'!B:C,2,FALSE),"") ->  | R23: =IF(AK23>0,VLOOKUP($G23,'Codici&PrezzixRiepilogo'!B:E,3,FALSE),"") ->  | V23: 0 | W23: TS2L2-SSDR960 | X23: =('Lotto2_R7425-1'!$C$70)*$X$15 -> 0 | Y23: =('Lotto2_R7425-2'!$C$70)*$Y$15 -> 0 | Z23: =('Lotto2_R7425-3'!$C$70)*$Z$15 -> 0 | AA23: =('Lotto3_R7425(GPU)'!$C$67)*$AA$15 -> 0 | AK23: 0
C24: =IF(AK24>0,VLOOKUP($G24,'Codici&PrezzixRiepilogo'!B:E,4,FALSE),"") ->  | J24: =IF(AK24>0,VLOOKUP($G24,'Codici&PrezzixRiepilogo'!B:C,2,FALSE),"") ->  | R24: =IF(AK24>0,VLOOKUP($G24,'Codici&PrezzixRiepilogo'!B:E,3,FALSE),"") ->  | V24: 0 | AK24: 0
C25: =IF(AK25>0,VLOOKUP($G25,'Codici&PrezzixRiepilogo'!B:E,4,FALSE),"") ->  | J25: =IF(AK25>0,VLOOKUP($G25,'Codici&PrezzixRiepilogo'!B:C,2,FALSE),"") ->  | R25: =IF(AK25>0,VLOOKUP($G25,'Codici&PrezzixRiepilogo'!B:E,3,FALSE),"") ->  | V25: 0 | W25: TS2L2-LAN1 | X25: =COUNTIF($AB$25:$AB$32,W25)*$X$15 -> 0 | Y25: =COUNTIF($AC$25:$AC$32,W25)*$Y$15 -> 0 | Z25: =COUNTIF($AD$25:$AD$32,W25)*$Z$15 -> 0 | AA25: =COUNTIF($AE$25:$AE$32,W25)*$Z$15 -> 0 | AB25: ='Lotto2_R7425-1'!$F$104 ->  | AC25: ='Lotto2_R7425-2'!$F$104 ->  | AD25: ='Lotto2_R7425-3'!$F$104 ->  | AE25: ='Lotto3_R7425(GPU)'!$F$107 ->  | AK25: 0
C26: =IF(AK26>0,VLOOKUP($G26,'Codici&PrezzixRiepilogo'!B:E,4,FALSE),"") ->  | J26: =IF(AK26>0,VLOOKUP($G26,'Codici&PrezzixRiepilogo'!B:C,2,FALSE),"") ->  | R26: =IF(AK26>0,VLOOKUP($G26,'Codici&PrezzixRiepilogo'!B:E,3,FALSE),"") ->  | V26: 0 | W26: TS2L2-LAN10 | X26: =COUNTIF($AB$25:$AB$32,W26)*$X$15 -> 0 | Y26: =COUNTIF($AC$25:$AC$32,W26)*$Y$15 -> 0 | Z26: =COUNTIF($AD$25:$AD$32,W26)*$Z$15 -> 0 | AA26: 0 | AB26: ='Lotto2_R7425-1'!$F$107 ->  | AC26: ='Lotto2_R7425-2'!$F$107 ->  | AD26: ='Lotto2_R7425-3'!$F$107 ->  | AE26: ='Lotto3_R7425(GPU)'!$F$110 -> 0 | AK26: 0
C27: =IF(AK27>0,VLOOKUP($G27,'Codici&PrezzixRiepilogo'!B:E,4,FALSE),"") ->  | J27: =IF(AK27>0,VLOOKUP($G27,'Codici&PrezzixRiepilogo'!B:C,2,FALSE),"") ->  | R27: =IF(AK27>0,VLOOKUP($G27,'Codici&PrezzixRiepilogo'!B:E,3,FALSE),"") ->  | T27: =IF(B27="","",R27*B27) ->  | V27: 0 | W27: TS2L2-CNA10 | X27: 0 | Y27: 0 | Z27: 0 | AA27: 0 | AB27: ='Lotto2_R7425-1'!$F$110 ->  | AC27: ='Lotto2_R7425-2'!$F$110 ->  | AD27: ='Lotto2_R7425-3'!$F$110 ->  | AE27: ='Lotto3_R7425(GPU)'!$F$113 ->  | AK27: 0
C28: =IF(AK28>0,VLOOKUP($G28,'Codici&PrezzixRiepilogo'!B:E,4,FALSE),"") ->  | J28: =IF(AK28>0,VLOOKUP($G28,'Codici&PrezzixRiepilogo'!B:C,2,FALSE),"") ->  | R28: =IF(AK28>0,VLOOKUP($G28,'Codici&PrezzixRiepilogo'!B:E,3,FALSE),"") ->  | V28: 0 | W28: TS2L2-FC8 | X28: 0 | Y28: 0 | Z28: 0 | AA28: 0 | AB28: ='Lotto2_R7425-1'!$F$113 ->  | AC28: ='Lotto2_R7425-2'!$F$113 ->  | AD28: ='Lotto2_R7425-3'!$F$113 ->  | AE28: ='Lotto3_R7425(GPU)'!$F$116 ->  | AK28: 0
C29: =IF(AK29>0,VLOOKUP($G29,'Codici&PrezzixRiepilogo'!B:E,4,FALSE),"") ->  | J29: =IF(AK29>0,VLOOKUP($G29,'Codici&PrezzixRiepilogo'!B:C,2,FALSE),"") ->  | R29: =IF(AK29>0,VLOOKUP($G29,'Codici&PrezzixRiepilogo'!B:E,3,FALSE),"") ->  | V29: 0 | W29: TS2L2-LAN1-L | X29: 0 | Y29: 0 | Z29: 0 | AA29: 0 | AB29: ='Lotto2_R7425-1'!$F$116 -> 0 | AC29: ='Lotto2_R7425-2'!$F$116 -> 0 | AD29: ='Lotto2_R7425-3'!$F$116 -> 0 | AE29: ='Lotto3_R7425(GPU)'!$F$119 -> 0 | AK29: 0
C30: =IF(AK30>0,VLOOKUP($G30,'Codici&PrezzixRiepilogo'!B:E,4,FALSE),"") ->  | J30: =IF(AK30>0,VLOOKUP($G30,'Codici&PrezzixRiepilogo'!B:C,2,FALSE),"") ->  | R30: =IF(AK30>0,VLOOKUP($G30,'Codici&PrezzixRiepilogo'!B:E,3,FALSE),"") ->  | V30: 0 | W30: TS2L2-LAN10-L | X30: 0 | Y30: 0 | Z30: 0 | AA30: 0 | AB30: ='Lotto2_R7425-1'!$F$119 ->  | AC30: ='Lotto2_R7425-2'!$F$119 ->  | AD30: ='Lotto2_R7425-3'!$F$119 ->  | AE30: ='Lotto3_R7425(GPU)'!$F$122 -> 0 | AK30: 0
C31: =IF(AK31>0,VLOOKUP($G31,'Codici&PrezzixRiepilogo'!B:E,4,FALSE),"") ->  | J31: =IF(AK31>0,VLOOKUP($G31,'Codici&PrezzixRiepilogo'!B:C,2,FALSE),"") ->  | R31: =IF(AK31>0,VLOOKUP($G31,'Codici&PrezzixRiepilogo'!B:E,3,FALSE),"") ->  | V31: 0 | W31: TS2L2-CNA10-L | X31: 0 | Y31: 0 | Z31: 0 | AA31: 0 | AB31: ='Lotto2_R7425-1'!$F$122 ->  | AC31: ='Lotto2_R7425-2'!$F$122 ->  | AD31: ='Lotto2_R7425-3'!$F$122 ->  | AE31: ='Lotto3_R7425(GPU)'!$F$125 ->  | AK31: 0
C32: =IF(AK32>0,VLOOKUP($G32,'Codici&PrezzixRiepilogo'!B:E,4,FALSE),"") ->  | J32: =IF(AK32>0,VLOOKUP($G32,'Codici&PrezzixRiepilogo'!B:C,2,FALSE),"") ->  | R32: =IF(AK32>0,VLOOKUP($G32,'Codici&PrezzixRiepilogo'!B:E,3,FALSE),"") ->  | V32: 0 | W32: TS2L2-FC8-L | X32: 0 | Y32: 0 | Z32: 0 | AA32: 0 | AB32: ='Lotto2_R7425-1'!$F$125 ->  | AC32: ='Lotto2_R7425-2'!$F$125 ->  | AD32: ='Lotto2_R7425-3'!$F$125 ->  | AE32: ='Lotto3_R7425(GPU)'!$F$128 ->  | AK32: 0
C33: =IF(AK33>0,VLOOKUP($G33,'Codici&PrezzixRiepilogo'!B:E,4,FALSE),"") ->  | J33: =IF(AK33>0,VLOOKUP($G33,'Codici&PrezzixRiepilogo'!B:C,2,FALSE),"") ->  | R33: =IF(AK33>0,VLOOKUP($G33,'Codici&PrezzixRiepilogo'!B:E,3,FALSE),"") ->  | V33: 0 | W33: TS2L2-4Y | X33: =IF('Lotto2_R7425-1'!$F$147=Riepilogo!$W33,('Lotto2_R7425-1'!$C$147)*$X$15,0) -> 0 | Y33: =IF('Lotto2_R7425-2'!$F$147=Riepilogo!$W33,('Lotto2_R7425-2'!$C$147)*$Y$15,0) -> 0 | Z33: =IF('Lotto2_R7425-3'!$F$147=Riepilogo!$W33,('Lotto2_R7425-3'!$C$147)*$Z$15,0) -> 0 | AA33: =IF('Lotto3_R7425(GPU)'!$F$172=Riepilogo!$W33,('Lotto3_R7425(GPU)'!$C$172)*$Z$15,0) -> 0 | AK33: 0
C34: =IF(AK34>0,VLOOKUP($G34,'Codici&PrezzixRiepilogo'!B:E,4,FALSE),"") ->  | J34: =IF(AK34>0,VLOOKUP($G34,'Codici&PrezzixRiepilogo'!B:C,2,FALSE),"") ->  | R34: =IF(AK34>0,VLOOKUP($G34,'Codici&PrezzixRiepilogo'!B:E,3,FALSE),"") ->  | V34: 0 | W34: TS2L2-5Y | X34: =IF('Lotto2_R7425-1'!$F$147=Riepilogo!$W34,('Lotto2_R7425-1'!$C$147)*$X$15,0) -> 0 | Y34: =IF('Lotto2_R7425-2'!$F$147=Riepilogo!$W34,('Lotto2_R7425-2'!$C$147)*$Y$15,0) -> 0 | Z34: =IF('Lotto2_R7425-3'!$F$147=Riepilogo!$W34,('Lotto2_R7425-3'!$C$147)*$Z$15,0) -> 0 | AA34: =IF('Lotto3_R7425(GPU)'!$F$172=Riepilogo!$W34,('Lotto3_R7425(GPU)'!$C$172)*$Z$15,0) -> 0 | AK34: 0
C35: =IF(AK35>0,VLOOKUP($G35,'Codici&PrezzixRiepilogo'!B:E,4,FALSE),"") ->  | J35: =IF(AK35>0,VLOOKUP($G35,'Codici&PrezzixRiepilogo'!B:C,2,FALSE),"") ->  | R35: =IF(AK35>0,VLOOKUP($G35,'Codici&PrezzixRiepilogo'!B:E,3,FALSE),"") ->  | V35: 0 | W35: TS2L2-WIN1 | X35: =IF('Lotto2_R7425-1'!$F$34=Riepilogo!$W35,('Lotto2_R7425-1'!$C$34)*$X$15,0) -> 0 | Y35: =IF('Lotto2_R7425-2'!$F$34=Riepilogo!$W35,('Lotto2_R7425-2'!$C$34)*$Y$15,0) -> 0 | Z35: =IF('Lotto2_R7425-3'!$F$34=Riepilogo!$W35,('Lotto2_R7425-3'!$C$34)*$Z$15,0) -> 0 | AA35: =IF('Lotto3_R7425(GPU)'!$F$43=Riepilogo!$W35,('Lotto3_R7425(GPU)'!$C$43)*$Z$15,0) -> 0 | AK35: 0
C36: =IF(AK36>0,VLOOKUP($G36,'Codici&PrezzixRiepilogo'!B:E,4,FALSE),"") ->  | J36: =IF(AK36>0,VLOOKUP($G36,'Codici&PrezzixRiepilogo'!B:C,2,FALSE),"") ->  | R36: =IF(AK36>0,VLOOKUP($G36,'Codici&PrezzixRiepilogo'!B:E,3,FALSE),"") ->  | V36: 0 | W36: TS2L2-WIN2CORE | X36: =IF('Lotto2_R7425-1'!$F$35=Riepilogo!$W36,('Lotto2_R7425-1'!$C$35)*$X$15,0) -> 0 | Y36: =IF('Lotto2_R7425-2'!$F$35=Riepilogo!$W36,('Lotto2_R7425-2'!$C$35)*$Y$15,0) -> 0 | Z36: =IF('Lotto2_R7425-3'!$F$35=Riepilogo!$W36,('Lotto2_R7425-3'!$C$35)*$Z$15,0) -> 0 | AA36: ='Lotto3_R7425(GPU)'!$C$44*Riepilogo!AA15 -> 0 | AK36: 0
C37: =IF(AK37>0,VLOOKUP($G37,'Codici&PrezzixRiepilogo'!B:E,4,FALSE),"") ->  | J37: =IF(AK37>0,VLOOKUP($G37,'Codici&PrezzixRiepilogo'!B:C,2,FALSE),"") ->  | R37: =IF(AK37>0,VLOOKUP($G37,'Codici&PrezzixRiepilogo'!B:E,3,FALSE),"") ->  | V37: 0 | W37: TS2L2-LINUX | X37: =IF('Lotto2_R7425-1'!$F$34=Riepilogo!$W37,('Lotto2_R7425-1'!$C$34)*$X$15,0) -> 0 | Y37: =IF('Lotto2_R7425-2'!$F$34=Riepilogo!$W37,('Lotto2_R7425-2'!$C$34)*$Y$15,0) -> 0 | Z37: =IF('Lotto2_R7425-3'!$F$34=Riepilogo!$W37,('Lotto2_R7425-3'!$C$34)*$Z$15,0) -> 0 | AA37: =IF('Lotto3_R7425(GPU)'!$F$43=Riepilogo!$W37,('Lotto3_R7425(GPU)'!$C$43)*$AA$15,0) -> 0 | AK37: 0
C38: =IF(AK38>0,VLOOKUP($G38,'Codici&PrezzixRiepilogo'!B:E,4,FALSE),"") ->  | J38: =IF(AK38>0,VLOOKUP($G38,'Codici&PrezzixRiepilogo'!B:C,2,FALSE),"") ->  | R38: =IF(AK38>0,VLOOKUP($G38,'Codici&PrezzixRiepilogo'!B:E,3,FALSE),"") ->  | V38: 0 | W38: TS2L2-CALDEV | X38: ='Lotto2_R7425-1'!$C$38*X15 -> 0 | Y38: ='Lotto2_R7425-2'!$C$38*Y15 -> 0 | Z38: ='Lotto2_R7425-3'!$C$38*Z15 -> 0 | AA38: ='Lotto3_R7425(GPU)'!$C$47*AA15 -> 0 | AK38: 0
C39: =IF(AK39>0,VLOOKUP($G39,'Codici&PrezzixRiepilogo'!B:E,4,FALSE),"") ->  | J39: =IF(AK39>0,VLOOKUP($G39,'Codici&PrezzixRiepilogo'!B:C,2,FALSE),"") ->  | R39: =IF(AK39>0,VLOOKUP($G39,'Codici&PrezzixRiepilogo'!B:E,3,FALSE),"") ->  | V39: 0 | W39: TS2L2-CALUSER | X39: ='Lotto2_R7425-1'!$C$40*X15 -> 0 | Y39: ='Lotto2_R7425-2'!$C$40*Y15 -> 0 | Z39: ='Lotto2_R7425-3'!$C$40*Z15 -> 0 | AA39: ='Lotto3_R7425(GPU)'!$C$49*AA15 -> 0 | AK39: 0
B40: OPZIONI COMUNI | V40: =IF(SUM(V41:V44)=0,0,1) -> 0
B41: =IF(AK41>=1,AK41,"") ->  | C41: =IF(AK41>0,VLOOKUP($G41,'Codici&PrezzixRiepilogo'!B:E,4,FALSE),"") ->  | G41: =IF(AK41>=1,W41,"") ->  | J41: =IF(AK41>0,VLOOKUP($G41,'Codici&PrezzixRiepilogo'!B:C,2,FALSE),"") ->  | R41: =IF(AK41>0,VLOOKUP($G41,'Codici&PrezzixRiepilogo'!B:E,3,FALSE),"") ->  | T41: =IF(B41="","",R41*B41) ->  | V41: 0 | W41: TS2L2-RACK | X41: ='Rack e Accessori'!J6 -> 0 | AK41: 0
C42: =IF(AK42>0,VLOOKUP($G42,'Codici&PrezzixRiepilogo'!B:E,4,FALSE),"") ->  | G42: =IF(AK42>=1,W42,"") ->  | J42: =IF(AK42>0,VLOOKUP($G42,'Codici&PrezzixRiepilogo'!B:C,2,FALSE),"") ->  | R42: =IF(AK42>0,VLOOKUP($G42,'Codici&PrezzixRiepilogo'!B:E,3,FALSE),"") ->  | T42: =IF(B42="","",R42*B42) ->  | V42: 0 | W42: TS2L2-GUI | X42: ='Rack e Accessori'!J39 -> 0 | AK42: 0
C43: =IF(AK43>0,VLOOKUP($G43,'Codici&PrezzixRiepilogo'!B:E,4,FALSE),"") ->  | J43: =IF(AK43>0,VLOOKUP($G43,'Codici&PrezzixRiepilogo'!B:C,2,FALSE),"") ->  | R43: =IF(AK43>0,VLOOKUP($G43,'Codici&PrezzixRiepilogo'!B:E,3,FALSE),"") ->  | V43: 0 | W43: TS2L2-KVMIP | X43: ='Rack e Accessori'!J42 -> 0 | AK43: 0
C44: =IF(AK44>0,VLOOKUP($G44,'Codici&PrezzixRiepilogo'!B:E,4,FALSE),"") ->  | J44: =IF(AK44>0,VLOOKUP($G44,'Codici&PrezzixRiepilogo'!B:C,2,FALSE),"") ->  | R44: =IF(AK44>0,VLOOKUP($G44,'Codici&PrezzixRiepilogo'!B:E,3,FALSE),"") ->  | V44: 0 | W44: TS2L2-UPS | X44: ='Rack e Accessori'!J45 -> 0 | AK44: 0
B45: ULTERIORI OPZIONI 20% | V45: =IF(SUM(T46:U103)=0,0,1) -> 0
B46: =IF(AK46>=1,AK46,"") ->  | C46: =IF(AK46>0,VLOOKUP($G46,'Codici&PrezzixRiepilogo'!B:E,4,FALSE),"") ->  | G46: =IF(AK46>=1,W46,"") ->  | J46: =IF(AK46>0,VLOOKUP($G46,'Codici&PrezzixRiepilogo'!B:C,2,FALSE),"") ->  | R46: =IF(AK46>0,VLOOKUP($G46,'Codici&PrezzixRiepilogo'!B:E,3,FALSE),"") ->  | T46: =IF(B46="","",R46*B46) ->  | V46: 0 | W46: TS2L2-3MRJ45 | X46: ='Lotto2_R7425-1'!C144*X15 -> 0 | Y46: ='Lotto2_R7425-2'!C144*Y15 -> 0 | Z46: ='Lotto2_R7425-3'!C144*Z15 -> 0 | AK46: 0
C47: =IF(AK47>0,VLOOKUP($G47,'Codici&PrezzixRiepilogo'!B:E,4,FALSE),"") ->  | G47: =IF(AK47>=1,W47,"") ->  | J47: =IF(AK47>0,VLOOKUP($G47,'Codici&PrezzixRiepilogo'!B:C,2,FALSE),"") ->  | R47: =IF(AK47>0,VLOOKUP($G47,'Codici&PrezzixRiepilogo'!B:E,3,FALSE),"") ->  | T47: =IF(B47="","",R47*B47) ->  | V47: 0 | W47: TS2L2-10K1800 | X47: ='Lotto2_R7425-1'!$C$60*$X$15 -> 0 | Y47: ='Lotto2_R7425-2'!$C$60*$Y$15 -> 0 | Z47: ='Lotto2_R7425-3'!$C$60*$Z$15 -> 0 | AK47: 0
C48: =IF(AK48>0,VLOOKUP($G48,'Codici&PrezzixRiepilogo'!B:E,4,FALSE),"") ->  | J48: =IF(AK48>0,VLOOKUP($G48,'Codici&PrezzixRiepilogo'!B:C,2,FALSE),"") ->  | R48: =IF(AK48>0,VLOOKUP($G48,'Codici&PrezzixRiepilogo'!B:E,3,FALSE),"") ->  | V48: 0 | W48: TS2L2-SSDR1920 | X48: ='Lotto2_R7425-1'!$C$72*$X$15 -> 0 | Y48: ='Lotto2_R7425-2'!$C$72*$Y$15 -> 0 | Z48: ='Lotto2_R7425-3'!$C$72*$Z$15 -> 0 | AK48: 0
C49: =IF(AK49>0,VLOOKUP($G49,'Codici&PrezzixRiepilogo'!B:E,4,FALSE),"") ->  | J49: =IF(AK49>0,VLOOKUP($G49,'Codici&PrezzixRiepilogo'!B:C,2,FALSE),"") ->  | R49: =IF(AK49>0,VLOOKUP($G49,'Codici&PrezzixRiepilogo'!B:E,3,FALSE),"") ->  | V49: 0 | W49: TS2L2-BOSS240 | X49: =COUNTIF($AB$25:$AB$32,W49)*$X$15 -> 0 | Y49: =COUNTIF($AC$25:$AC$32,W49)*$Y$15 -> 0 | Z49: =COUNTIF($AD$25:$AD$32,W49)*$Z$15 -> 0 | AK49: 0
C50: =IF(AK50>0,VLOOKUP($G50,'Codici&PrezzixRiepilogo'!B:E,4,FALSE),"") ->  | J50: =IF(AK50>0,VLOOKUP($G50,'Codici&PrezzixRiepilogo'!B:C,2,FALSE),"") ->  | R50: =IF(AK50>0,VLOOKUP($G50,'Codici&PrezzixRiepilogo'!B:E,3,FALSE),"") ->  | V50: 0 | W50: TS2L2-ISDM32 | X50: ='Lotto2_R7425-1'!$C$92*X15 -> 0 | Y50: ='Lotto2_R7425-2'!$C$92*Y15 -> 0 | Z50: ='Lotto2_R7425-3'!$C$92*Z15 -> 0 | AK50: 0
C51: =IF(AK51>0,VLOOKUP($G51,'Codici&PrezzixRiepilogo'!B:E,4,FALSE),"") ->  | J51: =IF(AK51>0,VLOOKUP($G51,'Codici&PrezzixRiepilogo'!B:C,2,FALSE),"") ->  | R51: =IF(AK51>0,VLOOKUP($G51,'Codici&PrezzixRiepilogo'!B:E,3,FALSE),"") ->  | V51: 0 | W51: TS2L2-LCDBEZEL | X51: =IF('Lotto2_R7425-1'!$F$128=$W51,('Lotto2_R7425-1'!$C$128)*$X$15,0) -> 0 | Y51: =IF('Lotto2_R7425-2'!$F$128=$W51,('Lotto2_R7425-2'!$C$128)*$Y$15,0) -> 0 | Z51: =IF('Lotto2_R7425-3'!$F$128=$W51,('Lotto2_R7425-3'!$C$128)*$Z$15,0) -> 0 | AK51: 0
C52: =IF(AK52>0,VLOOKUP($G52,'Codici&PrezzixRiepilogo'!B:E,4,FALSE),"") ->  | J52: =IF(AK52>0,VLOOKUP($G52,'Codici&PrezzixRiepilogo'!B:C,2,FALSE),"") ->  | R52: =IF(AK52>0,VLOOKUP($G52,'Codici&PrezzixRiepilogo'!B:E,3,FALSE),"") ->  | V52: 0 | W52: TS2L2-STDBEZEL | X52: =IF('Lotto2_R7425-1'!$F$128=$W52,('Lotto2_R7425-1'!$C$128)*$X$15,0) -> 0 | Y52: =IF('Lotto2_R7425-2'!$F$128=$W52,('Lotto2_R7425-2'!$C$128)*$Y$15,0) -> 0 | Z52: =IF('Lotto2_R7425-3'!$F$128=$W52,('Lotto2_R7425-3'!$C$128)*$Y$15,0) -> 0 | AK52: 0
C53: =IF(AK53>0,VLOOKUP($G53,'Codici&PrezzixRiepilogo'!B:E,4,FALSE),"") ->  | J53: =IF(AK53>0,VLOOKUP($G53,'Codici&PrezzixRiepilogo'!B:C,2,FALSE),"") ->  | R53: =IF(AK53>0,VLOOKUP($G53,'Codici&PrezzixRiepilogo'!B:E,3,FALSE),"") ->  | V53: 0 | W53: TS2L2-MCX416AM3 | X53: =COUNTIF($AB$25:$AB$32,W53)*$X$15 -> 0 | Y53: =COUNTIF($AC$25:$AC$32,W53)*$Y$15 -> 0 | Z53: =COUNTIF($AD$25:$AD$32,W53)*$Z$15 -> 0 | AK53: 0
C54: =IF(AK54>0,VLOOKUP($G54,'Codici&PrezzixRiepilogo'!B:E,4,FALSE),"") ->  | J54: =IF(AK54>0,VLOOKUP($G54,'Codici&PrezzixRiepilogo'!B:C,2,FALSE),"") ->  | R54: =IF(AK54>0,VLOOKUP($G54,'Codici&PrezzixRiepilogo'!B:E,3,FALSE),"") ->  | V54: 0 | W54: TS2L2-MCX516AM3 | X54: 0 | Y54: 0 | Z54: 0 | AK54: 0
C55: =IF(AK55>0,VLOOKUP($G55,'Codici&PrezzixRiepilogo'!B:E,4,FALSE),"") ->  | J55: =IF(AK55>0,VLOOKUP($G55,'Codici&PrezzixRiepilogo'!B:C,2,FALSE),"") ->  | R55: =IF(AK55>0,VLOOKUP($G55,'Codici&PrezzixRiepilogo'!B:E,3,FALSE),"") ->  | V55: 0 | W55: TS2L2-MCX4121AM3 | X55: 0 | Y55: 0 | Z55: 0 | AK55: 0
C56: =IF(AK56>0,VLOOKUP($G56,'Codici&PrezzixRiepilogo'!B:E,4,FALSE),"") ->  | J56: =IF(AK56>0,VLOOKUP($G56,'Codici&PrezzixRiepilogo'!B:C,2,FALSE),"") ->  | R56: =IF(AK56>0,VLOOKUP($G56,'Codici&PrezzixRiepilogo'!B:E,3,FALSE),"") ->  | V56: 0 | W56: TS2L2-HBA330 | X56: 0 | Y56: 0 | Z56: 0 | AK56: 0
C57: =IF(AK57>0,VLOOKUP($G57,'Codici&PrezzixRiepilogo'!B:E,4,FALSE),"") ->  | J57: =IF(AK57>0,VLOOKUP($G57,'Codici&PrezzixRiepilogo'!B:C,2,FALSE),"") ->  | R57: =IF(AK57>0,VLOOKUP($G57,'Codici&PrezzixRiepilogo'!B:E,3,FALSE),"") ->  | V57: 0 | W57: TS2L2-HBASAS12 | X57: 0 | Y57: 0 | Z57: 0 | AK57: 0
C58: =IF(AK58>0,VLOOKUP($G58,'Codici&PrezzixRiepilogo'!B:E,4,FALSE),"") ->  | J58: =IF(AK58>0,VLOOKUP($G58,'Codici&PrezzixRiepilogo'!B:C,2,FALSE),"") ->  | R58: =IF(AK58>0,VLOOKUP($G58,'Codici&PrezzixRiepilogo'!B:E,3,FALSE),"") ->  | V58: 0 | W58: TS2L2-H740P | X58: 0 | Y58: 0 | Z58: 0 | AK58: 0
C59: =IF(AK59>0,VLOOKUP($G59,'Codici&PrezzixRiepilogo'!B:E,4,FALSE),"") ->  | J59: =IF(AK59>0,VLOOKUP($G59,'Codici&PrezzixRiepilogo'!B:C,2,FALSE),"") ->  | R59: =IF(AK59>0,VLOOKUP($G59,'Codici&PrezzixRiepilogo'!B:E,3,FALSE),"") ->  | V59: 0 | W59: TS2L2-Q41162T | X59: 0 | Y59: 0 | Z59: 0 | AK59: 0
C60: =IF(AK60>0,VLOOKUP($G60,'Codici&PrezzixRiepilogo'!B:E,4,FALSE),"") ->  | J60: =IF(AK60>0,VLOOKUP($G60,'Codici&PrezzixRiepilogo'!B:C,2,FALSE),"") ->  | R60: =IF(AK60>0,VLOOKUP($G60,'Codici&PrezzixRiepilogo'!B:E,3,FALSE),"") ->  | V60: 0 | W60: TS2L2-Q41162T-L | X60: 0 | Y60: 0 | Z60: 0 | AK60: 0
C61: =IF(AK61>0,VLOOKUP($G61,'Codici&PrezzixRiepilogo'!B:E,4,FALSE),"") ->  | J61: =IF(AK61>0,VLOOKUP($G61,'Codici&PrezzixRiepilogo'!B:C,2,FALSE),"") ->  | R61: =IF(AK61>0,VLOOKUP($G61,'Codici&PrezzixRiepilogo'!B:E,3,FALSE),"") ->  | V61: 0 | W61: TS2L2-Q41164T-L | X61: 0 | Y61: 0 | Z61: 0 | AK61: 0
C62: =IF(AK62>0,VLOOKUP($G62,'Codici&PrezzixRiepilogo'!B:E,4,FALSE),"") ->  | J62: =IF(AK62>0,VLOOKUP($G62,'Codici&PrezzixRiepilogo'!B:C,2,FALSE),"") ->  | R62: =IF(AK62>0,VLOOKUP($G62,'Codici&PrezzixRiepilogo'!B:E,3,FALSE),"") ->  | V62: 0 | W62: TS2L2-Q2692 | X62: 0 | Y62: 0 | Z62: 0 | AK62: 0
C63: =IF(AK63>0,VLOOKUP($G63,'Codici&PrezzixRiepilogo'!B:E,4,FALSE),"") ->  | J63: =IF(AK63>0,VLOOKUP($G63,'Codici&PrezzixRiepilogo'!B:C,2,FALSE),"") ->  | R63: =IF(AK63>0,VLOOKUP($G63,'Codici&PrezzixRiepilogo'!B:E,3,FALSE),"") ->  | V63: 0 | W63: TS2L2-Q2692-L | X63: 0 | Y63: 0 | Z63: 0 | AK63: 0
C64: =IF(AK64>0,VLOOKUP($G64,'Codici&PrezzixRiepilogo'!B:E,4,FALSE),"") ->  | J64: =IF(AK64>0,VLOOKUP($G64,'Codici&PrezzixRiepilogo'!B:C,2,FALSE),"") ->  | R64: =IF(AK64>0,VLOOKUP($G64,'Codici&PrezzixRiepilogo'!B:E,3,FALSE),"") ->  | V64: 0 | W64: TS2L2-B57416T | X64: 0 | Y64: 0 | Z64: 0 | AK64: 0
C65: =IF(AK65>0,VLOOKUP($G65,'Codici&PrezzixRiepilogo'!B:E,4,FALSE),"") ->  | J65: =IF(AK65>0,VLOOKUP($G65,'Codici&PrezzixRiepilogo'!B:C,2,FALSE),"") ->  | R65: =IF(AK65>0,VLOOKUP($G65,'Codici&PrezzixRiepilogo'!B:E,3,FALSE),"") ->  | V65: 0 | W65: TS2L2-B57416T-L | X65: 0 | Y65: 0 | Z65: 0 | AK65: 0
C66: =IF(AK66>0,VLOOKUP($G66,'Codici&PrezzixRiepilogo'!B:E,4,FALSE),"") ->  | J66: =IF(AK66>0,VLOOKUP($G66,'Codici&PrezzixRiepilogo'!B:C,2,FALSE),"") ->  | R66: =IF(AK66>0,VLOOKUP($G66,'Codici&PrezzixRiepilogo'!B:E,3,FALSE),"") ->  | V66: 0 | W66: TS2L2-5XDAC10M3 | X66: ='Lotto2_R7425-1'!$C$137*$X$15 -> 0 | Y66: ='Lotto2_R7425-2'!$C$137*$Y$15 -> 0 | Z66: ='Lotto2_R7425-3'!$C$137*$Z$15 -> 0 | AK66: 0
C67: =IF(AK67>0,VLOOKUP($G67,'Codici&PrezzixRiepilogo'!B:E,4,FALSE),"") ->  | J67: =IF(AK67>0,VLOOKUP($G67,'Codici&PrezzixRiepilogo'!B:C,2,FALSE),"") ->  | R67: =IF(AK67>0,VLOOKUP($G67,'Codici&PrezzixRiepilogo'!B:E,3,FALSE),"") ->  | V67: 0 | W67: TS2L2-5XDAC100M2 | X67: ='Lotto2_R7425-1'!$C$139*$X$15 -> 0 | Y67: ='Lotto2_R7425-2'!$C$139*$Y$15 -> 0 | Z67: ='Lotto2_R7425-3'!$C$139*$Z$15 -> 0 | AK67: 0
C68: =IF(AK68>0,VLOOKUP($G68,'Codici&PrezzixRiepilogo'!B:E,4,FALSE),"") ->  | J68: =IF(AK68>0,VLOOKUP($G68,'Codici&PrezzixRiepilogo'!B:C,2,FALSE),"") ->  | R68: =IF(AK68>0,VLOOKUP($G68,'Codici&PrezzixRiepilogo'!B:E,3,FALSE),"") ->  | V68: 0 | W68: TS2L2-5XDAC100M3 | X68: ='Lotto2_R7425-1'!$C$141*$X$15 -> 0 | Y68: ='Lotto2_R7425-2'!$C$141*$Y$15 -> 0 | Z68: ='Lotto2_R7425-3'!$C$141*$Z$15 -> 0 | AK68: 0
C69: =IF(AK69>0,VLOOKUP($G69,'Codici&PrezzixRiepilogo'!B:E,4,FALSE),"") ->  | J69: =IF(AK69>0,VLOOKUP($G69,'Codici&PrezzixRiepilogo'!B:C,2,FALSE),"") ->  | R69: =IF(AK69>0,VLOOKUP($G69,'Codici&PrezzixRiepilogo'!B:E,3,FALSE),"") ->  | V69: 0 | W69: TS2L2-SSDW1600 | AK69: 0
C70: =IF(AK70>0,VLOOKUP($G70,'Codici&PrezzixRiepilogo'!B:E,4,FALSE),"") ->  | J70: =IF(AK70>0,VLOOKUP($G70,'Codici&PrezzixRiepilogo'!B:C,2,FALSE),"") ->  | R70: =IF(AK70>0,VLOOKUP($G70,'Codici&PrezzixRiepilogo'!B:E,3,FALSE),"") ->  | V70: 0 | W70: TS2L2-SSDW400 | X70: ='Lotto2_R7425-1'!$C$66*$X$15 -> 0 | Y70: ='Lotto2_R7425-2'!$C$66*$Y$15 -> 0 | Z70: ='Lotto2_R7425-3'!$C$66*$Z$15 -> 0 | AK70: 0
C71: =IF(AK71>0,VLOOKUP($G71,'Codici&PrezzixRiepilogo'!B:E,4,FALSE),"") ->  | J71: =IF(AK71>0,VLOOKUP($G71,'Codici&PrezzixRiepilogo'!B:C,2,FALSE),"") ->  | R71: =IF(AK71>0,VLOOKUP($G71,'Codici&PrezzixRiepilogo'!B:E,3,FALSE),"") ->  | V71: 0 | W71: TS2L2-10K2400 | X71: ='Lotto2_R7425-1'!$C$62*$X$15 -> 0 | Y71: ='Lotto2_R7425-2'!$C$62*$Y$15 -> 0 | Z71: ='Lotto2_R7425-3'!$C$62*$Z$15 -> 0 | AK71: 0
C72: =IF(AK72>0,VLOOKUP($G72,'Codici&PrezzixRiepilogo'!B:E,4,FALSE),"") ->  | J72: =IF(AK72>0,VLOOKUP($G72,'Codici&PrezzixRiepilogo'!B:C,2,FALSE),"") ->  | R72: =IF(AK72>0,VLOOKUP($G72,'Codici&PrezzixRiepilogo'!B:E,3,FALSE),"") ->  | V72: 0 | W72: TS2L2-WINDC | X72: =IF('Lotto2_R7425-1'!$F$34=Riepilogo!$W72,('Lotto2_R7425-1'!$C$34)*$X$15,0) -> 0 | Y72: =IF('Lotto2_R7425-2'!$F$34=Riepilogo!$W72,('Lotto2_R7425-2'!$C$34)*$Y$15,0) -> 0 | Z72: =IF('Lotto2_R7425-3'!$F$34=Riepilogo!$W72,('Lotto2_R7425-3'!$C$34)*$Z$15,0) -> 0 | AK72: 0
C73: =IF(AK73>0,VLOOKUP($G73,'Codici&PrezzixRiepilogo'!B:E,4,FALSE),"") ->  | J73: =IF(AK73>0,VLOOKUP($G73,'Codici&PrezzixRiepilogo'!B:C,2,FALSE),"") ->  | R73: =IF(AK73>0,VLOOKUP($G73,'Codici&PrezzixRiepilogo'!B:E,3,FALSE),"") ->  | V73: 0 | W73: TS2L2-WINDC2 | X73: =IF('Lotto2_R7425-1'!$F$35=Riepilogo!$W73,('Lotto2_R7425-1'!$C$35)*$X$15,0) -> 0 | Y73: =IF('Lotto2_R7425-2'!$F$35=Riepilogo!$W73,('Lotto2_R7425-2'!$C$35)*$Y$15,0) -> 0 | Z73: =IF('Lotto2_R7425-3'!$F$35=Riepilogo!$W73,('Lotto2_R7425-3'!$C$35)*$Z$15,0) -> 0 | AK73: 0
C74: =IF(AK74>0,VLOOKUP($G74,'Codici&PrezzixRiepilogo'!B:E,4,FALSE),"") ->  | J74: =IF(AK74>0,VLOOKUP($G74,'Codici&PrezzixRiepilogo'!B:C,2,FALSE),"") ->  | R74: =IF(AK74>0,VLOOKUP($G74,'Codici&PrezzixRiepilogo'!B:E,3,FALSE),"") ->  | V74: 0 | W74: TS2L2-IXXV710M3 | X74: 0 | Y74: 0 | Z74: 0 | AK74: 0
C75: =IF(AK75>0,VLOOKUP($G75,'Codici&PrezzixRiepilogo'!B:E,4,FALSE),"") ->  | J75: =IF(AK75>0,VLOOKUP($G75,'Codici&PrezzixRiepilogo'!B:C,2,FALSE),"") ->  | R75: =IF(AK75>0,VLOOKUP($G75,'Codici&PrezzixRiepilogo'!B:E,3,FALSE),"") ->  | V75: 0 | W75: TS2L2-IXXV710TRV | X75: 0 | Y75: 0 | Z75: 0 | AK75: 0
C76: =IF(AK76>0,VLOOKUP($G76,'Codici&PrezzixRiepilogo'!B:E,4,FALSE),"") ->  | J76: =IF(AK76>0,VLOOKUP($G76,'Codici&PrezzixRiepilogo'!B:C,2,FALSE),"") ->  | R76: =IF(AK76>0,VLOOKUP($G76,'Codici&PrezzixRiepilogo'!B:E,3,FALSE),"") ->  | V76: 0 | W76: TS2L2-VMWKIT6P3Y | X76: =IF('Lotto2_R7425-1'!$F$44=Riepilogo!$W$76,'Lotto2_R7425-1'!$C$44,0)*X$15 -> 0 | Y76: =IF('Lotto2_R7425-2'!$F$44=Riepilogo!$W$76,'Lotto2_R7425-2'!$C$44,0)*Y$15 -> 0 | Z76: =IF('Lotto2_R7425-3'!$F$44=Riepilogo!$W$76,'Lotto2_R7425-3'!$C$44,0)*Z$15 -> 0 | AK76: 0
C77: =IF(AK77>0,VLOOKUP($G77,'Codici&PrezzixRiepilogo'!B:E,4,FALSE),"") ->  | J77: =IF(AK77>0,VLOOKUP($G77,'Codici&PrezzixRiepilogo'!B:C,2,FALSE),"") ->  | R77: =IF(AK77>0,VLOOKUP($G77,'Codici&PrezzixRiepilogo'!B:E,3,FALSE),"") ->  | V77: 0 | W77: TS2L2-VMWVCSTD3Y | X77: =IF('Lotto2_R7425-1'!$F$46=Riepilogo!$W$77,'Lotto2_R7425-1'!$C$46,0)*X$15 -> 0 | AK77: 0
C78: =IF(AK78>0,VLOOKUP($G78,'Codici&PrezzixRiepilogo'!B:E,4,FALSE),"") ->  | J78: =IF(AK78>0,VLOOKUP($G78,'Codici&PrezzixRiepilogo'!B:C,2,FALSE),"") ->  | R78: =IF(AK78>0,VLOOKUP($G78,'Codici&PrezzixRiepilogo'!B:E,3,FALSE),"") ->  | V78: 0 | W78: TS2L2-VMWVCSTD5Y | X78: =IF('Lotto2_R7425-1'!$F$46=Riepilogo!$W$78,'Lotto2_R7425-1'!$C$46,0)*X$15 -> 0 | AK78: 0
C79: =IF(AK79>0,VLOOKUP($G79,'Codici&PrezzixRiepilogo'!B:E,4,FALSE),"") ->  | J79: =IF(AK79>0,VLOOKUP($G79,'Codici&PrezzixRiepilogo'!B:C,2,FALSE),"") ->  | R79: =IF(AK79>0,VLOOKUP($G79,'Codici&PrezzixRiepilogo'!B:E,3,FALSE),"") ->  | V79: 0 | W79: TS2L2-VMWSTD1P3Y | X79: =IF('Lotto2_R7425-1'!$F$48=Riepilogo!$W79,'Lotto2_R7425-1'!$C$48,0)*X$15 -> 0 | Y79: =IF('Lotto2_R7425-2'!$F$48=Riepilogo!$W79,'Lotto2_R7425-2'!$C$48,0)*Y$15 -> 0 | Z79: =IF('Lotto2_R7425-3'!$F$48=Riepilogo!$W79,'Lotto2_R7425-3'!$C$48,0)*Z$15 -> 0 | AK79: 0
C80: =IF(AK80>0,VLOOKUP($G80,'Codici&PrezzixRiepilogo'!B:E,4,FALSE),"") ->  | J80: =IF(AK80>0,VLOOKUP($G80,'Codici&PrezzixRiepilogo'!B:C,2,FALSE),"") ->  | R80: =IF(AK80>0,VLOOKUP($G80,'Codici&PrezzixRiepilogo'!B:E,3,FALSE),"") ->  | V80: 0 | W80: TS2L2-VMWEP1P3Y | X80: =IF('Lotto2_R7425-1'!$F$48=Riepilogo!$W80,'Lotto2_R7425-1'!$C$48,0)*X$15 -> 0 | Y80: =IF('Lotto2_R7425-2'!$F$48=Riepilogo!$W80,'Lotto2_R7425-2'!$C$48,0)*Y$15 -> 0 | Z80: =IF('Lotto2_R7425-3'!$F$48=Riepilogo!$W80,'Lotto2_R7425-3'!$C$48,0)*Z$15 -> 0 | AK80: 0
C81: =IF(AK81>0,VLOOKUP($G81,'Codici&PrezzixRiepilogo'!B:E,4,FALSE),"") ->  | J81: =IF(AK81>0,VLOOKUP($G81,'Codici&PrezzixRiepilogo'!B:C,2,FALSE),"") ->  | R81: =IF(AK81>0,VLOOKUP($G81,'Codici&PrezzixRiepilogo'!B:E,3,FALSE),"") ->  | V81: 0 | W81: TS2L2-VMWEP1P5Y | X81: =IF('Lotto2_R7425-1'!$F$48=Riepilogo!$W81,'Lotto2_R7425-1'!$C$48,0)*X$15 -> 0 | Y81: =IF('Lotto2_R7425-2'!$F$48=Riepilogo!$W81,'Lotto2_R7425-2'!$C$48,0)*Y$15 -> 0 | Z81: =IF('Lotto2_R7425-3'!$F$48=Riepilogo!$W81,'Lotto2_R7425-3'!$C$48,0)*Z$15 -> 0 | AK81: 0
C82: =IF(AK82>0,VLOOKUP($G82,'Codici&PrezzixRiepilogo'!B:E,4,FALSE),"") ->  | J82: =IF(AK82>0,VLOOKUP($G82,'Codici&PrezzixRiepilogo'!B:C,2,FALSE),"") ->  | R82: =IF(AK82>0,VLOOKUP($G82,'Codici&PrezzixRiepilogo'!B:E,3,FALSE),"") ->  | V82: 0 | W82: TS2L2-VSANSTD3Y | X82: =IF('Lotto2_R7425-1'!$F$50=Riepilogo!$W82,'Lotto2_R7425-1'!$C$50,0)*X$15 -> 0 | Y82: =IF('Lotto2_R7425-2'!$F$50=Riepilogo!$W82,'Lotto2_R7425-2'!$C$50,0)*Y$15 -> 0 | Z82: =IF('Lotto2_R7425-3'!$F$50=Riepilogo!$W82,'Lotto2_R7425-3'!$C$50,0)*Z$15 -> 0 | AK82: 0
C83: =IF(AK83>0,VLOOKUP($G83,'Codici&PrezzixRiepilogo'!B:E,4,FALSE),"") ->  | J83: =IF(AK83>0,VLOOKUP($G83,'Codici&PrezzixRiepilogo'!B:C,2,FALSE),"") ->  | R83: =IF(AK83>0,VLOOKUP($G83,'Codici&PrezzixRiepilogo'!B:E,3,FALSE),"") ->  | V83: 0 | W83: TS2L2-VSANSTD5Y | X83: =IF('Lotto2_R7425-1'!$F$50=Riepilogo!$W83,'Lotto2_R7425-1'!$C$50,0)*X$15 -> 0 | Y83: =IF('Lotto2_R7425-2'!$F$50=Riepilogo!$W83,'Lotto2_R7425-2'!$C$50,0)*Y$15 -> 0 | Z83: =IF('Lotto2_R7425-3'!$F$50=Riepilogo!$W83,'Lotto2_R7425-3'!$C$50,0)*Z$15 -> 0 | AK83: 0
C84: =IF(AK84>0,VLOOKUP($G84,'Codici&PrezzixRiepilogo'!B:E,4,FALSE),"") ->  | J84: =IF(AK84>0,VLOOKUP($G84,'Codici&PrezzixRiepilogo'!B:C,2,FALSE),"") ->  | R84: =IF(AK84>0,VLOOKUP($G84,'Codici&PrezzixRiepilogo'!B:E,3,FALSE),"") ->  | V84: 0 | W84: TS2L2-VSANADV3Y | X84: =IF('Lotto2_R7425-1'!$F$50=Riepilogo!$W84,'Lotto2_R7425-1'!$C$50,0)*X$15 -> 0 | Y84: =IF('Lotto2_R7425-2'!$F$50=Riepilogo!$W84,'Lotto2_R7425-2'!$C$50,0)*Y$15 -> 0 | Z84: =IF('Lotto2_R7425-3'!$F$50=Riepilogo!$W84,'Lotto2_R7425-3'!$C$50,0)*Z$15 -> 0 | AK84: 0
C85: =IF(AK85>0,VLOOKUP($G85,'Codici&PrezzixRiepilogo'!B:E,4,FALSE),"") ->  | J85: =IF(AK85>0,VLOOKUP($G85,'Codici&PrezzixRiepilogo'!B:C,2,FALSE),"") ->  | R85: =IF(AK85>0,VLOOKUP($G85,'Codici&PrezzixRiepilogo'!B:E,3,FALSE),"") ->  | V85: 0 | W85: TS2L2-VSANADV5Y | X85: =IF('Lotto2_R7425-1'!$F$50=Riepilogo!$W85,'Lotto2_R7425-1'!$C$50,0)*X$15 -> 0 | Y85: =IF('Lotto2_R7425-2'!$F$50=Riepilogo!$W85,'Lotto2_R7425-2'!$C$50,0)*Y$15 -> 0 | Z85: =IF('Lotto2_R7425-3'!$F$50=Riepilogo!$W85,'Lotto2_R7425-3'!$C$50,0)*Z$15 -> 0 | AK85: 0
C86: =IF(AK86>0,VLOOKUP($G86,'Codici&PrezzixRiepilogo'!B:E,4,FALSE),"") ->  | J86: =IF(AK86>0,VLOOKUP($G86,'Codici&PrezzixRiepilogo'!B:C,2,FALSE),"") ->  | R86: =IF(AK86>0,VLOOKUP($G86,'Codici&PrezzixRiepilogo'!B:E,3,FALSE),"") ->  | V86: 0 | W86: TS2L2-GPUM10 | AK86: 0
C87: =IF(AK87>0,VLOOKUP($G87,'Codici&PrezzixRiepilogo'!B:E,4,FALSE),"") ->  | J87: =IF(AK87>0,VLOOKUP($G87,'Codici&PrezzixRiepilogo'!B:C,2,FALSE),"") ->  | R87: =IF(AK87>0,VLOOKUP($G87,'Codici&PrezzixRiepilogo'!B:E,3,FALSE),"") ->  | V87: 0 | W87: TS2L2-2000W | AK87: 0
C88: =IF(AK88>0,VLOOKUP($G88,'Codici&PrezzixRiepilogo'!B:E,4,FALSE),"") ->  | J88: =IF(AK88>0,VLOOKUP($G88,'Codici&PrezzixRiepilogo'!B:C,2,FALSE),"") ->  | R88: =IF(AK88>0,VLOOKUP($G88,'Codici&PrezzixRiepilogo'!B:E,3,FALSE),"") ->  | V88: 0 | W88: TS2L2-GPUV10016 | AK88: 0
C89: =IF(AK89>0,VLOOKUP($G89,'Codici&PrezzixRiepilogo'!B:E,4,FALSE),"") ->  | J89: =IF(AK89>0,VLOOKUP($G89,'Codici&PrezzixRiepilogo'!B:C,2,FALSE),"") ->  | R89: =IF(AK89>0,VLOOKUP($G89,'Codici&PrezzixRiepilogo'!B:E,3,FALSE),"") ->  | V89: 0 | W89: TS2L2-GPUV10032 | AK89: 0
C90: =IF(AK90>0,VLOOKUP($G90,'Codici&PrezzixRiepilogo'!B:E,4,FALSE),"") ->  | J90: =IF(AK90>0,VLOOKUP($G90,'Codici&PrezzixRiepilogo'!B:C,2,FALSE),"") ->  | R90: =IF(AK90>0,VLOOKUP($G90,'Codici&PrezzixRiepilogo'!B:E,3,FALSE),"") ->  | V90: 0 | W90: TS2L2-GPUKITSW | AK90: 0
C91: =IF(AK91>0,VLOOKUP($G91,'Codici&PrezzixRiepilogo'!B:E,4,FALSE),"") ->  | J91: =IF(AK91>0,VLOOKUP($G91,'Codici&PrezzixRiepilogo'!B:C,2,FALSE),"") ->  | R91: =IF(AK91>0,VLOOKUP($G91,'Codici&PrezzixRiepilogo'!B:E,3,FALSE),"") ->  | V91: 0 | W91: TS2L2-GPUKITDW | AK91: 0
C92: =IF(AK92>0,VLOOKUP($G92,'Codici&PrezzixRiepilogo'!B:E,4,FALSE),"") ->  | J92: =IF(AK92>0,VLOOKUP($G92,'Codici&PrezzixRiepilogo'!B:C,2,FALSE),"") ->  | R92: =IF(AK92>0,VLOOKUP($G92,'Codici&PrezzixRiepilogo'!B:E,3,FALSE),"") ->  | V92: 0 | W92: TS2L2-GPUT4 | AK92: 0
C93: =IF(AK93>0,VLOOKUP($G93,'Codici&PrezzixRiepilogo'!B:E,4,FALSE),"") ->  | J93: =IF(AK93>0,VLOOKUP($G93,'Codici&PrezzixRiepilogo'!B:C,2,FALSE),"") ->  | R93: =IF(AK93>0,VLOOKUP($G93,'Codici&PrezzixRiepilogo'!B:E,3,FALSE),"") ->  | V93: 0 | W93: TS2L2-Q41164T | X93: 0 | Y93: 0 | Z93: 0 | AK93: 0
C94: =IF(AK94>0,VLOOKUP($G94,'Codici&PrezzixRiepilogo'!B:E,4,FALSE),"") ->  | J94: =IF(AK94>0,VLOOKUP($G94,'Codici&PrezzixRiepilogo'!B:C,2,FALSE),"") ->  | R94: =IF(AK94>0,VLOOKUP($G94,'Codici&PrezzixRiepilogo'!B:E,3,FALSE),"") ->  | V94: 0 | W94: TS2L2-Q41262 | X94: 0 | Y94: 0 | Z94: 0 | AK94: 0
C95: =IF(AK95>0,VLOOKUP($G95,'Codici&PrezzixRiepilogo'!B:E,4,FALSE),"") ->  | J95: =IF(AK95>0,VLOOKUP($G95,'Codici&PrezzixRiepilogo'!B:C,2,FALSE),"") ->  | R95: =IF(AK95>0,VLOOKUP($G95,'Codici&PrezzixRiepilogo'!B:E,3,FALSE),"") ->  | V95: 0 | W95: TS2L2-Q41262-L | X95: 0 | Y95: 0 | Z95: 0 | AK95: 0
C96: =IF(AK96>0,VLOOKUP($G96,'Codici&PrezzixRiepilogo'!B:E,4,FALSE),"") ->  | J96: =IF(AK96>0,VLOOKUP($G96,'Codici&PrezzixRiepilogo'!B:C,2,FALSE),"") ->  | R96: =IF(AK96>0,VLOOKUP($G96,'Codici&PrezzixRiepilogo'!B:E,3,FALSE),"") ->  | V96: 0 | W96: TS2L2-Q41262OT-L | X96: 0 | Y96: 0 | Z96: 0 | AK96: 0
C97: =IF(AK97>0,VLOOKUP($G97,'Codici&PrezzixRiepilogo'!B:E,4,FALSE),"") ->  | J97: =IF(AK97>0,VLOOKUP($G97,'Codici&PrezzixRiepilogo'!B:C,2,FALSE),"") ->  | R97: =IF(AK97>0,VLOOKUP($G97,'Codici&PrezzixRiepilogo'!B:E,3,FALSE),"") ->  | V97: 0 | W97: TS2L2-Q41262OT | X97: 0 | Y97: 0 | Z97: 0 | AK97: 0
C98: =IF(AK98>0,VLOOKUP($G98,'Codici&PrezzixRiepilogo'!B:E,4,FALSE),"") ->  | J98: =IF(AK98>0,VLOOKUP($G98,'Codici&PrezzixRiepilogo'!B:C,2,FALSE),"") ->  | R98: =IF(AK98>0,VLOOKUP($G98,'Codici&PrezzixRiepilogo'!B:E,3,FALSE),"") ->  | V98: 0 | W98: TS2L2-MCX516AM3-L | X98: 0 | Y98: 0 | Z98: 0 | AK98: 0
C99: =IF(AK99>0,VLOOKUP($G99,'Codici&PrezzixRiepilogo'!B:E,4,FALSE),"") ->  | G99: =IF(AK99>=1,W99,"") ->  | J99: =IF(AK99>0,VLOOKUP($G99,'Codici&PrezzixRiepilogo'!B:C,2,FALSE),"") ->  | R99: =IF(AK99>0,VLOOKUP($G99,'Codici&PrezzixRiepilogo'!B:E,3,FALSE),"") ->  | T99: =IF(B99="","",R99*B99) ->  | V99: 0 | W99: TS2L2-MCX4121A3-L | X99: 0 | Y99: 0 | Z99: 0 | AK99: 0
C100: =IF(AK100>0,VLOOKUP($G100,'Codici&PrezzixRiepilogo'!B:E,4,FALSE),"") ->  | G100: =IF(AK100>=1,W100,"") ->  | J100: =IF(AK100>0,VLOOKUP($G100,'Codici&PrezzixRiepilogo'!B:C,2,FALSE),"") ->  | R100: =IF(AK100>0,VLOOKUP($G100,'Codici&PrezzixRiepilogo'!B:E,3,FALSE),"") ->  | T100: =IF(B100="","",R100*B100) ->  | V100: 0 | W100: TS2L2-MCX4SP | X100: =COUNTIF($AB$25:$AB$32,W100)*$X$15 -> 0 | Y100: =COUNTIF($AC$25:$AC$32,W100)*$Y$15 -> 0 | Z100: =COUNTIF($AD$25:$AD$32,W100)*$Z$15 -> 0 | AK100: 0
C101: =IF(AK101>0,VLOOKUP($G101,'Codici&PrezzixRiepilogo'!B:E,4,FALSE),"") ->  | J101: =IF(AK101>0,VLOOKUP($G101,'Codici&PrezzixRiepilogo'!B:C,2,FALSE),"") ->  | R101: =IF(AK101>0,VLOOKUP($G101,'Codici&PrezzixRiepilogo'!B:E,3,FALSE),"") ->  | V101: 0 | W101: TS2L2-MCX4SP-L | X101: 0 | Y101: 0 | Z101: 0 | AK101: 0
B102: =IF(AK102>=1,AK102,"") ->  | C102: =IF(AK102>0,VLOOKUP($G102,'Codici&PrezzixRiepilogo'!B:E,4,FALSE),"") ->  | G102: =IF(AK102>=1,W102,"") ->  | J102: =IF(AK102>0,VLOOKUP($G102,'Codici&PrezzixRiepilogo'!B:C,2,FALSE),"") ->  | R102: =IF(AK102>0,VLOOKUP($G102,'Codici&PrezzixRiepilogo'!B:E,3,FALSE),"") ->  | T102: =IF(B102="","",R102*B102) ->  | V102: =IF(B102>="",0,1) -> 0 | W102: TS2L2-RISER | X102: ='Lotto2_R7425-1'!$C$89*Riepilogo!X15 -> 0 | Y102: ='Lotto2_R7425-2'!$C$89*Riepilogo!Y15 -> 0 | Z102: ='Lotto2_R7425-3'!$C$89*Riepilogo!Z15 -> 0 | AK102: =SUM(X102:AJ102) -> 0
C103: =IF(AK103>0,VLOOKUP($G103,'Codici&PrezzixRiepilogo'!B:E,4,FALSE),"") ->  | J103: =IF(AK103>0,VLOOKUP($G103,'Codici&PrezzixRiepilogo'!B:C,2,FALSE),"") ->  | R103: =IF(AK103>0,VLOOKUP($G103,'Codici&PrezzixRiepilogo'!B:E,3,FALSE),"") ->  | V103: 0 | W103: TS2L2-PDU32A | X103: ='Rack e Accessori'!J9 -> 0 | AK103: 0
B104: TOTALE PRODOTTI CONVENZIONE (I.V.A. Esclusa) | R104: =SUM(T15:U44) -> 0 | V104: 1
B105: TOTALE ULTERIORI OPZIONI (I.V.A. Esclusa) | R105: =SUM(T46:U103) -> 0 | V105: =IF(R105>0,1,0) -> 0
B106: TOTALE (I.V.A. Esclusa) | R106: =R105+R104 -> 0 | V106: 1
B107: I.V.A. | R107: =R106*22% -> 0 | V107: 1
B108: TOTALE ORDINE | R108: =SUM(R106:U107) -> 0 | V108: 1
V109: 1
V110: 1
V111: 1
D112: =IF(G6>0,"DETTAGLIO CONFIGURAZIONI SERVER LOTTO 2 ","") -> DETTAGLIO CONFIGURAZIONI SERVER LOTTO 2 | V112: 1
V113: 1
V114: 1
V115: =IF($B$15>="",0,1) -> 0
B116: PowerEdge R7425 Conf.1 | E116: =X15 -> 0 | F116: Server | I116: PowerEdge R7425 Conf.2 | L116: =Y15 -> 0 | M116: Server | P116: PowerEdge R7425 Conf.3 | S116: =Z15 -> 0 | T116: Server | V116: =IF($B$15>="",0,1) -> 0
V117: =IF($B$15>="",0,1) -> 0
B118: =IF(X15>0,"1","-") -> - | C118: =IF(B118="-","-",CONCATENATE(MID($C$15,1,21)," - ",$G$15)) -> - | I118: =IF(Y15>0,"1","-") -> - | J118: =IF(I118="-","-",CONCATENATE(MID($C$15,1,21)," - ",$G$15)) -> - | P118: =IF(Z15>0,"1","-") -> - | Q118: =IF(P118="-","-",CONCATENATE(MID($C$15,1,21)," - ",$G$15)) -> - | V118: =IF((Y118+X118+W118)>0,1,0) -> 0 | W118: =IF(B118="-",0,B118) -> 0 | X118: =IF(I118="-",0,I118) -> 0 | Y118: =IF(P118="-",0,P118) -> 0
B119: =IF(X16=0,"-",X16/$E$116) -> - | C119: =IF(B119="-","-",CONCATENATE(MID(C16,1,21)," - ",G16)) -> - | I119: =IF(Y16=0,"-",Y16/$L$116) -> - | J119: =IF(I119="-","-",CONCATENATE(MID(C16,1,21)," - ",G16)) -> - | P119: =IF(Z16=0,"-",Z16/$S$116) -> - | Q119: =IF(P119="-","-",CONCATENATE(MID(C16,1,21)," - ",G16)) -> - | V119: =IF((Y119+X119+W119)>0,1,0) -> 0 | W119: 0 | X119: 0 | Y119: 0
B120: - | C120: - | I120: - | J120: - | P120: - | Q120: - | V120: =IF((Y120+X120+W120)>0,1,0) -> 0 | W120: 0 | X120: 0 | Y120: 0
B121: - | C121: - | I121: - | J121: - | P121: - | Q121: - | V121: 0 | W121: 0 | X121: 0 | Y121: 0
B122: - | C122: - | I122: - | J122: - | P122: - | Q122: - | V122: =IF((Y122+X122+W122)>0,1,0) -> 0 | W122: 0 | X122: 0 | Y122: 0
B123: - | C123: - | I123: - | J123: - | P123: - | Q123: - | V123: 0 | W123: 0 | X123: 0 | Y123: 0
B124: - | C124: - | I124: - | J124: - | P124: - | Q124: - | V124: 0 | W124: 0 | X124: 0 | Y124: 0
B125: - | C125: - | I125: - | J125: - | P125: - | Q125: - | V125: 0 | W125: 0 | X125: 0 | Y125: 0
B126: - | C126: - | I126: - | J126: - | P126: - | Q126: - | V126: 0 | W126: 0 | X126: 0 | Y126: 0
B127: - | C127: - | I127: - | J127: - | P127: - | Q127: - | V127: 0 | W127: 0 | X127: 0 | Y127: 0
B128: - | C128: - | I128: - | J128: - | P128: - | Q128: - | V128: 0 | W128: 0 | X128: 0 | Y128: 0
B129: - | C129: - | I129: - | J129: - | P129: - | Q129: - | V129: 0 | W129: 0 | X129: 0 | Y129: 0
B130: - | C130: - | I130: - | J130: - | P130: - | Q130: - | V130: 0 | W130: 0 | X130: 0 | Y130: 0
B131: - | C131: - | I131: - | J131: - | P131: - | Q131: - | V131: 0 | W131: 0 | X131: 0 | Y131: 0
B132: - | C132: - | I132: - | J132: - | P132: - | Q132: - | V132: 0 | W132: 0 | X132: 0 | Y132: 0
B133: - | C133: - | I133: - | J133: - | P133: - | Q133: - | V133: =IF((Y133+X133+W133)>0,1,0) -> 0 | W133: =IF(B133="-",0,B133) -> 0 | X133: =IF(I133="-",0,I133) -> 0 | Y133: =IF(P133="-",0,P133) -> 0
B134: - | C134: - | I134: - | J134: - | P134: - | Q134: - | V134: 0 | W134: 0 | X134: 0 | Y134: 0
B135: - | C135: - | I135: - | J135: - | P135: - | Q135: - | V135: 0 | W135: 0 | X135: 0 | Y135: 0
B136: - | C136: - | I136: - | J136: - | P136: - | Q136: - | V136: 0 | W136: 0 | X136: 0 | Y136: 0
B137: - | C137: - | I137: - | J137: - | P137: - | Q137: - | V137: 0 | W137: 0 | X137: 0 | Y137: 0
B138: - | C138: - | I138: - | J138: - | P138: - | Q138: - | V138: 0 | W138: 0 | X138: 0 | Y138: 0
B139: - | C139: - | I139: - | J139: - | P139: - | Q139: - | V139: 0 | W139: 0 | X139: 0 | Y139: 0
B140: - | C140: - | I140: - | J140: - | P140: - | Q140: - | V140: 0 | W140: 0 | X140: 0 | Y140: 0
B141: - | C141: - | I141: - | J141: - | P141: - | Q141: - | V141: 0 | W141: 0 | X141: 0 | Y141: 0
B142: - | C142: - | I142: - | J142: - | P142: - | Q142: - | V142: 0 | W142: 0 | X142: 0 | Y142: 0
B143: =IF(X46=0,"-",X46/$E$116) -> - | C143: =IF(B143="-","-",CONCATENATE(MID(C46,1,21)," - ",G46)) -> - | I143: =IF(Y46=0,"-",Y46/$L$116) -> - | J143: =IF(I143="-","-",CONCATENATE(MID(C46,1,21)," - ",G46)) -> - | P143: =IF(Z46=0,"-",Z46/$S$116) -> - | Q143: =IF(P143="-","-",CONCATENATE(MID(C46,1,21)," - ",G46)) -> - | V143: =IF((Y143+X143+W143)>0,1,0) -> 0 | W143: =IF(B143="-",0,B143) -> 0 | X143: =IF(I143="-",0,I143) -> 0 | Y143: =IF(P143="-",0,P143) -> 0
B144: - | C144: - | I144: - | J144: - | P144: - | Q144: - | V144: 0 | W144: =IF(B144="-",0,B144) -> 0 | X144: =IF(I144="-",0,I144) -> 0 | Y144: =IF(P144="-",0,P144) -> 0
B145: - | C145: - | I145: - | J145: - | P145: - | Q145: - | V145: 0 | W145: 0 | X145: 0 | Y145: 0
B146: - | C146: - | I146: - | J146: - | P146: - | Q146: - | V146: =IF((Y146+X146+W146)>0,1,0) -> 0 | W146: =IF(B146="-",0,B146) -> 0 | X146: =IF(I146="-",0,I146) -> 0 | Y146: =IF(P146="-",0,P146) -> 0
B147: - | C147: - | I147: - | J147: - | P147: - | Q147: - | V147: 0 | W147: 0 | X147: 0 | Y147: 0
B148: - | C148: - | I148: - | J148: - | P148: - | Q148: - | V148: 0 | W148: 0 | X148: 0 | Y148: 0
B149: - | C149: - | I149: - | J149: - | P149: - | Q149: - | V149: 0 | W149: =IF(B149="-",0,B149) -> 0 | X149: =IF(I149="-",0,I149) -> 0 | Y149: =IF(P149="-",0,P149) -> 0
B150: - | C150: - | I150: - | J150: - | P150: - | Q150: - | V150: 0 | W150: 0 | X150: 0 | Y150: 0
B151: - | C151: - | I151: - | J151: - | P151: - | Q151: - | V151: 0 | W151: 0 | X151: 0 | Y151: 0
B152: - | C152: - | I152: - | J152: - | P152: - | Q152: - | V152: 0 | W152: 0 | X152: 0 | Y152: 0
B153: - | C153: - | I153: - | J153: - | P153: - | Q153: - | V153: 0 | W153: 0 | X153: 0 | Y153: 0
B154: - | C154: - | I154: - | J154: - | P154: - | Q154: - | V154: 0 | W154: 0 | X154: 0 | Y154: 0
B155: - | C155: - | I155: - | J155: - | P155: - | Q155: - | V155: 0 | W155: 0 | X155: 0 | Y155: 0
B156: - | C156: - | I156: - | J156: - | P156: - | Q156: - | V156: 0 | W156: 0 | X156: 0 | Y156: 0
B157: - | C157: - | I157: - | J157: - | P157: - | Q157: - | V157: 0 | W157: 0 | X157: 0 | Y157: 0
B158: - | C158: - | I158: - | J158: - | P158: - | Q158: - | V158: 0 | W158: 0 | X158: 0 | Y158: 0
B159: - | C159: - | I159: - | J159: - | P159: - | Q159: - | V159: 0 | W159: 0 | X159: 0 | Y159: 0
B160: - | C160: - | I160: - | J160: - | P160: - | Q160: - | V160: 0 | W160: 0 | X160: 0 | Y160: 0
B161: - | C161: - | I161: - | J161: - | P161: - | Q161: - | V161: 0 | W161: 0 | X161: 0 | Y161: 0
B162: - | C162: - | I162: - | J162: - | P162: - | Q162: - | V162: 0 | W162: 0 | X162: 0 | Y162: 0
B163: - | C163: - | I163: - | J163: - | P163: - | Q163: - | V163: 0 | W163: 0 | X163: 0 | Y163: 0
B164: - | C164: - | I164: - | J164: - | P164: - | Q164: - | V164: 0 | W164: 0 | X164: 0 | Y164: 0
B165: - | C165: - | I165: - | J165: - | P165: - | Q165: - | V165: 0 | W165: 0 | X165: 0 | Y165: 0
B166: - | C166: - | I166: - | J166: - | P166: - | Q166: - | V166: 0 | W166: 0 | X166: 0 | Y166: 0
B167: - | C167: - | I167: - | J167: - | P167: - | Q167: - | V167: 0 | W167: 0 | X167: 0 | Y167: 0
B168: - | C168: - | I168: - | J168: - | P168: - | Q168: - | V168: 0 | W168: 0 | X168: 0 | Y168: 0
B169: - | C169: - | I169: - | J169: - | P169: - | Q169: - | V169: 0 | W169: 0 | X169: 0 | Y169: 0
B170: - | C170: - | I170: - | J170: - | P170: - | Q170: - | V170: 0 | W170: 0 | X170: 0 | Y170: 0
B171: - | C171: - | I171: - | J171: - | P171: - | Q171: - | V171: 0 | W171: 0 | X171: 0 | Y171: 0
B172: - | C172: - | I172: - | J172: - | P172: - | Q172: - | V172: 0 | W172: 0 | X172: 0 | Y172: 0
B173: - | C173: - | I173: - | J173: - | P173: - | Q173: - | V173: 0 | W173: 0 | X173: 0 | Y173: 0
B174: - | C174: - | I174: - | J174: - | P174: - | Q174: - | V174: 0 | W174: 0 | X174: 0 | Y174: 0
B175: =IF(X78=0,"-",X78/$E$116) -> - | C175: =IF(B175="-","-",CONCATENATE(MID(C78,1,21)," - ",G78)) -> - | I175: =IF(Y78=0,"-",Y78/$L$116) -> - | J175: =IF(I175="-","-",CONCATENATE(MID(C78,1,21)," - ",G78)) -> - | P175: =IF(Z78=0,"-",Z78/$S$116) -> - | Q175: =IF(P175="-","-",CONCATENATE(MID(C78,1,21)," - ",G78)) -> - | V175: 0 | W175: 0 | X175: 0 | Y175: 0
B176: - | C176: - | I176: - | J176: - | P176: - | Q176: - | V176: 0 | W176: 0 | X176: 0 | Y176: 0
B177: - | C177: - | I177: - | J177: - | P177: - | Q177: - | V177: 0 | W177: 0 | X177: 0 | Y177: 0
B178: - | C178: - | I178: - | J178: - | P178: - | Q178: - | V178: 0 | W178: 0 | X178: 0 | Y178: 0
B179: - | C179: - | I179: - | J179: - | P179: - | Q179: - | V179: 0 | W179: 0 | X179: 0 | Y179: 0
B180: - | C180: - | I180: - | J180: - | P180: - | Q180: - | V180: 0 | W180: 0 | X180: 0 | Y180: 0
B181: - | C181: - | I181: - | J181: - | P181: - | Q181: - | V181: 0 | W181: 0 | X181: 0 | Y181: 0
B182: - | C182: - | I182: - | J182: - | P182: - | Q182: - | V182: 0 | W182: 0 | X182: 0 | Y182: 0
B183: - | C183: - | I183: - | J183: - | P183: - | Q183: - | V183: 0 | W183: 0 | X183: 0 | Y183: 0
B184: - | C184: - | I184: - | J184: - | P184: - | Q184: - | V184: 0 | W184: 0 | X184: 0 | Y184: 0
B185: - | C185: - | I185: - | J185: - | P185: - | Q185: - | V185: 0 | W185: 0 | X185: 0 | Y185: 0
B186: - | C186: - | I186: - | J186: - | P186: - | Q186: - | V186: 0 | W186: 0 | X186: 0 | Y186: 0
B187: - | C187: - | I187: - | J187: - | P187: - | Q187: - | V187: 0 | W187: 0 | X187: 0 | Y187: 0
B188: - | C188: - | I188: - | J188: - | P188: - | Q188: - | V188: 0 | W188: 0 | X188: 0 | Y188: 0
B189: - | C189: - | I189: - | J189: - | P189: - | Q189: - | V189: 0 | W189: 0 | X189: 0 | Y189: 0
B190: - | C190: - | I190: - | J190: - | P190: - | Q190: - | V190: 0 | W190: 0 | X190: 0 | Y190: 0
B191: - | C191: - | I191: - | J191: - | P191: - | Q191: - | V191: 0 | W191: 0 | X191: 0 | Y191: 0
B192: - | C192: - | I192: - | J192: - | P192: - | Q192: - | V192: 0 | W192: 0 | X192: 0 | Y192: 0
B193: - | C193: - | I193: - | J193: - | P193: - | Q193: - | V193: 0 | W193: 0 | X193: 0 | Y193: 0
B194: - | C194: - | I194: - | J194: - | P194: - | Q194: - | V194: 0 | W194: 0 | X194: 0 | Y194: 0
B195: - | C195: - | I195: - | J195: - | P195: - | Q195: - | V195: 0 | W195: 0 | X195: 0 | Y195: 0
B196: - | C196: - | I196: - | J196: - | P196: - | Q196: - | V196: 0 | W196: =IF(B196="-",0,B196) -> 0 | X196: =IF(I196="-",0,I196) -> 0 | Y196: =IF(P196="-",0,P196) -> 0
B197: =IF(X100=0,"-",X100/$E$116) -> - | C197: =IF(B197="-","-",CONCATENATE(MID(C100,1,21)," - ",G100)) -> - | I197: =IF(Y100=0,"-",Y100/$L$116) -> - | J197: =IF(I197="-","-",CONCATENATE(MID(C100,1,21)," - ",G100)) -> - | P197: =IF(Z100=0,"-",Z100/$S$116) -> - | Q197: =IF(P197="-","-",CONCATENATE(MID(C100,1,21)," - ",G100)) -> - | V197: 0 | W197: =IF(B197="-",0,B197) -> 0 | X197: =IF(I197="-",0,I197) -> 0 | Y197: =IF(P197="-",0,P197) -> 0
B198: - | C198: - | I198: - | J198: - | P198: - | Q198: - | V198: 0 | W198: 0 | X198: 0 | Y198: 0
B199: =IF(X102=0,"-",X102/$E$116) -> - | C199: =IF(B199="-","-",CONCATENATE(MID(C102,1,21)," - ",G102)) -> - | I199: =IF(Y102=0,"-",Y102/$L$116) -> - | J199: =IF(I199="-","-",CONCATENATE(MID(C102,1,21)," - ",G102)) -> - | P199: =IF(Z102=0,"-",Z102/$S$116) -> - | Q199: =IF(P199="-","-",CONCATENATE(MID(C102,1,21)," - ",G102)) -> - | V199: =IF((Y199+X199+W199)>0,1,0) -> 0 | W199: =IF(B199="-",0,B199) -> 0 | X199: =IF(I199="-",0,I199) -> 0 | Y199: =IF(P199="-",0,P199) -> 0
V200: =IF($B$15>="",0,1) -> 0
... 82 more rows

Sheet Foglio1 (hidden)
A1: =Riepilogo!E116 -> 0
A2: =Riepilogo!B118 -> - | B2: =Riepilogo!C118 -> - | D2: =IF(A2+A3=2,"TS2L3-SRV2CPU",B2) -> 
A3: =Riepilogo!B119 -> - | B3: =Riepilogo!C119 -> -
A4: =Riepilogo!B120 -> - | B4: =Riepilogo!C120 -> -
A5: =Riepilogo!B121 -> - | B5: =Riepilogo!C121 -> -
A6: =Riepilogo!B122 -> - | B6: =Riepilogo!C122 -> -
A7: =Riepilogo!B123 -> - | B7: =Riepilogo!C123 -> -
A8: =Riepilogo!B124 -> - | B8: =Riepilogo!C124 -> -
A9: =Riepilogo!B125 -> - | B9: =Riepilogo!C125 -> -
A10: =Riepilogo!B126 -> - | B10: =Riepilogo!C126 -> -
A11: =Riepilogo!B127 -> - | B11: =Riepilogo!C127 -> -
A12: =Riepilogo!B128 -> - | B12: =Riepilogo!C128 -> -
A13: =Riepilogo!B129 -> - | B13: =Riepilogo!C129 -> -
A14: =Riepilogo!B130 -> - | B14: =Riepilogo!C130 -> -
A15: =Riepilogo!B131 -> - | B15: =Riepilogo!C131 -> -
A16: =Riepilogo!B132 -> - | B16: =Riepilogo!C132 -> -
A17: =Riepilogo!B133 -> - | B17: =Riepilogo!C133 -> -
A18: =Riepilogo!B134 -> - | B18: =Riepilogo!C134 -> -
A19: =Riepilogo!B135 -> - | B19: =Riepilogo!C135 -> -
A20: =Riepilogo!B136 -> - | B20: =Riepilogo!C136 -> -
A21: =Riepilogo!B137 -> - | B21: =Riepilogo!C137 -> -
A22: =Riepilogo!B138 -> - | B22: =Riepilogo!C138 -> -
A23: =Riepilogo!B139 -> - | B23: =Riepilogo!C139 -> -
A24: =Riepilogo!B140 -> - | B24: =Riepilogo!C140 -> -
A25: =Riepilogo!B141 -> - | B25: =Riepilogo!C141 -> -
A26: =Riepilogo!B142 -> - | B26: =Riepilogo!C142 -> -
A27: =Riepilogo!#REF! ->  | B27: =Riepilogo!#REF! -> 
A28: =Riepilogo!B143 -> - | B28: =Riepilogo!C143 -> -
A30: =Riepilogo!L116 -> 0
A31: =Riepilogo!I118 -> - | B31: =Riepilogo!J118 -> -
A32: =Riepilogo!I119 -> - | B32: =Riepilogo!J119 -> -
A33: =Riepilogo!I120 -> - | B33: =Riepilogo!J120 -> -
A34: =Riepilogo!I121 -> - | B34: =Riepilogo!J121 -> -
A35: =Riepilogo!I122 -> - | B35: =Riepilogo!J122 -> -
A36: =Riepilogo!I123 -> - | B36: =Riepilogo!J123 -> -
A37: =Riepilogo!I124 -> - | B37: =Riepilogo!J124 -> -
A38: =Riepilogo!I125 -> - | B38: =Riepilogo!J125 -> -
A39: =Riepilogo!I126 -> - | B39: =Riepilogo!J126 -> -
A40: =Riepilogo!I127 -> - | B40: =Riepilogo!J127 -> -
A41: =Riepilogo!I128 -> - | B41: =Riepilogo!J128 -> -
A42: =Riepilogo!I129 -> - | B42: =Riepilogo!J129 -> -
A43: =Riepilogo!I130 -> - | B43: =Riepilogo!J130 -> -
A44: =Riepilogo!I131 -> - | B44: =Riepilogo!J131 -> -
A45: =Riepilogo!I132 -> - | B45: =Riepilogo!J132 -> -
A46: =Riepilogo!I133 -> - | B46: =Riepilogo!J133 -> -
A47: =Riepilogo!I134 -> - | B47: =Riepilogo!J134 -> -
A48: =Riepilogo!I135 -> - | B48: =Riepilogo!J135 -> -
A49: =Riepilogo!I136 -> - | B49: =Riepilogo!J136 -> -
A50: =Riepilogo!I137 -> - | B50: =Riepilogo!J137 -> -
A51: =Riepilogo!I138 -> - | B51: =Riepilogo!J138 -> -
A52: =Riepilogo!I139 -> - | B52: =Riepilogo!J139 -> -
A53: =Riepilogo!I140 -> - | B53: =Riepilogo!J140 -> -
A54: =Riepilogo!I141 -> - | B54: =Riepilogo!J141 -> -
A55: =Riepilogo!I142 -> - | B55: =Riepilogo!J142 -> -
A56: =Riepilogo!#REF! ->  | B56: =Riepilogo!#REF! -> 
A57: =Riepilogo!I143 -> - | B57: =Riepilogo!J143 -> -
A60: =Riepilogo!S116 -> 0
A61: =Riepilogo!P118 -> - | B61: =Riepilogo!Q118 -> -
A62: =Riepilogo!P119 -> - | B62: =Riepilogo!Q119 -> -
A63: =Riepilogo!P120 -> - | B63: =Riepilogo!Q120 -> -
A64: =Riepilogo!P121 -> - | B64: =Riepilogo!Q121 -> -
A65: =Riepilogo!P122 -> - | B65: =Riepilogo!Q122 -> -
A66: =Riepilogo!P123 -> - | B66: =Riepilogo!Q123 -> -
A67: =Riepilogo!P124 -> - | B67: =Riepilogo!Q124 -> -
A68: =Riepilogo!P125 -> - | B68: =Riepilogo!Q125 -> -
A69: =Riepilogo!P126 -> - | B69: =Riepilogo!Q126 -> -
A70: =Riepilogo!P127 -> - | B70: =Riepilogo!Q127 -> -
A71: =Riepilogo!P128 -> - | B71: =Riepilogo!Q128 -> -
A72: =Riepilogo!P129 -> - | B72: =Riepilogo!Q129 -> -
A73: =Riepilogo!P130 -> - | B73: =Riepilogo!Q130 -> -
A74: =Riepilogo!P131 -> - | B74: =Riepilogo!Q131 -> -
A75: =Riepilogo!P132 -> - | B75: =Riepilogo!Q132 -> -
A76: =Riepilogo!P133 -> - | B76: =Riepilogo!Q133 -> -
A77: =Riepilogo!P134 -> - | B77: =Riepilogo!Q134 -> -
A78: =Riepilogo!P135 -> - | B78: =Riepilogo!Q135 -> -
A79: =Riepilogo!P136 -> - | B79: =Riepilogo!Q136 -> -
A80: =Riepilogo!P137 -> - | B80: =Riepilogo!Q137 -> -
A81: =Riepilogo!P138 -> - | B81: =Riepilogo!Q138 -> -
A82: =Riepilogo!P139 -> - | B82: =Riepilogo!Q139 -> -
A83: =Riepilogo!P140 -> - | B83: =Riepilogo!Q140 -> -
A84: =Riepilogo!P141 -> - | B84: =Riepilogo!Q141 -> -
A85: =Riepilogo!P142 -> - | B85: =Riepilogo!Q142 -> -
A86: =Riepilogo!#REF! ->  | B86: =Riepilogo!#REF! -> 
A87: =Riepilogo!P143 -> - | B87: =Riepilogo!Q143 -> -

Sheet Regole di configurazione (hidden)
A1: Descrizione | B1: Quantità | C1: SKU | D1: Customer Kit | E1: Codice Convenzione | F1: Convenzione | G1: 0.2 | I1: SKU | J1: Customer Kit | P1: SKU | Q1: Customer Kit
A2: Server DELL EMC PowerEdge R7425, 2U, 1 x AMD EPYC 7301; RAM 64GB, 2 x HDD 600GB 10K 2.5" | B2: 1 | C2: [210-APFK] | E2: TS2L2-SRV | F2: 1849
A3: Server DELL EMC PowerEdge R7425, 2U, 2 x AMD EPYC 7301; RAM 64GB, 2 x HDD 600GB 10K 2.5" | B3: 1 | C3: [210-ANKP] | E3: TS2L2-SRV2CPU
A4: AMD EPYC™ 7301 2.2GHz/2.7GHz, 16C/32T, 64M Cache (155W/170W) DDR4-2400/2666 | B4: 1 | C4: [374-BBTR] | D4: 338-BNCI | E4: TS2L2-CPU | F4: 491 | G4: ="" ->  | H4: Standard Heatsinks, below 180W CPU | I4: 2 | J4: [412-AALN] | K4: 412-AALJ | L4: ="" ->  | M4: ="" ->  | N4: ="" ->  | O4: Riser Config 5, 4 x8, 3 x16 slots | P4: 1 | Q4: [330-BBJD] | R4: 330-BBMK 330-BBLS | T4: ="" -> 
A5: Windows Server 2019 Standard Ed,ROK,16CORE (for Distributor sale only) | D5: 634-BRMW | E5: TS2L2-WIN1 | F5: 553
A6: Windows Server 2019 Standard Ed,Additional Lic,ROK,2CORE,NoMedia | D6: 634-BJQW | E6: TS2L2-WIN2CORE | F6: 74
A7: CentOS 7.0 | E7: TS2L2-LINUX | F7: 49
A8: 1 Windows Server 2019 Device CALs (Standard or Datacenter),CUS | D8: 623-BBBX | E8: TS2L2-CALDEV | F8: 20
A9: 1 Windows Server 2019 User CALs (Standard or Datacenter),CUS | D9: 623-BBCC | E9: TS2L2-CALUSER | F9: 24
A10: 16GB RDIMM, 2666MT/s, Dual Rank | C10: [370-ADND] | D10: AA138422 | E10: TS2L2-RAM16 | F10: 103
A11: 32GB RDIMM, 2666MT/s, Dual Rank | C11: [370-ADNF] | D11: A9781929 | E11: TS2L2-RAM32 | F11: 347
A12: 64GB LRDIMM, 2666MT/s, Quad Rank | C12: [370-AECZ] | D12: A9781930 | E12: TS2L2-RAM64 | F12: 697
A13: 600GB 10K RPM SAS 12Gbps 512n 2.5in Hot-plug Hard Drive | C13: [400-ASGS] | D13: 400-AUNQ | E13: TS2L2-10K600 | F13: 68
A14: 1.2TB 10K RPM SAS 12Gbps 512n 2.5in Hot-plug Hard Drive | C14: [400-ASHI] | D14: 400-ATJL | E14: TS2L2-10K1200 | F14: 136
A15: 480GB SSD SAS Mixed Use 12Gbps 2.5in Hot-Plug Hard Drive | D15: 400-BCOD | E15: TS2L2-SSDM480 | F15: 399
A16: 960GB SSD SAS Read Intensive 12Gbps 512e 2.5in Hot-plug Drive, PM5-R, 1 DWPD, 1752 TBW | C16: [400-BBPL] | D16: 400-ATLL | E16: TS2L2-SSDR960 | F16: 664
A17: 1.92TB SSD SAS Read Intensive 12Gbps 512e 2.5in Hot-plug Drive, PM1633a | C17: [400-ASFX] | D17: 400-ATND | E17: TS2L2-SSDR1920 | F17: 1313
A18: Broadcom 5720 DP 1Gb Network Interface Card,Full Height,CusKit | C18: [540-BBCX] | D18: 540-BBGY | E18: TS2L2-LAN1 | F18: 22
A19: Broadcom 57412 Dual Port 10Gb, SFP+, PCIe Adapter, Full Height, Customer Install | C19: [540-BBUH] | D19: 540-BBUN | E19: TS2L2-LAN10 | F19: 114 | H19: Kit - Dell EMC PowerEdge SFP+ SR Optic, 10GbE, 850nm | J19: 407-BCBN | K19: 2
A20: QLogic 41112 Dual Port 10Gb SFP+ Adapter, Full Height, Customer Install | C20: [540-BBYK] | D20: 540-BBYH | E20: TS2L2-CNA10 | F20: 110 | H20: Kit - Dell EMC PowerEdge SFP+ SR Optic, 10GbE, 850nm | J20: 407-BCBN | K20: 2
A21: QLogic 2562, Dual Port 8Gb Optical Fibre Channel HBA,Full Height,CusKit | C21: [540-BBEC] | D21: 406-BBEK | E21: TS2L2-FC8 | F21: 245
A22: Broadcom 5720 DP 1Gb Network Interface Card, Low Profile | C22: [540-BBDE] | D22: 540-BBGW | E22: TS2L2-LAN1-L | F22: 22
A23: Broadcom 57412 Dual Port 10Gb, SFP+, PCIe Adapter, Low Profile | C23: [540-BBVI] | D23: 540-BBVL | E23: TS2L2-LAN10-L | F23: 114 | H23: Kit - Dell EMC PowerEdge SFP+ SR Optic, 10GbE, 850nm | J23: 407-BCBN | K23: 2
A24: QLogic FastLinQ 41112 Dual Port 10Gb SFP+ Adapter, Low Profile | C24: [540-BBZI] | D24: 540-BBZM | E24: TS2L2-CNA10-L | F24: 110 | H24: Kit - Dell EMC PowerEdge SFP+ SR Optic, 10GbE, 850nm | J24: 407-BCBN | K24: 2
A25: QLogic 2562, Dual Port 8Gb Optical Fibre Channel HBA, Low Profile | C25: [540-BBEC] | D25: 406-BBEL | E25: TS2L2-FC8-L | F25: 245
A26: Estensione della manutenzione in garanzia per ulteriori 12 mesi | D26: 701-11494 732-79421 | E26: TS2L2-4Y | F26: 40
A27: Estensione della manutenzione in garanzia per ulteriori 24 mesi | D27: 701-11494 701-11494 732-79422 | E27: TS2L2-5Y | F27: 81
A28: Tecnosteel: armadio Rack 19'' 42U | E28: TS2L2-RACK | F28: 504
A29: 1U Rackmount Console 17'' with Italian Keyboard | E29: TS2L2-GUI | F29: 448
A30: 16-port remote KVM switch with one remote user | E30: TS2L2-KVMIP | F30: 495
A31: Riello - UPS MSR3000EVO 3000VA 2U Rackmount (SNMP+USB+RS232) | E31: TS2L2-UPS | F31: 387
A32: 0.2
A33: Coppia di PDU Vertical 1Ph-32A-18xC13-6xC19 - 0U Base + Kit di montaggio A20 | E33: TS2L2-PDU32A | G33: 436
A34: Coppia di PDU Vertical 1Ph-16A-36xC13+6xC19 -0U Metered + Kit di montaggio A20 | E34: TS2L2-TM1613606 | G34: 900
A35: Coppia di PDU Vertical 1Ph-32A-36xC13+6xC19 -0U Metered + Kit di montaggio A20 | E35: TS2L2-TM3213606 | G35: 939
A36: Coppia di PDU Vertical 3Ph-32A-36xC13+6xC19 -0U Metered + Kit di montaggio A20 | E36: TS2L2-TM3233606 | G36: 1106
A37: Coppia di PDU Vertical 1Ph-16A-24xC13+6xC19 -0U Controlled + Kit di montaggio A20 | E37: TS2L2-TK1612406 | G37: 1723
A38: Coppia di PDU Vertical 1Ph-32A-24xC13+6xC19 -0U Controlled + Kit di montaggio A20 | E38: TS2L2-TK3212406 | G38: 1817
A39: Coppia di PDU Vertical 3Ph-32A-24xC13+6xC19 -0U Controlled + Kit di montaggio A20 | E39: TS2L2-TK3232406 | G39: 2154
A40: Coppia di PDU Vertical 1Ph-16A-24xC13+6xC19 -0U Full + Kit di montaggio A20 | E40: TS2L2-TF1612406 | G40: 2173
A41: Coppia di PDU Vertical 1Ph-32A-24xC13+6xC19 -0U Full + Kit di montaggio A20 | E41: TS2L2-TF3212406 | G41: 2277
A42: Coppia di PDU Vertical 3Ph-32A-24xC13+6xC19 -0U Full + Kit di montaggio A20 | E42: TS2L2-TF3232406 | G42: 2518
A43: Cavo Rete UTP cat. 5e 3 metri A20 | E43: TS2L2-3MRJ45 | G43: 2
A44: 1.8TB 10K RPM SAS 12Gbps 512e 2.5in Hot-plug Hard Drive A20 | C44: [400-ARXC] | D44: 400-ATJR | E44: TS2L2-10K1800 | G44: 169
A45: Kit upgrade R7425 per GPU A20 | E45: TS2L2-KITGPU | G45: 999
A46: PERC HBA330 RAID Controller, 12Gb Adapter, Full Height A20 | B46: 1 | C46: [405-AAOO] | D46: 405-AAMV | E46: TS2L2-HBA330 | G46: 999
A47: PERC H740P RAID Controller, 8Gb NV Cache, Adapter, Full Height A20 | B47: 1 | C47: [405-AANR] | D47: 405-AAMX | E47: TS2L2-H740P | G47: 999
A48: Broadcom 57416 Dual Port 10Gb, Base-T, PCIe Adapter, Full Height A20 | B48: 1 | C48: [540-BBUI] | D48: 540-BBUO | E48: TS2L2-57416 | G48: 999
A49: QLogic FastLinQ 41162 Dual Port 10Gb Base-T Adapter, Full Height A20 | B49: 1 | C49: [540-BBYJ] | D49: 540-BBYG | E49: TS2L2-41162 | G49: 999
A50: Mellanox ConnectX-5 Single Port EDR VPI QSFP28 PCIe Adapter, Full Height A20 | B50: 1 | C50: [540-BCDK] | D50: 540-BCIV | E50: TS2L2-MCX416A | G50: 999
A51: Mellanox ConnectX-4 Dual Port 100GbE QSFP28 PCIe Adapter, Full Height A20 | B51: 1 | C51: [540-BBUT] | D51: 540-BBUU | E51: TS2L2-MCX516A | G51: 999
A52: QLogic 2692 Dual Port 16Gb Fibre Channel HBA A20 | B52: 1 | C52: [403-BBMQ] | D52: 403-BBMU | E52: TS2L2-2692 | G52: 999
A53: Broadcom 57416 Dual Port 10Gb, Base-T, PCIe Adapter, Low Profile A20 | B53: 1 | C53: [540-BBVJ] | D53: 540-BBVM | E53: TS2L2-57416-L | G53: 999
A54: Mellanox ConnectX-4 Lx Dual Port 25GbE SFP28 Network Adapter, Low Profile A20 | B54: 1 | C54: [406-BBLD] | D54: 406-BBLC | E54: TS2L2-MCX4121AL | G54: 999
A55: Mellanox ConnectX-4 Dual Port 40/100GbE, QSFP28, PCIe Adapter, Low Profile A20 | B55: 1 | D55: 540-BBVR | E55: TS2L2-MCX416A-L | G55: 999
A56: QLogic FastLinQ 41162 Dual Port 10Gb Base-T Adapter, Low Profile A20 | B56: 1 | C56: [540-BBZK] | D56: 540-BBZN | E56: TS2L2-41162-L | G56: 999
A57: QLogic 2692 Dual Port 16Gb Fibre Channel HBA, Low Profile A20 | B57: 1 | C57: [403-BBMS] | D57: 403-BBMT | E57: TS2L2-2692-L | G57: 999
A58: NVIDIA Tesla V100 32G Passive GPU A20 | B58: 1 | C58: [490-BENY] | E58: TS2L2-GPUV10032 | G58: 999
A59: NVIDIA Tesla™ V100 16G Passive GPU A20 | B59: 1 | C59: [490-BEDZ] | E59: TS2L2-GPUV10016 | G59: 16366.99
A60: NVIDIA Tesla P40 24GB GPU, Passive A20 | B60: 1 | C60: [489-BBCN] | E60: TS2L2-GPUP4024 | G60: 999
A61: NVIDIA Tesla M10 GPU, Requires GRID 2.0 SW for VDI Function A20 | B61: 1 | C61: [489-BBCG] | E61: TS2L2-GPUM10 | G61: 4237.99
A62: ISDM and Combo Card Reader, with 2 32Gb microSDHC/SDXC Card A20 | B62: 1 | D62: 385-BBLF 385-BBKK 385-BBKK | E62: TS2L2-IDSDM32 | G62: 999
A63: ISDM and Combo Card Reader, with 2 64Gb microSDHC/SDXC Card A20 | B63: 1 | D63: 385-BBLF 385-BBKL 385-BBKL | E63: TS2L2-IDSDM64 | G63: 999
A64: BOSS controller card + with 2 M.2 Sticks 240G (RAID 1),FH A20 | B64: 1 | C64: [403-BBPT] | D64: 403-BBVQ 400-ASDQ 400-ASDQ | E64: TS2L2-BOSS240 | G64: 999
A65: BOSS controller card + with 2 M.2 Sticks 480GB (RAID 1),FH A20 | B65: 1 | C65: [403-BBSV] | D65: 403-BBVQ 400-AVSS 400-AVSS | E65: TS2L2-BOSS480 | G65: 999
A67: Trusted Platform Module
A68: No Trusted Platform Module | B68: 1 | C68: [461-AADZ]
A69: Trusted Platform Module 2.0 | B69: 1 | C69: [461-AAEM] | D69: 461-AAEN | E69: TS2L3-TPM2 | G69: 0
A71: Processore aggiuntivo
A72: TS2L3CPU
A73: No Additional Processor | B73: 0 | C73: [374-BBBX] | D73: ="" ->  | E73: ="" ->  | F73: 0 | G73: ="" ->  | H73: Standard Heatsinks, below 180W CPU | I73: 1 | J73: [412-AALN] | K73: 412-AALJ | L73: Blank for 1 CPU Configuration | M73: 1 | N73: [379-BCWU] | O73: Riser Config 1, 2 x8, 1 x16 slots | P73: 1 | Q73: [330-BBIY] | R73: ="" ->  | S73: ="" ->  | T73: ="" -> 
A74: AMD EPYC 7281 2.1GHz/2.7GHz, 16C/32T, 32M Cache (155W/170W) DDR4-2400/2666 | B74: 1 | D74: 338-BNKP | E74: TS2L2-CPU | F74: 491 | G74: ="" ->  | H74: Standard Heatsinks, below 180W CPU | I74: 2 | J74: [412-AALN] | K74: 412-AALJ | L74: ="" ->  | M74: ="" ->  | N74: ="" ->  | O74: Riser Config 1, 2 x8, 1 x16 slots | P74: 1 | Q74: [330-BBIY] | T74: ="" -> 
A75: Riser
A76: Riser Config 1, 2 x8, 1 x16 slots | B76: 0 | C76: [330-BBIY] | D76: ="" ->  | E76: ="" ->  | F76: 0 | G76: 0 | H76: _NORISER
A77: Riser Config 5, 4 x8, 3 x16 slots | B77: 1 | C77: [330-BBJD] | D77: 330-BBMK 330-BBLS | E77: TS2L2-RISER | F77: 0 | G77: 152 | H77: _RISER
A78: Sistema operativo preinstallato
A79: None | B79: ="" ->  | C79: [619-ABVR] | D79: 0 | E79: ="" ->  | F79: 0 | G79: 0 | H79: ="" ->  | I79: ="" ->  | J79: ="" ->  | K79: ="" ->  | L79: ="" ->  | M79: ="" ->  | N79: 0
A80: Windows Server 2019 Standard Ed,ROK,16CORE | B80: 1 | D80: 634-BRMW | E80: TS2L2-WIN1 | F80: 553 | H80: Windows Server 2019 Standard Ed,Additional Lic,ROK,2CORE,NoMedia | I80: 8 | K80: 634-BJQW | L80: TS2L2-WIN2CORE | M80: =74*I80 -> 592 | N80: 0
A81: Windows Server 2019 Datacenter Ed 16CORE A20 | B81: 1 | D81: 634-BRMY | E81: TS2L2-WINDC | G81: 3345 | H81: Windows Server 2019 Datacenter Ed Add License 16CORE A20 | I81: 1 | K81: 634-BKYO | L81: TS2L2-WINDC2 | N81: 3343
A82: CentOS 7.0 | B82: 1 | D82: ="" ->  | E82: TS2L2-LINUX | F82: 49 | G82: 0 | H82: ="" ->  | I82: ="" ->  | J82: ="" ->  | K82: ="" ->  | L82: ="" ->  | M82: 0 | N82: 0
A83: 1 Windows Server 2019, Device CALs (Standard or Datacenter),CUS | D83: 623-BBBX | E83: TS2L2-CALDEV | F83: 20
A84: 1 Windows Server 2019, User CALs (Standard or Datacenter),CUS | D84: 623-BBCC | E84: TS2L2-CALUSER | F84: 24
A85: Windows Server 2019 Standard Ed,Additional Lic,ROK,2CORE,NoMedia | D85: 634-BJQW | E85: TS2L2-WIN2CORE | F85: 74
A86: TS2L3MEM1CPU
A87: 64 (DIMM 32GB) | B87: 32GB RDIMM, 2666MT/s, Dual Rank | C87: 2 | D87: [370-ADNF] | E87: A9781929 | F87: ="" ->  | G87: 0 | I87: 2666MT/s RDIMMs | J87: 1 | K87: [370-ADNU]
A88: 128 (DIMM 32GB) | B88: 32GB RDIMM, 2666MT/s, Dual Rank | C88: 4 | D88: [370-ADNF] | E88: A9781929 | F88: TS2L2-RAM32 | G88: =$F$11*(C88-$C$87) -> 694 | I88: 2666MT/s RDIMMs | J88: 1 | K88: [370-ADNU]
A89: 256 (DIMM 32GB) | B89: 32GB RDIMM, 2666MT/s, Dual Rank | C89: 8 | D89: [370-ADNF] | E89: A9781929 | F89: TS2L2-RAM32 | G89: =$F$11*(C89-$C$87) -> 2082 | I89: 2666MT/s RDIMMs | J89: 1 | K89: [370-ADNU]
A90: 512 (DIMM 32GB) | B90: 32GB RDIMM, 2666MT/s, Dual Rank | C90: 16 | D90: [370-ADNF] | E90: A9781929 | F90: TS2L2-RAM32 | G90: =$F$11*(C90-$C$87) -> 4858 | I90: 2666MT/s RDIMMs | J90: 1 | K90: [370-ADNU]
A91: -------------------------- | B91: 32GB RDIMM, 2666MT/s, Dual Rank | C91: 2 | D91: [370-ADNF] | E91: A9781929 | G91: 0 | I91: 2666MT/s RDIMMs | J91: 1 | K91: [370-ADNU]
A92: 256 (DIMM 64GB) | B92: 64GB LRDIMM, 2666MT/s, Quad Rank | C92: 4 | D92: [370-AECZ] | E92: A9781930 | F92: TS2L2-RAM64 | G92: =$F$12*C92 -> 2788 | I92: 2666MT/s LRDIMMs | J92: 1 | K92: [370-ADNT]
A93: 512 (DIMM 64GB) | B93: 64GB LRDIMM, 2666MT/s, Quad Rank | C93: 8 | D93: [370-AECZ] | E93: A9781930 | F93: TS2L2-RAM64 | G93: =$F$12*C93 -> 5576 | I93: 2666MT/s LRDIMMs | J93: 1 | K93: [370-ADNT]
A94: 768 (DIMM 64GB) | B94: 64GB LRDIMM, 2666MT/s, Quad Rank | C94: 12 | D94: [370-AECZ] | E94: A9781930 | F94: TS2L2-RAM64 | G94: =$F$12*C94 -> 8364 | I94: 2666MT/s LRDIMMs | J94: 1 | K94: [370-ADNT]
A95: 1024 (DIMM 64GB) | B95: 64GB LRDIMM, 2666MT/s, Quad Rank | C95: 16 | D95: [370-AECZ] | E95: A9781930 | F95: TS2L2-RAM64 | G95: =$F$12*C95 -> 11152 | I95: 2666MT/s LRDIMMs | J95: 1 | K95: [370-ADNT]
A97: TS2L3MEM2CPU
A98: 64 (DIMM 32GB) | B98: 32GB RDIMM, 2666MT/s, Dual Rank | C98: 2 | D98: [370-ADNF] | E98: A9781929 | F98: ="" ->  | G98: 0 | I98: 2666MT/s RDIMMs | J98: 1 | K98: [370-ADNU]
A99: 128 (DIMM 32GB) | B99: 32GB RDIMM, 2666MT/s, Dual Rank | C99: 4 | D99: [370-ADNF] | E99: A9781929 | F99: TS2L2-RAM32 | G99: =$F$11*(C99-$C$87) -> 694 | I99: 2666MT/s RDIMMs | J99: 1 | K99: [370-ADNU]
A100: 256 (DIMM 32GB) | B100: 32GB RDIMM, 2666MT/s, Dual Rank | C100: 8 | D100: [370-ADNF] | E100: A9781929 | F100: TS2L2-RAM32 | G100: =$F$11*(C100-$C$87) -> 2082 | I100: 2666MT/s RDIMMs | J100: 1 | K100: [370-ADNU]
A101: 512 (DIMM 32GB) | B101: 32GB RDIMM, 2666MT/s, Dual Rank | C101: 16 | D101: [370-ADNF] | E101: A9781929 | F101: TS2L2-RAM32 | G101: =$F$11*(C101-$C$87) -> 4858 | I101: 2666MT/s RDIMMs | J101: 1 | K101: [370-ADNU]
A102: 768 (DIMM 32GB) | B102: 32GB RDIMM, 2666MT/s, Dual Rank | C102: 24 | D102: [370-ADNF] | E102: A9781929 | F102: TS2L2-RAM32 | G102: =$F$11*(C102-$C$87) -> 7634 | I102: 2666MT/s RDIMMs | J102: 1 | K102: [370-ADNU]
A103: 1024 (DIMM 32GB) | B103: 32GB RDIMM, 2666MT/s, Dual Rank | C103: 32 | D103: [370-ADNF] | E103: A9781929 | F103: TS2L2-RAM32 | G103: =$F$11*(C103-$C$87) -> 10410 | I103: 2666MT/s RDIMMs | J103: 1 | K103: [370-ADNU]
A104: -------------------------- | B104: 32GB RDIMM, 2666MT/s, Dual Rank | C104: 2 | D104: [370-ADNF] | E104: A9781929 | G104: 0 | I104: 2666MT/s RDIMMs | J104: 1 | K104: [370-ADNU]
A105: 256 (DIMM 64GB) | B105: 64GB LRDIMM, 2666MT/s, Quad Rank | C105: 4 | D105: [370-AECZ] | E105: A9781930 | F105: TS2L2-RAM64 | G105: =$F$12*C105 -> 2788 | I105: 2666MT/s LRDIMMs | J105: 1 | K105: [370-ADNT]
A106: 512 (DIMM 64GB) | B106: 64GB LRDIMM, 2666MT/s, Quad Rank | C106: 8 | D106: [370-AECZ] | E106: A9781930 | F106: TS2L2-RAM64 | G106: 5576 | I106: 2666MT/s LRDIMMs | J106: 1 | K106: [370-ADNT]
A107: 768 (DIMM 64GB) | B107: 64GB LRDIMM, 2666MT/s, Quad Rank | C107: 12 | D107: [370-AECZ] | E107: A9781930 | F107: TS2L2-RAM64 | G107: 8364 | I107: 2666MT/s LRDIMMs | J107: 1 | K107: [370-ADNT]
A108: 1024 (DIMM 64GB) | B108: 64GB LRDIMM, 2666MT/s, Quad Rank | C108: 16 | D108: [370-AECZ] | E108: A9781930 | F108: TS2L2-RAM64 | G108: 11152 | I108: 2666MT/s LRDIMMs | J108: 1 | K108: [370-ADNT]
A109: 1536 (DIMM 64GB) | B109: 64GB LRDIMM, 2666MT/s, Quad Rank | C109: 24 | D109: [370-AECZ] | E109: A9781930 | F109: TS2L2-RAM64 | G109: 16728 | I109: 2666MT/s LRDIMMs | J109: 1 | K109: [370-ADNT]
A110: 2048 (DIMM 64GB) | B110: 64GB LRDIMM, 2666MT/s, Quad Rank | C110: 32 | D110: [370-AECZ] | E110: A9781930 | F110: TS2L2-RAM64 | G110: 22304 | I110: 2666MT/s LRDIMMs | J110: 1 | K110: [370-ADNT]
A112: Controller Dischi
A113: PERC H730P RAID Controller, 2Gb NV Cache, Adapter, Full Height | B113: 1 | C113: [405-AAMR] | D113: 405-AAMY | F113: 0
A114: PERC HBA330 RAID Controller, 12Gb Adapter, Full Height A20 | B114: 1 | C114: [405-AAOO] | D114: 405-AAMV | E114: TS2L2-HBA330 | G114: =G46 -> 999
A115: PERC H740P RAID Controller, 8Gb NV Cache, Adapter, Full Height A20 | B115: 1 | C115: [405-AANR] | D115: 405-AAMX | E115: TS2L2-H740P | G115: =G47 -> 999
A117: Modulo Doppia SD - Internal Dual SD Module (IDSDM)
A118: None | B118: 0 | E118: ="" -> 
A119: [TS2L3-ISDM32] ISDM and Combo Card Reader, 2x 32GB microSDHC/SDXC Card A20 | B119: 1 | D119: 385-BBLF 385-BBKK 385-BBKK | E119: TS2L2-ISDM32 | G119: 134
A120: ISDM and Combo Card Reader, with 2 64Gb microSDHC/SDXC Card | B120: 1 | D120: 385-BBLF 385-BBKL 385-BBKL | E120: TS2L2-IDSDM64 | G120: =G63 -> 999
A125: 7.2 SATA
A126: 1TB 7.2K RPM SATA 6Gbps 512n 2.5in Hot-plug Hard Drive | C126: [400-ASHF] | D126: 400-ATJG | E126: TS2L2-7K1000 | O126: [Option Id: 5103889] [SKU: 400-ASHF]
A127: 2TB 7.2K RPM SATA 6Gbps 512n 2.5in Hot-plug Hard Drive | C127: [400-ASHT] | D127: 400-ATJZ | E127: TS2L2-7K2000 | O127: [Option Id: 5103953] [SKU: 400-ASHT]
A128: 7.2K NLSAS
A129: 1TB 7.2K RPM NLSAS 12Gbps 512n 2.5in Hot-plug Hard Drive | C129: [400-ASHE] | D129: 400-ATJD | E129: TS2L2-NL1000 | O129: [Option Id: 5103886] [SKU: 400-ASHE]
A130: 2TB 7.2K RPM NLSAS 12Gbps 512n 2.5in Hot-plug Hard Drive | C130: [400-ASHP] | D130: 400-ATJU | E130: TS2L2-NL2000 | O130: [Option Id: 5103937] [SKU: 400-ASHP]
A131: 10K
A132: 600GB 10K RPM SAS 12Gbps 512n 2.5in Hot-plug Hard Drive | C132: [400-ASGS] | D132: 400-AUNQ | E132: TS2L2-10K600 | F132: 68 | O132: [Option Id: 5103901] [SKU: 400-ASHI]
A133: 1.2TB 10K RPM SAS 12Gbps 512n 2.5in Hot-plug Hard Drive | C133: [400-ASHI] | D133: 400-ATJL | E133: TS2L2-10K1200 | F133: 136 | O133: [Option Id: 5103918] [SKU: 400-ASHK]
A134: 1.8TB 10K RPM SAS 12Gbps 512e 2.5in Hot-plug Hard Drive | C134: [400-ARXC] | D134: 400-ATJR | E134: TS2L2-10K1800 | F134: 169 | O134: [Option Id: 5103923] [SKU: 400-ARXC]
A135: 2.4TB 10K RPM SAS 12Gbps 512e 2.5in Hot-plug Hard Drive | C135: [400-AVEZ] | D135: 401-ABHQ | E135: TS2L2-10K2400 | G135: 389 | O135: [Option Id: 24TBMD] [SKU: 400-AVEZ]
A136: 1.2TB 10K RPM Self-Encrypting SAS 12Gbps 512n 2.5in Hot-plug Hard Drive, FIPS140 | C136: [400-ASHK] | D136: 400-ATJO | O136: [Option Id: 24TASHJ] [SKU: 400-AVHH]
A137: 2.4TB 10K RPM Self-Encrypting SAS 12Gbps 512e 2.5in Hot-plug Hard Drive, FIPS140 | C137: [400-AVHH] | O137: [Option Id: 5103818] [SKU: 400-ASGS]
A138: 15K
A139: 300GB 15K RPM SAS 12Gbps 512n 2.5in Hot-plug Hard Drive | C139: [400-ASGQ] | D139: 400-ATII | E139: TS2L2-15K300 | O139: [Option Id: 5103806] [SKU: 400-ASGQ]
A140: 600GB 15K RPM SAS 12Gbps 512n 2.5in Hot-plug Hard Drive | C140: [400-ARWN] | D140: 400-ATIN | E140: TS2L2-15K600 | O140: [Option Id: 5102974] [SKU: 400-ARWN]
A141: 900GB 15K RPM SAS 12Gbps 512n 2.5in Hot-plug Hard Drive | C141: [400-ASGV] | D141: 400-ATIQ | E141: TS2L2-15K900 | O141: [Option Id: 5103865] [SKU: 400-ASGV]
A142: SATA RI
A143: 480GB SSD SATA Read Intensive 6Gbps 512 2.5in Hot-plug AG Drive, 1 DWPD, 876 TBW | C143: [400-AXTV] | E143: TS2L2-STRI480 | O143: [Option Id: G3ZJM0K] [SKU: 400-AXTV]
A144: 480GB SSD SATA Read Intensive 6Gbps 512e 2.5in Hot Plug S4510 Drive, 1 DWPD,876 TBW | C144: [400-BDOD] | O144: [Option Id: GCMLA2O] [SKU: 400-BDOD]
A145: 480GB SSD SATA Read Intensive 6Gbps 512e 2.5in Hot-plug Drive, S4500, 1 DWPD,876 TBW | C145: [400-ASXH] | O145: [Option Id: 5106652] [SKU: 400-ASXH]
A146: 960GB SSD SATA Read Intensive 6Gbps 512 2.5in Hot-plug AG Drive, 1 DWPD, 1752 TBW | C146: [400-AXSW] | E146: TS2L2-STRI960 | O146: [Option Id: GA16FX3] [SKU: 400-AXSW]
A147: 960GB SSD SATA Read Intensive 6Gbps 512e 2.5in Hot Plug S4510 Drive, 1 DWPD,1752 TBW | C147: [400-BDNJ] | O147: [Option Id: GK6T7WB] [SKU: 400-BDNJ]
A148: 960GB SSD SATA Read Intensive 6Gbps 512n 2.5in Hot-plug Drive, PM863a | C148: [400-ASFM] | O148: [Option Id: 5103700] [SKU: 400-ASFM]
A149: 1.6TB SSD Self-Encrypting SATA Mix Use 6Gbps 512n 2.5in Hot-plug Drive, Hawk-M4E | C149: [400-ASYY] | O149: [Option Id: 5106694] [SKU: 400-ASYY]
A150: 1.6TB SSD Self-Encrypting SATA Mix Use 6Gbps 512n 2.5in Hot-plug Drive, Hawk-M4E | C150: [400-ASYY] | O150: [Option Id: GLDJ7FE] [SKU: 400-ASYY]
A151: 1.92TB SSD SATA Read Intensive 6Gbps 512 2.5in Hot-plug AG Drive, 1 DWPD, 3504 TBW | C151: [400-AXSD] | O151: [Option Id: GGMU1EX] [SKU: 400-AXSD]
A152: 1.92TB SSD SATA Read Intensive 6Gbps 512e 2.5in Hot-plug S4510 Drive, 1 DWPD,3504 TBW | C152: [400-BDOE] | E152: TS2L2-STRI1920 | O152: [Option Id: G3UTQH6] [SKU: 400-BDOE]
A153: 1.92TB SSD SATA Read Intensive 6Gpbs 512e 2.5in Hot-plug Drive, S4500,1 DWPD,3504 TBW | C153: [400-ASZJ] | O153: [Option Id: 5106704] [SKU: 400-ASZJ]
A154: 3.84TB SSD SATA Read Intensive 6Gbps 512 2.5in Hot-plug AG Drive, 1 DWPD, 7008 TBW | C154: [400-AXSK] | O154: [Option Id: GS7WBQI] [SKU: 400-AXSK]
A155: 3.84TB SSD SATA Read Intensive 6Gbps 512e 2.5in Hot-plug Drive, S4500,1 DWPD,7008 TBW | C155: [400-ASZS] | E155: TS2L2-STSRI3840 | O155: [Option Id: 5106713] [SKU: 400-ASZS]
A156: SATA MU
A157: 480GB SSD SATA Mix Use 6Gbps 512 2.5in Hot-plug AG Drive, 3 DWPD, 2628 TBW | C157: [400-AZUT] | E157: TS2L2-STMU480 | O157: [Option Id: GB6HAM5] [SKU: 400-AZUT]
A158: 800GB SSD SATA Mix Use 6Gbps 512n 2.5in Hot-plug Drive, Hawk-M4E,3 DWPD,4380 TBW | C158: [400-ASYC] | E158: TS2L2-STMU800 | O158: [Option Id: 5106672] [SKU: 400-ASYC]
A159: 960GB SSD SATA Mix Use 6Gbps 512 2.5in Hot-plug AG Drive, 3 DWPD, 5256 TBW | C159: [400-AZVM] | E159: TS2L2-STMU960 | O159: [Option Id: GKTZGJ7] [SKU: 400-AZVM]
A160: 1.6TB SSD SATA Mix Use 6Gbps 512n 2.5in Hot-plug Drive, Hawk-M4E,3 DWPD,8760 TBW | C160: [400-AVMM] | E160: TS2L2-STMU1600 | O160: [Option Id: 1FBT6G] [SKU: 400-AVMM]
A161: 1.92TB SSD SATA Mix Use 6Gbps 512 2.5in Hot-plug AG Drive, 3 DWPD, 10512 TBW | C161: [400-AZTN] | O161: [Option Id: GW19KER] [SKU: 400-AZTN]
A162: 1.92TB SSD SATA Mix Use 6Gbps 512e 2.5in Hot-plug Drive, S4600,3 DWPD,10512 TBW | C162: [400-ASZB] | E162: TS2L2-STMU1920 | O162: [Option Id: 5106696] [SKU: 400-ASZB]
A163: SAS RI
A164: 960GB SSD SAS Read Intensive 12Gbps 512 2.5in Hot-plug AG Drive, 1 DWPD, 1752 TBW | C164: [400-AXQU] | O164: [Option Id: GD4L6BE] [SKU: 400-AXQU]
A165: 960GB SSD SAS Read Intensive 12Gbps 512e 2.5in Hot-plug Drive, PM5-R, 1 DWPD, 1752 TBW | C165: [400-BBPL] | D165: 400-ATLL | E165: TS2L2-SSDR960 | F165: 664 | O165: [Option Id: G4YAXQB] [SKU: 400-BBPL]
A166: 960GB SSD SAS Read Intensive 12Gbps 512n 2.5in Hot-plug Drive, PX05SR | C166: [400-ASEZ] | O166: [Option Id: 5103679] [SKU: 400-ASEZ]
A167: 1.92TB SSD SAS Read Intensive 12Gbps 512 2.5in Hot-plug AG Drive, 1 DWPD, 3504 TBW | C167: [400-AXOP] | O167: [Option Id: GJM2W96] [SKU: 400-AXOP]
A168: 1.92TB SSD SAS Read Intensive 12Gbps 512e 2.5in Hot-plug Drive, PM1633a | C168: [400-ASFX] | D168: 400-ATND | E168: TS2L2-SSDR1920 | F168: 1313 | O168: [Option Id: 5103731] [SKU: 400-ASFX]
A169: 1.92TB SSD SAS Read Intensive 12Gbps 512e 2.5in PM5-R Hot-plug Drive, 1 DWPD, 3504 TBW | C169: [400-BBQQ] | O169: [Option Id: GF74XBJ] [SKU: 400-BBQQ]
A170: 1.92TB SSD SAS Read Intensive MLC 12Gbps 512n 2.5in Hot-plug Drive, PX05SR | C170: [400-ARWC] | O170: [Option Id: 5102925] [SKU: 400-ARWC]
A171: 3.84TB SSD SAS Read Intensive 12Gb 512e 2.5in Hot-plug Drive, PM1633a,1 DWPD,7008 TBW | C171: [400-ASGI] | E171: TS2L2-SSDRI3840 | O171: [Option Id: 5103757] [SKU: 400-ASGI]
A172: 3.84TB SSD SAS Read Intensive 12Gbps 512 2.5in Hot-plug AG Drive, 1 DWPD, 7008 TBW | C172: [400-AXPE] | O172: [Option Id: GUSCJI4] [SKU: 400-AXPE]
A173: 3.84TB SSD SAS Read Intensive 12Gbps 512e 2.5in PM5-R Hot-plug Drive, 1 DWPD, 7008 TBW | C173: [400-BBQX] | O173: [Option Id: GQNDTX4] [SKU: 400-BBQX]
A174: 3.84TB SSD SAS Read Intensive 12Gbps 512n 2.5in Hot-plug Drive, PX05SR | C174: [400-ASGG] | O174: [Option Id: 5103752] [SKU: 400-ASGG]
A175: 7.68TB SSD SAS Read Intensive 12Gbps 512e 2.5in Hot-plug Drive, PM1643, 1 DWPD, 14,016 TBW | C175: [400-BBSM] | E175: TS2L2-SSDRI7680 | O175: [Option Id: G7YW03Q] [SKU: 400-BBSM]
A176: 7.68TB SSD SAS Read Intensive 12Gbps 512e 2.5in PM5-R Hot-plug Drive, 1 DWPD, 14,016 TBW | C176: [400-BDCI] | O176: [Option Id: GGN2SI6] [SKU: 400-BDCI]
A177: SAS MU
A178: 480GB SSD SAS Mix Use 12Gbps 512n 2.5in Hot-plug Drive, PX05SV | C178: [400-ASEO] | E178: TS2L2-SSDMU480 | O178: [Option Id: 5103647] [SKU: 400-ASEO]
A179: 480GB SSD SAS Mixed use 12Gbps 512e 2.5in Hot-Plug PM5-V Drive, 3 DWPD, 2628 TBW | C179: [400-BCQG] | O179: [Option Id: GJP8HF2] [SKU: 400-BCQG]
A180: 800GB SSD SAS Mix Use 12Gbps 512e 2.5in Hot-plug AG Drive, 3 DWPD, 4380 TBW | C180: [400-AZQO] | E180: TS2L2-SSDMU800 | O180: [Option Id: GCAUG9H] [SKU: 400-AZQO]
A181: 960GB SSD SAS Mix Use 12Gbps 512n 2.5in Hot-plug Drive, PX05SV | C181: [400-ASFI] | E181: TS2L2-SSDMU960 | O181: [Option Id: 5103690] [SKU: 400-ASFI]
A182: 960GB SSD SAS Mixed use 12Gbps 512e 2.5in Hot-Plug PM5-V Drive | C182: [400-BCQN] | O182: [Option Id: G46MPBW] [SKU: 400-BCQN]
A183: 1.6TB SSD SAS Mix Use 12Gbps 512e 2.5in Hot-plug AG Drive, 3 DWPD, 8760 TBW | C183: [400-AZOY] | O183: [Option Id: GN5GTO1] [SKU: 400-AZOY]
A184: 1.6TB SSD SAS Mix Use 12Gbps 512e 2.5in Hot-plug Drive, PM1635a | C184: [400-ASFQ] | E184: TS2L2-SSDMU1600 | O184: [Option Id: 5103710] [SKU: 400-ASFQ]
A185: 1.92TB SSD SAS Mix Use 12Gbps 512n 2.5in Hot-plug Drive, PX05SV | C185: [400-ASFZ] | E185: TS2L2-SSDMU1920 | O185: [Option Id: 5103737] [SKU: 400-ASFZ]
A186: 1.92TB SSD SAS Mix Use SED 12Gbps 512n 2.5in Hot-plug Drive, FIPS140, PX05SV,3 DWPD,10512 TBW | C186: [400-ATRX] | O186: [Option Id: 510710] [SKU: 400-ATRX]
A187: 1.92TB SSD SAS Mixed use 12Gbps 512e 2.5in Hot-Plug PM5-V Drive, 3 DWPD, 10512 TBW | C187: [400-BCOM] | O187: [Option Id: G5BLI1F] [SKU: 400-BCOM]
A188: 3.84TB SSD SAS Mix Use 12Gbps 512n 2.5in Hot-plug Drive, PX05SV,3 DWPD,21024 TBW | C188: [400-ASVR] | E188: TS2L2-SSDMU3840 | O188: [Option Id: 5106756] [SKU: 400-ASVR]
A189: 3.8TB SSD SAS Mixed use 12Gbps 512e 2.5in Hot-Plug PM5-V Drive, 3 DWPD, 7008 TBW | C189: [400-BCOV] | O189: [Option Id: GXNZ83B] [SKU: 400-BCOV]
A190: SAS WI
A191: 400GB SSD SAS Write Intensive 12Gbps 512n 2.5in Hot-plug Drive, PX05SM | C191: [400-ASEM] | E191: TS2L2-SSDWI400 | O191: [Option Id: 5103644] [SKU: 400-ASEM]
A192: 800GB SSD SAS Write Intensive 12Gbps 512n 2.5in Hot-plug Drive, PX05SM | C192: [400-ASEV] | E192: TS2L2-SSDWI800 | O192: [Option Id: 5103669] [SKU: 400-ASEV]
A193: 1.6TB SSD SAS Write Intensive 12Gbps 512n 2.5in Hot-plug Drive, PX05SM | C193: [400-ASFS] | E193: TS2L2-SSDWI1600 | O193: [Option Id: 5103717] [SKU: 400-ASFS]
A198: VMWARE
A199: None | B199: 1 | C199: ="" ->  | D199: ="" ->  | E199: ="" ->  | G199: 0
A200: VMware vSphere Essentials Plus Kit OEM 6 Processor 3yr A20 | B200: 1 | C200: ="" ->  | D200: ="" ->  | E200: TS2L2-VMWKIT6P3Y | G200: 5230
A201: None | B201: 1 | C201: ="" ->  | D201: ="" ->  | E201: ="" ->  | G201: 0
A202: VMw vCenter Server Standard for vSphere OEM 3yr Software A20 | B202: 1 | C202: ="" ->  | D202: ="" ->  | E202: TS2L2-VMWVCSTD3Y | G202: 8909
A203: VMw vCenter Server Standard for vSphere OEM 5yr Software A20 | B203: 1 | C203: ="" ->  | D203: ="" ->  | E203: TS2L2-VMWVCSTD5Y | G203: 10549
A204: None | B204: 0 | C204: ="" ->  | D204: ="" ->  | E204: ="" ->  | G204: 0
A205: VMware vSphere Standard OEM 1 Processor 3yr Software A20 | B205: 1 | C205: ="" ->  | D205: ="" ->  | E205: TS2L2-VMWSTD1P3Y | G205: 1743
A206: VMware vSphere Enterprise Plus OEM 1 Processor 3yr Software A20 | B206: 1 | C206: ="" ->  | D206: ="" ->  | E206: TS2L2-VMWEP1P3Y | G206: 4905
A207: VMware vSphere Enterprise Plus OEM 1 Processor 5yr Software A20 | B207: 1 | C207: ="" ->  | D207: ="" ->  | E207: TS2L2-VMWEP1P5Y | G207: 6367
A208: None | B208: 0 | C208: ="" ->  | D208: ="" ->  | E208: ="" ->  | G208: 0
A209: VMware vSAN Standard OEM 1 Processor 3yr Software A20 | B209: 1 | C209: ="" ->  | D209: ="" ->  | E209: TS2L2-VSANSTD3Y | G209: 3177
A210: VMware vSAN Standard OEM 1 Processor 5yr Software A20 | B210: 1 | C210: ="" ->  | D210: ="" ->  | E210: TS2L2-VSANSTD5Y | G210: 4107
A211: VMware vSAN Advanced OEM 1 Processor 3yr Software A20 | B211: 1 | C211: ="" ->  | D211: ="" ->  | E211: TS2L2-VSANADV3Y | G211: 5010
A212: VMware vSAN Advanced OEM 1 Processor 5yr Software A20 | B212: 1 | C212: ="" ->  | D212: ="" ->  | E212: TS2L2-VSANADV5Y | G212: 6475
A217: TS2L2PCI1 | B217: 1CPU
... 256 more rows

Sheet Codici&PrezzixRiepilogo (hidden)
A1: CODICE CONVERGE | B1: CODICE CONVENZIONE | C1: Description | D1: Prezzo vendita da Converge a CONSIP tot. | E1: CODICE CONVERGE
A2: TS2L2-SRV | B2: TS2L2-SRV | C2: Server DELL EMC PowerEdge R7425, 2U, 1 x AMD EPYC 7281 | D2: 1849 | E2: TS2L2-SRV
A4: TS2L2-CPU | B4: TS2L2-CPU | C4: Processore AMD EPYC 7281 | D4: 491 | E4: TS2L2-CPU
C5: Standard Heatsink, 180W CPU, R7425
A7: TS2D-RAM16 | B7: TS2L2-RAM16 | C7: Upgrade KIT RAM 16GB | D7: 103 | E7: TS2D-RAM16
A8: TS2D-RAM32 | B8: TS2L2-RAM32 | C8: Upgrade KIT RAM 32GB | D8: 347 | E8: TS2D-RAM32
A9: TS2D-RAM64 | B9: TS2L2-RAM64 | C9: Upgrade KIT RAM 64GB | D9: 697 | E9: TS2D-RAM64
A11: TS2D-10K600 | B11: TS2L2-10K600 | C11: HDD 600GB 10K SAS 12Gbps 2.5in Hot-plug | D11: 68 | E11: TS2D-10K600
A12: TS2D-10K1200 | B12: TS2L2-10K1200 | C12: HDD 1200GB 10K SAS 12Gbps 2.5in Hot-plug | D12: 136 | E12: TS2D-10K1200
A13: TS2D-SSDM480 | B13: TS2L2-SSDM480 | C13: SSD 480GB SAS MU 12Gbps 2.5in Hot-Plug | D13: 399 | E13: TS2D-SSDM480
A14: TS2D-SSDR960 | B14: TS2L2-SSDR960 | C14: SSD 960GB SAS RI 12Gbps 2.5in Hot-plug | D14: 664 | E14: TS2D-SSDR960
A16: TS2D-LAN1 | B16: TS2L2-LAN1 | C16: Scheda LAN 5720 Dual Port 1Gb,Full Height | D16: 22 | E16: TS2D-LAN1
A17: TS2D-LAN1-L | B17: TS2L2-LAN1-L | C17: Scheda LAN 5720 Dual Port 1Gb,Low Profile | D17: 22 | E17: TS2D-LAN1-L
A18: TS2D-LAN10 | B18: TS2L2-LAN10 | C18: Scheda LAN 57412 Dual Port 10Gb, SFP+, Full Height | D18: 114 | E18: TS2D-LAN10
C19: Transceiver SFP+ SR, 10GbE, 850nm
A20: TS2D-LAN10-L | B20: TS2L2-LAN10-L | C20: Scheda LAN 57412 Dual Port 10Gb, SFP+, Low Profile | D20: 114 | E20: TS2D-LAN10-L
C21: Transceiver SFP+ SR, 10GbE, 850nm
A22: TS2DCNA10 | B22: TS2L2-CNA10 | C22: Scheda CNA 41112 Dual Port 10Gb SFP+, Full Height | D22: 110 | E22: TS2DCNA10
C23: Transceiver SFP+ SR, 10GbE, 850nm
A24: TS2D-CNA10-L | B24: TS2L2-CNA10-L | C24: Scheda CNA 41112 Dual Port 10Gb SFP+, Low Profile | D24: 110 | E24: TS2D-CNA10-L
C25: Transceiver SFP+ SR, 10GbE, 850nm
A26: TS2D-FC8 | B26: TS2L2-FC8 | C26: Scheda FC 2562, Dual Port 8Gb HBA, Full Height | D26: 245 | E26: TS2D-FC8
A27: TS2D-FC8-L | B27: TS2L2-FC8-L | C27: Scheda FC 2562, Dual Port 8Gb HBA, Low Profile | D27: 245 | E27: TS2D-FC8-L
A29: TS2L2-4Y | B29: TS2L2-4Y | C29: Estensione della manutenzione in garanzia per ulteriori 12 mesi | D29: 40 | E29: TS2L2-4Y
C30: Onsite Labor CRU, 1Year
A31: TS2L2-5Y | B31: TS2L2-5Y | C31: Estensione della manutenzione in garanzia per ulteriori 24 mesi | D31: 81 | E31: TS2L2-5Y
C32: Onsite Labor CRU, 1Year
A34: TS2D-WIN1 | B34: TS2L2-WIN1 | C34: Windows Server 2019 Standard Ed 16CORE | D34: 553 | E34: TS2D-WIN1
A35: TS2D-CALDEV | B35: TS2L2-CALDEV | C35: Device CAL 1-pack Windows Server 2019 | D35: 20 | E35: TS2D-CALDEV
A36: TS2D-CALUSER | B36: TS2L2-CALUSER | C36: User CAL 1-pack Windows Server 2019 | D36: 24 | E36: TS2D-CALUSER
A37: TS2D-WIN2CORE | B37: TS2L2-WIN2CORE | C37: Windows Server 2019 Standard Ed Add License 2CORE | D37: 74 | E37: TS2D-WIN2CORE
A38: TS2-LINUX | B38: TS2L2-LINUX | C38: CentOS 7.x | D38: 49 | E38: TS2-LINUX
A40: TS2-UPS | B40: TS2L2-UPS | C40: UPS MSR 3000VA + staffe | D40: 387 | E40: TS2-UPS
C41: Kit 2 Guide universali per UPS | D41: 0
A42: TS2-GUI | B42: TS2L2-GUI | C42: Console KVM GUI da rack | D42: 448 | E42: TS2-GUI
A43: TS2-RACK | B43: TS2L2-RACK | C43: Armadio Rack 42U | D43: 504 | E43: TS2-RACK
A44: TS2-KVMIP | B44: TS2L2-KVMIP | C44: KVM Switch IP per GUI 16P con cavi | D44: 495 | E44: TS2-KVMIP
A46: TS2-3MRJ45 | B46: TS2L2-3MRJ45 | C46: Cavo Rete UTP cat. 5e 3 metri A20 | D46: 2 | E46: TS2-3MRJ45
A47: TS2D-10K1800 | B47: TS2L2-10K1800 | C47: HDD 1800GB 10K SAS 12Gbps 2.5in Hot-plug | D47: 169 | E47: TS2D-10K1800
A48: TS2D-SSDR1920 | B48: TS2L2-SSDR1920 | C48: SSD 1920GB SAS RI 12Gbps 2.5in Hot-plug | D48: 1313 | E48: TS2D-SSDR1920
A49: TS2D-BOSS240 | B49: TS2L2-BOSS240 | C49: BOSS controller card, full height, 2 x 240G M.2 Drive A20 | D49: 429 | E49: TS2D-BOSS240
A50: TS2D-ISDM32 | B50: TS2L2-ISDM32 | C50: ISDM and Combo Card Reader, 2x 32GB microSDHC/SDXC Card A20 | D50: 134 | E50: TS2D-ISDM32
A51: TS2D-LCDBEZEL | B51: TS2L2-LCDBEZEL | C51: Dell PowerEdge 2U, LCD, 14G, 2U Cable Management Arm A20 | D51: 135 | E51: TS2D-LCDBEZEL
A52: TS2D-STDBEZEL | B52: TS2L2-STDBEZEL | C52: Dell PowerEdge 2U, Standard, 14G,2 2U Cable Management Arm A20 | D52: 101 | E52: TS2D-STDBEZEL
A53: TS2D-MCX416AM3 | B53: TS2L2-MCX416AM3 | C53: Mellanox ConnectX-4 Dual Port 40/100GbE, QSFP28, PCIe Adapter, Full Height, with 2 x 100GbE QSFP28 to QSFP28, Passive Copper DAC,3 Meter A20 | D53: 1331 | E53: TS2D-MCX416AM3
A54: TS2D-MCX516AM3 | B54: TS2L2-MCX516AM3 | C54: Mellanox ConnectX-5 EX Dual Port 100GbE QSFP28 PCIe Adapter, Full Height, with 2 x 100GbE QSFP28 to QSFP28, Passive Copper DAC,3 Meter A20 | D54: 1577 | E54: TS2D-MCX516AM3
A55: TS2D-MCX4121AM3 | B55: TS2L2-MCX4121AM3 | C55: Mellanox ConnectX-4 Lx Dual Port 25GbE SFP28 Network Adapter, Full Height with 2x SFP28 to SFP28, 25GbE, Passive Copper Twinax DAC, 3 Meter A20 | D55: 748 | E55: TS2D-MCX4121AM3
A56: TS2D-MCX4121A3-L | B56: TS2L2-MCX4121A3-L | C56: Mellanox ConnectX-4 Lx Dual Port 25GbE SFP28 Network Adapter, Low Profile with 2x SFP28 to SFP28, 25GbE, Passive Copper Twinax DAC, 3 Meter A20 | D56: 748 | E56: TS2D-MCX4121A3-L
A57: TS2D-HBA330 | B57: TS2L2-HBA330 | C57: PERC HBA330 Adapter, 12Gbps Adapter, Low Profile A20 | D57: 196 | E57: TS2D-HBA330
A58: TS2D-HBASAS12 | B58: TS2L2-HBASAS12 | C58: Dell 12Gbps SAS Host Bus Adapter External Controller - Full Height A20 | D58: 158 | E58: TS2D-HBASAS12
A59: TS2D-H740P | B59: TS2L2-H740P | C59: Dell PERC H740P RAID Controller Adapter A20 | D59: 777 | E59: TS2D-H740P
A60: TS2D-Q41162T | B60: TS2L2-Q41162T | C60: QLogic FastLinQ 41162 Dual Port 10Gb Base-T Adapter, Full Height A20 | D60: 349 | E60: TS2D-Q41162T
A61: TS2D-Q41162T-L | B61: TS2L2-Q41162T-L | C61: QLogic FastLinQ 41162 Dual Port 10Gb Base-T Adapter, Low Profile A20 | D61: 349 | E61: TS2D-Q41162T-L
A62: TS2D-Q41164T-L | B62: TS2L2-Q41164T-L | C62: QLogic FastLinQ 41164 Quad Port 10G Base-T Adapter, Low Profile A20 | D62: 687 | E62: TS2D-Q41164T-L
A63: TS2D-Q2692 | B63: TS2L2-Q2692 | C63: QLogic 2692 Dual Port 16Gb Fibre Channel HBA, Full Height A20 | D63: 780 | E63: TS2D-Q2692
A64: TS2D-Q2692-L | B64: TS2L2-Q2692-L | C64: QLogic 2692 Dual Port 16Gb Fibre Channel HBA, Low Profile A20 | D64: 780 | E64: TS2D-Q2692-L
A65: TS2D-B57416T | B65: TS2L2-B57416T | C65: Broadcom 57416 Dual Port 10Gb, Base-T, PCIe Adapter, Full Height A20 | D65: 389 | E65: TS2D-B57416T
A66: TS2D-B57416T-L | B66: TS2L2-B57416T-L | C66: Broadcom 57416 Dual Port 10Gb, Base-T, PCIe Adapter, Low Profile A20 | D66: 389 | E66: TS2D-B57416T-L
A67: TS2D-5XDAC100M2 | B67: TS2L2-5XDAC100M2 | C67: 5 x Dell Networking Cable, 100GbE QSFP28 to QSFP28,Passive Copper Direct Attach Cable,2 Meter A20 | D67: 940 | E67: TS2D-5XDAC100M2
A68: TS2D-5XDAC100M3 | B68: TS2L2-5XDAC100M3 | C68: 5 x Dell Networking Cable,100GbE QSFP28 to QSFP28, Passive Copper Direct Attach Cable,3 Meter A20 | D68: 1125 | E68: TS2D-5XDAC100M3
A69: TS2D-5XDAC10M3 | B69: TS2L2-5XDAC10M3 | C69: 5 x Dell Networking, Cable, SFP+ to SFP+, 10GbE, Copper Twinax Direct Attach Cable, 3 Meter A20 | D69: 125 | E69: TS2D-5XDAC10M3
A70: TS2D-SSDW400 | B70: TS2L2-SSDW400 | C70: 400GB SSD SAS Write Intensive 12Gbps 512n 2.5in Hot-plug Drive, 10 DWPD A20 | D70: 1155 | E70: TS2D-SSDW400
A71: TS2D-10K2400 | B71: TS2L2-10K2400 | C71: 2.4TB 10K RPM SAS 12Gbps 512e 2.5in Hot-plug Hard Drive NO VMWARE A20 | D71: 389 | E71: TS2D-10K2400
A72: TS2D-WINDC | B72: TS2L2-WINDC | C72: Windows Server 2019 Datacenter Ed 16CORE | D72: 3345 | E72: TS2D-WINDC
A73: TS2D-WINDC2 | B73: TS2L2-WINDC2 | C73: Windows Server 2019 Datacenter Ed Add License 16CORE | D73: 3343 | E73: TS2D-WINDC2
A74: TS2D-WINDC2COR | B74: TS2L2-WINDC2COR | C74: Windows Server 2019 Datacenter Ed Add License 2CORE | D74: 437 | E74: TS2D-WINDC2COR
A75: TS2D-IXXV710M3 | B75: TS2L2-IXXV710M3 | C75: Intel XXV710 Dual Port 25GbE SFP28 PCIe Adapter, Full Height, with 2x SFP28 to SFP28, 25GbE, Passive Copper Twinax DAC, 3 Meter A20 | D75: 761 | E75: TS2D-IXXV710M3
A76: TS2D-IXXV710TRV | B76: TS2L2-IXXV710TRV | C76: Intel XXV710 Dual Port 25GbE SFP28 PCIe Adapter, Full Height, with 2 x Transceiver, SFP28, 25GbE, SR, MMF Duplex, LC A20 | D76: 1380 | E76: TS2D-IXXV710TRV
A77: TS2D-VMWKIT6P3Y | B77: TS2L2-VMWKIT6P3Y | C77: VMware vSphere Essentials Plus Kit OEM 6 Processor 3yr A20 | D77: 5230 | E77: TS2D-VMWKIT6P3Y
A78: TS2D-VMWSTD1P3Y | B78: TS2L2-VMWSTD1P3Y | C78: VMware vSphere Standard OEM 1 Processor 3yr Software A20 | D78: 1743 | E78: TS2D-VMWSTD1P3Y
A79: TS2D-VMWVCSTD3Y | B79: TS2L2-VMWVCSTD3Y | C79: VMw vCenter Server Standard for vSphere OEM 3yr Software A20 | D79: 8909 | E79: TS2D-VMWVCSTD3Y
A80: TS2D-VMWVCSTD5Y | B80: TS2L2-VMWVCSTD5Y | C80: VMw vCenter Server Standard for vSphere OEM 5yr Software A20 | D80: 10549 | E80: TS2D-VMWVCSTD5Y
A81: TS2D-VMWEP1P3Y | B81: TS2L2-VMWEP1P3Y | C81: VMware vSphere Enterprise Plus OEM 1 Processor 3yr Software A20 | D81: 4905 | E81: TS2D-VMWEP1P3Y
A82: TS2D-VMWEP1P5Y | B82: TS2L2-VMWEP1P5Y | C82: VMware vSphere Enterprise Plus OEM 1 Processor 5yr Software A20 | D82: 6367 | E82: TS2D-VMWEP1P5Y
A83: TS2D-VSANSTD3Y | B83: TS2L2-VSANSTD3Y | C83: VMware vSAN Standard OEM 1 Processor 3yr Software A20 | D83: 3177 | E83: TS2D-VSANSTD3Y
A84: TS2D-VSANSTD5Y | B84: TS2L2-VSANSTD5Y | C84: VMware vSAN Standard OEM 1 Processor 5yr Software A20 | D84: 4107 | E84: TS2D-VSANSTD5Y
A85: TS2D-VSANADV3Y | B85: TS2L2-VSANADV3Y | C85: VMware vSAN Advanced OEM 1 Processor 3yr Software A20 | D85: 5010 | E85: TS2D-VSANADV3Y
A86: TS2D-VSANADV5Y | B86: TS2L2-VSANADV5Y | C86: VMware vSAN Advanced OEM 1 Processor 5yr Software A20 | D86: 6475 | E86: TS2D-VSANADV5Y
A87: TS2D-RISER | B87: TS2L2-RISER | C87: Riser Card 2A,R7425 | D87: 152 | E87: TS2D-RISER
C88: Riser Card 3A,R7425
A89: TS2D-MCX4SP | B89: TS2L2-MCX4SP | C89: Mellanox ConnectX-4 Single Port, EDR, VPI QSFP28 Full Height Adapter with QSFP passive copper cable, LSZH, 2m | D89: 718 | E89: TS2D-MCX4SP
A90: TS2D-MCX4SP-L | B90: TS2L2-MCX4SP-L | C90: Mellanox ConnectX-4 Single Port, EDR, VPI QSFP28 Low Profile Adapter with QSFP passive copper cable, LSZH, 2m | D90: 718 | E90: TS2D-MCX4SP-L
A91: TS2D-PDU32A | B91: TS2L2-PDU32A | C91: Coppia di PDU Vertical 1Ph-32A-18xC13-6xC19 - 0U Base + Kit di montaggio | D91: 436 | E91: TS2D-PDU32A
